date,department/service,beneficiary,amount,summary of purpose,category,transaction number,SAP vendor number
01.09.2018,ASSET MANAGEMENT,AJM ADAPTIONS LTD,"1,405.54",ADAPTATIONS,BUILDING R&M,5902318602,1000080297
01.09.2018,CHIEF EXECUTIVE,CONWAY AECOM LTD,"2,151.05",CAPITAL PS (REGEN),CONSTR'N SUB CONTRACT - NON CERTIFICATED,5902318350,1000071205
01.09.2018,CHIEF EXECUTIVE,CONWAY AECOM LTD,"3,420.32",CAPITAL PS (REGEN),CONSTR'N SUB CONTRACT - NON CERTIFICATED,5902318220,1000071205
01.09.2018,CHIEF EXECUTIVE,CONWAY AECOM LTD,"4,369.50",CAPITAL PS (REGEN),CONSTR'N SUB CONTRACT - NON CERTIFICATED,5902318347,1000071205
01.09.2018,CHIEF EXECUTIVE,CONWAY AECOM LTD,"2,335.80",CAPITAL PS (REGEN),CONSTRUCTION FEES  - EXTERNAL,5902318464,1000071205
01.09.2018,CHILDREN'S SERVICES,FLOURISHING PEOPLE LTD,425,CHILDRENS CENTRE,OTHER SUBSISTENCE & CONFERENCE EXPENSES,5902318115,1000081262
01.09.2018,CHILDREN'S SERVICES,FLOURISHING PEOPLE LTD,500,CHILDRENS CENTRE,OTHER SUBSISTENCE & CONFERENCE EXPENSES,5902318115,1000081262
01.09.2018,CHILDREN'S SERVICES,FLOURISHING PEOPLE LTD,500,CHILDRENS CENTRE,OTHER SUBSISTENCE & CONFERENCE EXPENSES,5902318115,1000081262
01.09.2018,CHILDREN'S SERVICES,FLOURISHING PEOPLE LTD,500,CHILDRENS CENTRE,OTHER SUBSISTENCE & CONFERENCE EXPENSES,5902318115,1000081262
01.09.2018,CHILDREN'S SERVICES,FLOURISHING PEOPLE LTD,800,CHILDRENS CENTRE,OTHER SUBSISTENCE & CONFERENCE EXPENSES,5902318115,1000081262
01.09.2018,CHILDREN'S SERVICES,FLOURISHING PEOPLE LTD,"2,212.00",CHILDRENS CENTRE,OTHER SUBSISTENCE & CONFERENCE EXPENSES,5902318115,1000081262
01.09.2018,CHILDREN'S SERVICES,FLUX STUDIOS,500,COMMUNITY LEARNING,GRANTS,5902318601,1000060327
01.09.2018,CHILDREN'S SERVICES,ORCHID CELLMARK LTD,504,S & FAM SUPP - PRAC GRP E SET 26-28,OTHER PAYMENTS FOR CLIENTS,5902318078,1000078050
01.09.2018,CUSTOMER EXPERIENCE,BURLINGTON UNIFORMS,609.13,MSSP SUPPORT,"CLOTHING, UNIFORMS & LAUNDRY",5902317600,1000062536
01.09.2018,ENVIRONMENT AND LEISURE,ADAPTAINER LTD,360,CAPITAL PS (LEISURE),CONST'N MAIN CONTRACT - NON CERTIFICATED,5902318036,1000074474
01.09.2018,ENVIRONMENT AND LEISURE,ADAPTAINER LTD,"3,850.00",CAPITAL PS (LEISURE),CONST'N MAIN CONTRACT - NON CERTIFICATED,5902318036,1000074474
01.09.2018,ENVIRONMENT AND LEISURE,TILHILL FORESTRY LTD,"69,779.18",CAPITAL PS (LEISURE),CONSTRUCTION FEES  - EXTERNAL,2102855966,3000001208
01.09.2018,ENVIRONMENT DIRECTORATE,CONWAY AECOM LTD,"16,066.60",HIGHWAY MAINTENANCE OVERHEADS,HIGHWAYS TERM CONTRACT,5902318341,1000071205
01.09.2018,ENVIRONMENT DIRECTORATE,CONWAY AECOM LTD,"20,735.72",SECTION 278 & 38,HIGHWAYS TERM CONTRACT,5902318168,1000071205
01.09.2018,ENVIRONMENT DIRECTORATE,SOUTHWARK NEWSPAPER LTD,288,STREET WORKS OVERHEADS,MARKETING & PUBLICITY SERVICES,5902318103,1556957
01.09.2018,MODERNISATION HGF,KIER FACILITIES SERVICES LTD,"11,509.24",PLANNED FM SERVICES BY KIER,BUILDING R&M,5902317959,1000040603
01.09.2018,PLANNING AND TRANSPORT,SOUTHWARK NEWSPAPER LTD,506,DEVELOPMENT CONTROL ADMINSTRATION,MARKETING & PUBLICITY SERVICES,5902318079,1556957
02.09.2018,CHIEF EXECUTIVE,CONWAY AECOM LTD,878.27,CAPITAL PS (REGEN),CONSTR'N SUB CONTRACT - NON CERTIFICATED,5902318363,1000071205
02.09.2018,CHIEF EXECUTIVE,CONWAY AECOM LTD,"5,744.28",CAPITAL PS (REGEN),CONSTRUCTION,5902318176,1000071205
02.09.2018,ENVIRONMENT AND LEISURE,QUADRON SERVICES LIMITED,"3,127.29",CAPITAL PS (LEISURE),CONST'N MAIN CONTRACT - NON CERTIFICATED,5902318037,1000066528
02.09.2018,ENVIRONMENT AND LEISURE,CONWAY AECOM LTD,"8,311.44",CAPITAL PS (LEISURE),CONSTR'N SUB CONTRACT - NON CERTIFICATED,5902318177,1000071205
02.09.2018,ENVIRONMENT DIRECTORATE,PERFORMANCE CHEMICALS LTD,"1,064.80",ESTATE CLEANING-GENERAL,MATERIALS,5902317978,1000037129
02.09.2018,LEISURE DIRECTORATE,F G MARSHALL LTD,324.74,CREMATORIUM,MATERIALS,5902318182,1002639
02.09.2018,LEISURE DIRECTORATE,QUADRON SERVICES LIMITED,265.84,SOUTHWARK AREA TEAM,GROUNDS MAINTENANCE,5902318047,1000066528
02.09.2018,MODERNISATION HGF,INTERSERVE (FACILITIES MANAGEMENT),"81,233.72",FM SERVICES BY INTERSERVE,SECURITY SERVICES,5902317971,1000070792
02.09.2018,PUBLIC HEALTH,HEALTH EDUCATION PARTNERSHIP LTD,"2,700.00",HEALTHY SCHOOLS (PHSE),CONSULTANTS SERVICES,5902318032,1000063531
02.09.2018,PUBLIC HEALTH,HEALTH EDUCATION PARTNERSHIP LTD,"12,000.00",HEALTHY SCHOOLS (PHSE),CONSULTANTS SERVICES,5902318035,1000063531
03.09.2018,ENVIRONMENT AND LEISURE,CONWAY AECOM LTD,"-8,734.63",CAPITAL PS (LEISURE),CONSTRUCTION FEES,5902318845,3000001595
03.09.2018,ENVIRONMENT AND LEISURE,CONWAY AECOM LTD,"8,734.63",CAPITAL PS (LEISURE),CONSTRUCTION FEES,5902318842,3000001595
03.09.2018,F & C S EXCLUDING CORPORATE BUDGETS,BDO LLP,"9,000.00",FINANCE DIRECTOR,PROFESSIONAL FEES,5902318040,1000057898
03.09.2018,F & C S EXCLUDING CORPORATE BUDGETS,BDO LLP,"2,083.33",RISK ADMIN,PROFESSIONAL FEES,5902318038,1000057898
03.09.2018,RESIDENT SERVICES,BRITISH GAS TRADING LTD,"5,642.91",TA HOSTELS,ELECTRICITY,5902318354,1000055977
04.09.2018,ADULT SOCIAL CARE,THE NEW SHOOTS,375,LD LTS 18-64,DAYCARE,2102860763,1000073970
04.09.2018,ADULT SOCIAL CARE,NATIONAL AUTISTIC SOCIETY CARE PACK,"3,614.16",LD LTS 18-64,DAYCARE,2102860766,1000020538
04.09.2018,ADULT SOCIAL CARE,SAGECARE LTD,399.6,LD LTS 18-64,HOMECARE - C&V,2102861191,1000080924
04.09.2018,ADULT SOCIAL CARE,SAGECARE LTD,399.68,LD LTS 18-64,HOMECARE - C&V,2102861005,1000080924
04.09.2018,ADULT SOCIAL CARE,LONDON CARE LTD,459.6,LD LTS 18-64,HOMECARE - C&V,2102861223,1000003398
04.09.2018,ADULT SOCIAL CARE,CONTACT PROFESSIONALS,465,LD LTS 18-64,SUPPORTED LIVING,2102860764,1000057263
04.09.2018,ADULT SOCIAL CARE,LONDON CARE LTD,366.76,MEM LTS 18-64,HOMECARE - C&V,2102860768,1000003398
04.09.2018,ADULT SOCIAL CARE,SAGECARE LTD,699.44,MEM LTS 18-64,HOMECARE - C&V,2102861128,1000080924
04.09.2018,ADULT SOCIAL CARE,SAGECARE LTD,499.8,MEM LTS 65+,HOMECARE - C&V,2102861103,1000080924
04.09.2018,ADULT SOCIAL CARE,SAGECARE LTD,666.28,MEM LTS 65+,HOMECARE - C&V,2102861017,1000080924
04.09.2018,ADULT SOCIAL CARE,SAGECARE LTD,820.34,MEM LTS 65+,HOMECARE - C&V,2102861115,1000080924
04.09.2018,ADULT SOCIAL CARE,SAGECARE LTD,932.68,MEM LTS 65+,HOMECARE - C&V,2102861126,1000080924
04.09.2018,ADULT SOCIAL CARE,LONDON CARE LTD,"1,084.48",MEM LTS 65+,HOMECARE - C&V,2102860960,1000003398
04.09.2018,ADULT SOCIAL CARE,SAGECARE LTD,"1,165.92",MEM LTS 65+,HOMECARE - C&V,2102861123,1000080924
04.09.2018,ADULT SOCIAL CARE,LONDON CARE LTD,"2,305.69",MEM LTS 65+,HOMECARE - C&V,2102860964,1000003398
04.09.2018,ADULT SOCIAL CARE,SAGECARE LTD,466.28,MH LTS 18-64,HOMECARE - C&V,2102861030,1000080924
04.09.2018,ADULT SOCIAL CARE,LONDON CARE LTD,500.6,MH LTS 18-64,HOMECARE - C&V,2102860824,1000003398
04.09.2018,ADULT SOCIAL CARE,SAGECARE LTD,932.4,MH LTS 18-64,HOMECARE - C&V,2102861121,1000080924
04.09.2018,ADULT SOCIAL CARE,SAGECARE LTD,266.4,MH LTS 65+,HOMECARE - C&V,2102861066,1000080924
04.09.2018,ADULT SOCIAL CARE,LONDON CARE LTD,583.76,MH LTS 65+,HOMECARE - C&V,2102860862,1000003398
04.09.2018,ADULT SOCIAL CARE,SAGECARE LTD,591.35,MH LTS 65+,HOMECARE - C&V,2102861076,1000080924
04.09.2018,ADULT SOCIAL CARE,SAGECARE LTD,708.04,MH LTS 65+,HOMECARE - C&V,2102861047,1000080924
04.09.2018,ADULT SOCIAL CARE,SAGECARE LTD,936.86,MH LTS 65+,HOMECARE - C&V,2102861039,1000080924
04.09.2018,ADULT SOCIAL CARE,SAGECARE LTD,274.85,PHY LTS 18-64,HOMECARE - C&V,2102861193,1000080924
04.09.2018,ADULT SOCIAL CARE,SAGECARE LTD,333,PHY LTS 18-64,HOMECARE - C&V,2102861026,1000080924
04.09.2018,ADULT SOCIAL CARE,SAGECARE LTD,337.23,PHY LTS 18-64,HOMECARE - C&V,2102861162,1000080924
04.09.2018,ADULT SOCIAL CARE,LONDON CARE LTD,337.71,PHY LTS 18-64,HOMECARE - C&V,2102860949,1000003398
04.09.2018,ADULT SOCIAL CARE,SAGECARE LTD,349.72,PHY LTS 18-64,HOMECARE - C&V,2102861136,1000080924
04.09.2018,ADULT SOCIAL CARE,SAGECARE LTD,349.72,PHY LTS 18-64,HOMECARE - C&V,2102861189,1000080924
04.09.2018,ADULT SOCIAL CARE,LONDON CARE LTD,350.4,PHY LTS 18-64,HOMECARE - C&V,2102860843,1000003398
04.09.2018,ADULT SOCIAL CARE,SAGECARE LTD,370.51,PHY LTS 18-64,HOMECARE - C&V,2102861042,1000080924
04.09.2018,ADULT SOCIAL CARE,LONDON CARE LTD,379.13,PHY LTS 18-64,HOMECARE - C&V,2102860851,1000003398
04.09.2018,ADULT SOCIAL CARE,SAGECARE LTD,387.25,PHY LTS 18-64,HOMECARE - C&V,2102861211,1000080924
04.09.2018,ADULT SOCIAL CARE,LONDON CARE LTD,398.6,PHY LTS 18-64,HOMECARE - C&V,2102860906,1000003398
04.09.2018,ADULT SOCIAL CARE,LONDON CARE LTD,445.93,PHY LTS 18-64,HOMECARE - C&V,2102860921,1000003398
04.09.2018,ADULT SOCIAL CARE,SAGECARE LTD,466.28,PHY LTS 18-64,HOMECARE - C&V,2102861012,1000080924
04.09.2018,ADULT SOCIAL CARE,LONDON CARE LTD,466.91,PHY LTS 18-64,HOMECARE - C&V,2102860844,1000003398
04.09.2018,ADULT SOCIAL CARE,SAGECARE LTD,470.43,PHY LTS 18-64,HOMECARE - C&V,2102861212,1000080924
04.09.2018,ADULT SOCIAL CARE,LONDON CARE LTD,505.07,PHY LTS 18-64,HOMECARE - C&V,2102860911,1000003398
04.09.2018,ADULT SOCIAL CARE,LONDON CARE LTD,529.53,PHY LTS 18-64,HOMECARE - C&V,2102860819,1000003398
04.09.2018,ADULT SOCIAL CARE,LONDON CARE LTD,529.67,PHY LTS 18-64,HOMECARE - C&V,2102860962,1000003398
04.09.2018,ADULT SOCIAL CARE,SAGECARE LTD,532.8,PHY LTS 18-64,HOMECARE - C&V,2102861116,1000080924
04.09.2018,ADULT SOCIAL CARE,SAGECARE LTD,532.8,PHY LTS 18-64,HOMECARE - C&V,2102861131,1000080924
04.09.2018,ADULT SOCIAL CARE,SAGECARE LTD,532.96,PHY LTS 18-64,HOMECARE - C&V,2102861209,1000080924
04.09.2018,ADULT SOCIAL CARE,SAGECARE LTD,537.03,PHY LTS 18-64,HOMECARE - C&V,2102861045,1000080924
04.09.2018,ADULT SOCIAL CARE,SAGECARE LTD,541.32,PHY LTS 18-64,HOMECARE - C&V,2102861117,1000080924
04.09.2018,ADULT SOCIAL CARE,SAGECARE LTD,566.12,PHY LTS 18-64,HOMECARE - C&V,2102861122,1000080924
04.09.2018,ADULT SOCIAL CARE,LONDON CARE LTD,567.28,PHY LTS 18-64,HOMECARE - C&V,2102860789,1000003398
04.09.2018,ADULT SOCIAL CARE,LONDON CARE LTD,583.76,PHY LTS 18-64,HOMECARE - C&V,2102860859,1000003398
04.09.2018,ADULT SOCIAL CARE,SAGECARE LTD,591.35,PHY LTS 18-64,HOMECARE - C&V,2102861149,1000080924
04.09.2018,ADULT SOCIAL CARE,LONDON CARE LTD,617.16,PHY LTS 18-64,HOMECARE - C&V,2102860943,1000003398
04.09.2018,ADULT SOCIAL CARE,LONDON CARE LTD,617.63,PHY LTS 18-64,HOMECARE - C&V,2102860905,1000003398
04.09.2018,ADULT SOCIAL CARE,LONDON CARE LTD,650.52,PHY LTS 18-64,HOMECARE - C&V,2102860982,1000003398
04.09.2018,ADULT SOCIAL CARE,LONDON CARE LTD,667.08,PHY LTS 18-64,HOMECARE - C&V,2102860892,1000003398
04.09.2018,ADULT SOCIAL CARE,LONDON CARE LTD,667.28,PHY LTS 18-64,HOMECARE - C&V,2102860779,1000003398
04.09.2018,ADULT SOCIAL CARE,SAGECARE LTD,674.52,PHY LTS 18-64,HOMECARE - C&V,2102861188,1000080924
04.09.2018,ADULT SOCIAL CARE,LONDON CARE LTD,683.92,PHY LTS 18-64,HOMECARE - C&V,2102860826,1000003398
04.09.2018,ADULT SOCIAL CARE,LONDON CARE LTD,700.4,PHY LTS 18-64,HOMECARE - C&V,2102860848,1000003398
04.09.2018,ADULT SOCIAL CARE,SAGECARE LTD,724.5,PHY LTS 18-64,HOMECARE - C&V,2102861082,1000080924
04.09.2018,ADULT SOCIAL CARE,SAGECARE LTD,749.4,PHY LTS 18-64,HOMECARE - C&V,2102861127,1000080924
04.09.2018,ADULT SOCIAL CARE,SAGECARE LTD,749.48,PHY LTS 18-64,HOMECARE - C&V,2102861132,1000080924
04.09.2018,ADULT SOCIAL CARE,LONDON CARE LTD,766,PHY LTS 18-64,HOMECARE - C&V,2102860897,1000003398
04.09.2018,ADULT SOCIAL CARE,LONDON CARE LTD,767,PHY LTS 18-64,HOMECARE - C&V,2102860883,1000003398
04.09.2018,ADULT SOCIAL CARE,LONDON CARE LTD,782.87,PHY LTS 18-64,HOMECARE - C&V,2102860953,1000003398
04.09.2018,ADULT SOCIAL CARE,SAGECARE LTD,787.05,PHY LTS 18-64,HOMECARE - C&V,2102861205,1000080924
04.09.2018,ADULT SOCIAL CARE,SAGECARE LTD,815.92,PHY LTS 18-64,HOMECARE - C&V,2102861058,1000080924
04.09.2018,ADULT SOCIAL CARE,SAGECARE LTD,815.99,PHY LTS 18-64,HOMECARE - C&V,2102861094,1000080924
04.09.2018,ADULT SOCIAL CARE,LONDON CARE LTD,838.29,PHY LTS 18-64,HOMECARE - C&V,2102860980,1000003398
04.09.2018,ADULT SOCIAL CARE,LONDON CARE LTD,909.15,PHY LTS 18-64,HOMECARE - C&V,2102860965,1000003398
04.09.2018,ADULT SOCIAL CARE,SAGECARE LTD,916.12,PHY LTS 18-64,HOMECARE - C&V,2102861173,1000080924
04.09.2018,ADULT SOCIAL CARE,SAGECARE LTD,932.68,PHY LTS 18-64,HOMECARE - C&V,2102861171,1000080924
04.09.2018,ADULT SOCIAL CARE,LONDON CARE LTD,938.28,PHY LTS 18-64,HOMECARE - C&V,2102860827,1000003398
04.09.2018,ADULT SOCIAL CARE,LONDON CARE LTD,939.97,PHY LTS 18-64,HOMECARE - C&V,2102860855,1000003398
04.09.2018,ADULT SOCIAL CARE,SAGECARE LTD,966.24,PHY LTS 18-64,HOMECARE - C&V,2102861145,1000080924
04.09.2018,ADULT SOCIAL CARE,SAGECARE LTD,999.19,PHY LTS 18-64,HOMECARE - C&V,2102861084,1000080924
04.09.2018,ADULT SOCIAL CARE,SAGECARE LTD,"1,049.22",PHY LTS 18-64,HOMECARE - C&V,2102861151,1000080924
04.09.2018,ADULT SOCIAL CARE,SAGECARE LTD,"1,215.68",PHY LTS 18-64,HOMECARE - C&V,2102861059,1000080924
04.09.2018,ADULT SOCIAL CARE,SAGECARE LTD,"1,430.84",PHY LTS 18-64,HOMECARE - C&V,2102861185,1000080924
04.09.2018,ADULT SOCIAL CARE,SAGECARE LTD,"1,448.64",PHY LTS 18-64,HOMECARE - C&V,2102861044,1000080924
04.09.2018,ADULT SOCIAL CARE,LONDON CARE LTD,"1,483.88",PHY LTS 18-64,HOMECARE - C&V,2102860929,1000003398
04.09.2018,ADULT SOCIAL CARE,SAGECARE LTD,"1,636.35",PHY LTS 18-64,HOMECARE - C&V,2102861010,1000080924
04.09.2018,ADULT SOCIAL CARE,SAGECARE LTD,"1,715.44",PHY LTS 18-64,HOMECARE - C&V,2102861063,1000080924
04.09.2018,ADULT SOCIAL CARE,LONDON CARE LTD,"1,776.05",PHY LTS 18-64,HOMECARE - C&V,2102860867,1000003398
04.09.2018,ADULT SOCIAL CARE,LONDON CARE LTD,"2,309.84",PHY LTS 18-64,HOMECARE - C&V,2102860977,1000003398
04.09.2018,ADULT SOCIAL CARE,SAGECARE LTD,"2,581.42",PHY LTS 18-64,HOMECARE - C&V,2102861020,1000080924
04.09.2018,ADULT SOCIAL CARE,LONDON CARE LTD,337.71,PHY LTS 18-64,HOMECARE - SPOT,2102860954,1000003398
04.09.2018,ADULT SOCIAL CARE,LONDON CARE LTD,625.38,PHY LTS 18-64,HOMECARE - SPOT,2102860817,1000003398
04.09.2018,ADULT SOCIAL CARE,SAGECARE LTD,799.36,PHY LTS 18-64,HOMECARE - SPOT,2102861166,1000080924
04.09.2018,ADULT SOCIAL CARE,LONDON CARE LTD,250.12,PHY LTS 65+,HOMECARE - C&V,2102860805,1000003398
04.09.2018,ADULT SOCIAL CARE,SAGECARE LTD,266.44,PHY LTS 65+,HOMECARE - C&V,2102861008,1000080924
04.09.2018,ADULT SOCIAL CARE,LONDON CARE LTD,266.47,PHY LTS 65+,HOMECARE - C&V,2102860841,1000003398
04.09.2018,ADULT SOCIAL CARE,LONDON CARE LTD,266.48,PHY LTS 65+,HOMECARE - C&V,2102860956,1000003398
04.09.2018,ADULT SOCIAL CARE,SAGECARE LTD,279.02,PHY LTS 65+,HOMECARE - C&V,2102861037,1000080924
04.09.2018,ADULT SOCIAL CARE,LONDON CARE LTD,283.14,PHY LTS 65+,HOMECARE - C&V,2102860810,1000003398
04.09.2018,ADULT SOCIAL CARE,LONDON CARE LTD,283.14,PHY LTS 65+,HOMECARE - C&V,2102860973,1000003398
04.09.2018,ADULT SOCIAL CARE,SAGECARE LTD,287.27,PHY LTS 65+,HOMECARE - C&V,2102861202,1000080924
04.09.2018,ADULT SOCIAL CARE,LONDON CARE LTD,287.34,PHY LTS 65+,HOMECARE - C&V,2102860802,1000003398
04.09.2018,ADULT SOCIAL CARE,LONDON CARE LTD,287.75,PHY LTS 65+,HOMECARE - C&V,2102860969,1000003398
04.09.2018,ADULT SOCIAL CARE,SAGECARE LTD,291.55,PHY LTS 65+,HOMECARE - C&V,2102861080,1000080924
04.09.2018,ADULT SOCIAL CARE,SAGECARE LTD,324.74,PHY LTS 65+,HOMECARE - C&V,2102861021,1000080924
04.09.2018,ADULT SOCIAL CARE,SAGECARE LTD,333.2,PHY LTS 65+,HOMECARE - C&V,2102860995,1000080924
04.09.2018,ADULT SOCIAL CARE,LONDON CARE LTD,333.64,PHY LTS 65+,HOMECARE - C&V,2102860849,1000003398
04.09.2018,ADULT SOCIAL CARE,SAGECARE LTD,337.23,PHY LTS 65+,HOMECARE - C&V,2102861003,1000080924
04.09.2018,ADULT SOCIAL CARE,SAGECARE LTD,337.23,PHY LTS 65+,HOMECARE - C&V,2102861178,1000080924
04.09.2018,ADULT SOCIAL CARE,LONDON CARE LTD,337.71,PHY LTS 65+,HOMECARE - C&V,2102860914,1000003398
04.09.2018,ADULT SOCIAL CARE,LONDON CARE LTD,337.71,PHY LTS 65+,HOMECARE - C&V,2102860951,1000003398
04.09.2018,ADULT SOCIAL CARE,SAGECARE LTD,349.72,PHY LTS 65+,HOMECARE - C&V,2102861016,1000080924
04.09.2018,ADULT SOCIAL CARE,SAGECARE LTD,349.72,PHY LTS 65+,HOMECARE - C&V,2102861027,1000080924
04.09.2018,ADULT SOCIAL CARE,SAGECARE LTD,349.72,PHY LTS 65+,HOMECARE - C&V,2102861101,1000080924
04.09.2018,ADULT SOCIAL CARE,SAGECARE LTD,349.72,PHY LTS 65+,HOMECARE - C&V,2102861204,1000080924
04.09.2018,ADULT SOCIAL CARE,LONDON CARE LTD,350.2,PHY LTS 65+,HOMECARE - C&V,2102860857,1000003398
04.09.2018,ADULT SOCIAL CARE,LONDON CARE LTD,350.2,PHY LTS 65+,HOMECARE - C&V,2102860955,1000003398
04.09.2018,ADULT SOCIAL CARE,LONDON CARE LTD,350.2,PHY LTS 65+,HOMECARE - C&V,2102860972,1000003398
04.09.2018,ADULT SOCIAL CARE,SAGECARE LTD,358.09,PHY LTS 65+,HOMECARE - C&V,2102861107,1000080924
04.09.2018,ADULT SOCIAL CARE,SAGECARE LTD,362.21,PHY LTS 65+,HOMECARE - C&V,2102861159,1000080924
04.09.2018,ADULT SOCIAL CARE,SAGECARE LTD,366.44,PHY LTS 65+,HOMECARE - C&V,2102861192,1000080924
04.09.2018,ADULT SOCIAL CARE,SAGECARE LTD,370.55,PHY LTS 65+,HOMECARE - C&V,2102861111,1000080924
04.09.2018,ADULT SOCIAL CARE,LONDON CARE LTD,399.66,PHY LTS 65+,HOMECARE - C&V,2102860786,1000003398
04.09.2018,ADULT SOCIAL CARE,SAGECARE LTD,399.68,PHY LTS 65+,HOMECARE - C&V,2102861099,1000080924
04.09.2018,ADULT SOCIAL CARE,SAGECARE LTD,399.76,PHY LTS 65+,HOMECARE - C&V,2102861152,1000080924
04.09.2018,ADULT SOCIAL CARE,SAGECARE LTD,408.17,PHY LTS 65+,HOMECARE - C&V,2102861052,1000080924
04.09.2018,ADULT SOCIAL CARE,SAGECARE LTD,416.32,PHY LTS 65+,HOMECARE - C&V,2102861112,1000080924
04.09.2018,ADULT SOCIAL CARE,SAGECARE LTD,416.4,PHY LTS 65+,HOMECARE - C&V,2102861067,1000080924
04.09.2018,ADULT SOCIAL CARE,SAGECARE LTD,416.5,PHY LTS 65+,HOMECARE - C&V,2102861203,1000080924
04.09.2018,ADULT SOCIAL CARE,LONDON CARE LTD,417.14,PHY LTS 65+,HOMECARE - C&V,2102860917,1000003398
04.09.2018,ADULT SOCIAL CARE,SAGECARE LTD,424.66,PHY LTS 65+,HOMECARE - C&V,2102861196,1000080924
04.09.2018,ADULT SOCIAL CARE,SAGECARE LTD,424.76,PHY LTS 65+,HOMECARE - C&V,2102861065,1000080924
04.09.2018,ADULT SOCIAL CARE,SAGECARE LTD,432.9,PHY LTS 65+,HOMECARE - C&V,2102861155,1000080924
04.09.2018,ADULT SOCIAL CARE,SAGECARE LTD,458.15,PHY LTS 65+,HOMECARE - C&V,2102861144,1000080924
04.09.2018,ADULT SOCIAL CARE,SAGECARE LTD,466.2,PHY LTS 65+,HOMECARE - C&V,2102861006,1000080924
04.09.2018,ADULT SOCIAL CARE,SAGECARE LTD,466.2,PHY LTS 65+,HOMECARE - C&V,2102861051,1000080924
04.09.2018,ADULT SOCIAL CARE,SAGECARE LTD,466.48,PHY LTS 65+,HOMECARE - C&V,2102861164,1000080924
04.09.2018,ADULT SOCIAL CARE,LONDON CARE LTD,467.12,PHY LTS 65+,HOMECARE - C&V,2102860860,1000003398
04.09.2018,ADULT SOCIAL CARE,LONDON CARE LTD,467.12,PHY LTS 65+,HOMECARE - C&V,2102860873,1000003398
04.09.2018,ADULT SOCIAL CARE,LONDON CARE LTD,467.12,PHY LTS 65+,HOMECARE - C&V,2102860938,1000003398
04.09.2018,ADULT SOCIAL CARE,SAGECARE LTD,482.92,PHY LTS 65+,HOMECARE - C&V,2102861068,1000080924
04.09.2018,ADULT SOCIAL CARE,SAGECARE LTD,482.92,PHY LTS 65+,HOMECARE - C&V,2102861146,1000080924
04.09.2018,ADULT SOCIAL CARE,SAGECARE LTD,483,PHY LTS 65+,HOMECARE - C&V,2102861114,1000080924
04.09.2018,ADULT SOCIAL CARE,SAGECARE LTD,483.11,PHY LTS 65+,HOMECARE - C&V,2102861032,1000080924
04.09.2018,ADULT SOCIAL CARE,LONDON CARE LTD,483.56,PHY LTS 65+,HOMECARE - C&V,2102860774,1000003398
04.09.2018,ADULT SOCIAL CARE,LONDON CARE LTD,483.75,PHY LTS 65+,HOMECARE - C&V,2102860981,1000003398
04.09.2018,ADULT SOCIAL CARE,LONDON CARE LTD,492.15,PHY LTS 65+,HOMECARE - C&V,2102860814,1000003398
04.09.2018,ADULT SOCIAL CARE,SAGECARE LTD,499.6,PHY LTS 65+,HOMECARE - C&V,2102861070,1000080924
04.09.2018,ADULT SOCIAL CARE,LONDON CARE LTD,507.92,PHY LTS 65+,HOMECARE - C&V,2102860882,1000003398
04.09.2018,ADULT SOCIAL CARE,LONDON CARE LTD,507.96,PHY LTS 65+,HOMECARE - C&V,2102860787,1000003398
04.09.2018,ADULT SOCIAL CARE,LONDON CARE LTD,533.88,PHY LTS 65+,HOMECARE - C&V,2102860831,1000003398
04.09.2018,ADULT SOCIAL CARE,SAGECARE LTD,541.32,PHY LTS 65+,HOMECARE - C&V,2102861054,1000080924
04.09.2018,ADULT SOCIAL CARE,SAGECARE LTD,541.42,PHY LTS 65+,HOMECARE - C&V,2102861118,1000080924
04.09.2018,ADULT SOCIAL CARE,LONDON CARE LTD,542.12,PHY LTS 65+,HOMECARE - C&V,2102860854,1000003398
04.09.2018,ADULT SOCIAL CARE,LONDON CARE LTD,549.6,PHY LTS 65+,HOMECARE - C&V,2102860813,1000003398
04.09.2018,ADULT SOCIAL CARE,LONDON CARE LTD,565.06,PHY LTS 65+,HOMECARE - C&V,2102860840,1000003398
04.09.2018,ADULT SOCIAL CARE,SAGECARE LTD,566.4,PHY LTS 65+,HOMECARE - C&V,2102861213,1000080924
04.09.2018,ADULT SOCIAL CARE,LONDON CARE LTD,567.04,PHY LTS 65+,HOMECARE - C&V,2102860958,1000003398
04.09.2018,ADULT SOCIAL CARE,LONDON CARE LTD,567.24,PHY LTS 65+,HOMECARE - C&V,2102860803,1000003398
04.09.2018,ADULT SOCIAL CARE,LONDON CARE LTD,575.43,PHY LTS 65+,HOMECARE - C&V,2102860944,1000003398
04.09.2018,ADULT SOCIAL CARE,LONDON CARE LTD,576.12,PHY LTS 65+,HOMECARE - C&V,2102860919,1000003398
04.09.2018,ADULT SOCIAL CARE,LONDON CARE LTD,582.96,PHY LTS 65+,HOMECARE - C&V,2102860775,1000003398
04.09.2018,ADULT SOCIAL CARE,SAGECARE LTD,582.96,PHY LTS 65+,HOMECARE - C&V,2102861035,1000080924
04.09.2018,ADULT SOCIAL CARE,SAGECARE LTD,582.96,PHY LTS 65+,HOMECARE - C&V,2102861098,1000080924
04.09.2018,ADULT SOCIAL CARE,SAGECARE LTD,582.96,PHY LTS 65+,HOMECARE - C&V,2102861199,1000080924
04.09.2018,ADULT SOCIAL CARE,LONDON CARE LTD,583.76,PHY LTS 65+,HOMECARE - C&V,2102860853,1000003398
04.09.2018,ADULT SOCIAL CARE,LONDON CARE LTD,596.66,PHY LTS 65+,HOMECARE - C&V,2102860935,1000003398
04.09.2018,ADULT SOCIAL CARE,LONDON CARE LTD,600.2,PHY LTS 65+,HOMECARE - C&V,2102860990,1000003398
04.09.2018,ADULT SOCIAL CARE,LONDON CARE LTD,600.36,PHY LTS 65+,HOMECARE - C&V,2102860837,1000003398
04.09.2018,ADULT SOCIAL CARE,LONDON CARE LTD,600.36,PHY LTS 65+,HOMECARE - C&V,2102860966,1000003398
04.09.2018,ADULT SOCIAL CARE,LONDON CARE LTD,600.64,PHY LTS 65+,HOMECARE - C&V,2102860858,1000003398
04.09.2018,ADULT SOCIAL CARE,LONDON CARE LTD,600.64,PHY LTS 65+,HOMECARE - C&V,2102860937,1000003398
04.09.2018,ADULT SOCIAL CARE,SAGECARE LTD,632.88,PHY LTS 65+,HOMECARE - C&V,2102861134,1000080924
04.09.2018,ADULT SOCIAL CARE,SAGECARE LTD,633,PHY LTS 65+,HOMECARE - C&V,2102861182,1000080924
04.09.2018,ADULT SOCIAL CARE,LONDON CARE LTD,633.84,PHY LTS 65+,HOMECARE - C&V,2102860974,1000003398
04.09.2018,ADULT SOCIAL CARE,SAGECARE LTD,645.41,PHY LTS 65+,HOMECARE - C&V,2102861195,1000080924
04.09.2018,ADULT SOCIAL CARE,SAGECARE LTD,649.56,PHY LTS 65+,HOMECARE - C&V,2102861001,1000080924
04.09.2018,ADULT SOCIAL CARE,SAGECARE LTD,649.56,PHY LTS 65+,HOMECARE - C&V,2102861014,1000080924
04.09.2018,ADULT SOCIAL CARE,SAGECARE LTD,649.56,PHY LTS 65+,HOMECARE - C&V,2102861177,1000080924
04.09.2018,ADULT SOCIAL CARE,LONDON CARE LTD,650.52,PHY LTS 65+,HOMECARE - C&V,2102860945,1000003398
04.09.2018,ADULT SOCIAL CARE,SAGECARE LTD,666,PHY LTS 65+,HOMECARE - C&V,2102861206,1000080924
04.09.2018,ADULT SOCIAL CARE,SAGECARE LTD,666.24,PHY LTS 65+,HOMECARE - C&V,2102861198,1000080924
04.09.2018,ADULT SOCIAL CARE,SAGECARE LTD,669.44,PHY LTS 65+,HOMECARE - C&V,2102861176,1000080924
04.09.2018,ADULT SOCIAL CARE,LONDON CARE LTD,671.34,PHY LTS 65+,HOMECARE - C&V,2102860795,1000003398
04.09.2018,ADULT SOCIAL CARE,SAGECARE LTD,680.4,PHY LTS 65+,HOMECARE - C&V,2102861181,1000080924
04.09.2018,ADULT SOCIAL CARE,SAGECARE LTD,682.84,PHY LTS 65+,HOMECARE - C&V,2102861161,1000080924
04.09.2018,ADULT SOCIAL CARE,SAGECARE LTD,682.88,PHY LTS 65+,HOMECARE - C&V,2102861157,1000080924
04.09.2018,ADULT SOCIAL CARE,SAGECARE LTD,682.88,PHY LTS 65+,HOMECARE - C&V,2102861160,1000080924
04.09.2018,ADULT SOCIAL CARE,SAGECARE LTD,682.88,PHY LTS 65+,HOMECARE - C&V,2102861168,1000080924
04.09.2018,ADULT SOCIAL CARE,SAGECARE LTD,699.44,PHY LTS 65+,HOMECARE - C&V,2102861013,1000080924
04.09.2018,ADULT SOCIAL CARE,SAGECARE LTD,699.44,PHY LTS 65+,HOMECARE - C&V,2102861183,1000080924
04.09.2018,ADULT SOCIAL CARE,SAGECARE LTD,699.56,PHY LTS 65+,HOMECARE - C&V,2102861083,1000080924
04.09.2018,ADULT SOCIAL CARE,SAGECARE LTD,699.72,PHY LTS 65+,HOMECARE - C&V,2102861138,1000080924
04.09.2018,ADULT SOCIAL CARE,LONDON CARE LTD,700.4,PHY LTS 65+,HOMECARE - C&V,2102860983,1000003398
04.09.2018,ADULT SOCIAL CARE,LONDON CARE LTD,700.68,PHY LTS 65+,HOMECARE - C&V,2102860798,1000003398
04.09.2018,ADULT SOCIAL CARE,SAGECARE LTD,728.5,PHY LTS 65+,HOMECARE - C&V,2102861074,1000080924
04.09.2018,ADULT SOCIAL CARE,LONDON CARE LTD,733.98,PHY LTS 65+,HOMECARE - C&V,2102860852,1000003398
04.09.2018,ADULT SOCIAL CARE,LONDON CARE LTD,734.64,PHY LTS 65+,HOMECARE - C&V,2102860836,1000003398
04.09.2018,ADULT SOCIAL CARE,SAGECARE LTD,749.52,PHY LTS 65+,HOMECARE - C&V,2102861056,1000080924
04.09.2018,ADULT SOCIAL CARE,SAGECARE LTD,757.9,PHY LTS 65+,HOMECARE - C&V,2102861036,1000080924
04.09.2018,ADULT SOCIAL CARE,SAGECARE LTD,757.9,PHY LTS 65+,HOMECARE - C&V,2102861165,1000080924
04.09.2018,ADULT SOCIAL CARE,LONDON CARE LTD,758.92,PHY LTS 65+,HOMECARE - C&V,2102860936,1000003398
04.09.2018,ADULT SOCIAL CARE,SAGECARE LTD,766.04,PHY LTS 65+,HOMECARE - C&V,2102860994,1000080924
04.09.2018,ADULT SOCIAL CARE,LONDON CARE LTD,767.16,PHY LTS 65+,HOMECARE - C&V,2102860784,1000003398
04.09.2018,ADULT SOCIAL CARE,SAGECARE LTD,782.8,PHY LTS 65+,HOMECARE - C&V,2102861015,1000080924
04.09.2018,ADULT SOCIAL CARE,SAGECARE LTD,782.8,PHY LTS 65+,HOMECARE - C&V,2102861197,1000080924
04.09.2018,ADULT SOCIAL CARE,SAGECARE LTD,782.88,PHY LTS 65+,HOMECARE - C&V,2102861075,1000080924
04.09.2018,ADULT SOCIAL CARE,SAGECARE LTD,782.88,PHY LTS 65+,HOMECARE - C&V,2102861100,1000080924
04.09.2018,ADULT SOCIAL CARE,LONDON CARE LTD,800.29,PHY LTS 65+,HOMECARE - C&V,2102860963,1000003398
04.09.2018,ADULT SOCIAL CARE,LONDON CARE LTD,800.56,PHY LTS 65+,HOMECARE - C&V,2102860782,1000003398
04.09.2018,ADULT SOCIAL CARE,LONDON CARE LTD,800.74,PHY LTS 65+,HOMECARE - C&V,2102860970,1000003398
04.09.2018,ADULT SOCIAL CARE,SAGECARE LTD,807.86,PHY LTS 65+,HOMECARE - C&V,2102861085,1000080924
04.09.2018,ADULT SOCIAL CARE,LONDON CARE LTD,809.31,PHY LTS 65+,HOMECARE - C&V,2102860829,1000003398
04.09.2018,ADULT SOCIAL CARE,SAGECARE LTD,816.2,PHY LTS 65+,HOMECARE - C&V,2102861023,1000080924
04.09.2018,ADULT SOCIAL CARE,SAGECARE LTD,816.2,PHY LTS 65+,HOMECARE - C&V,2102861031,1000080924
04.09.2018,ADULT SOCIAL CARE,SAGECARE LTD,816.2,PHY LTS 65+,HOMECARE - C&V,2102861057,1000080924
04.09.2018,ADULT SOCIAL CARE,SAGECARE LTD,816.2,PHY LTS 65+,HOMECARE - C&V,2102861073,1000080924
04.09.2018,ADULT SOCIAL CARE,SAGECARE LTD,816.2,PHY LTS 65+,HOMECARE - C&V,2102861095,1000080924
04.09.2018,ADULT SOCIAL CARE,SAGECARE LTD,816.2,PHY LTS 65+,HOMECARE - C&V,2102861097,1000080924
04.09.2018,ADULT SOCIAL CARE,LONDON CARE LTD,817.32,PHY LTS 65+,HOMECARE - C&V,2102860927,1000003398
04.09.2018,ADULT SOCIAL CARE,LONDON CARE LTD,817.36,PHY LTS 65+,HOMECARE - C&V,2102860915,1000003398
04.09.2018,ADULT SOCIAL CARE,LONDON CARE LTD,821.48,PHY LTS 65+,HOMECARE - C&V,2102860815,1000003398
04.09.2018,ADULT SOCIAL CARE,LONDON CARE LTD,825.27,PHY LTS 65+,HOMECARE - C&V,2102860777,1000003398
04.09.2018,ADULT SOCIAL CARE,SAGECARE LTD,832.92,PHY LTS 65+,HOMECARE - C&V,2102861113,1000080924
04.09.2018,ADULT SOCIAL CARE,SAGECARE LTD,849.36,PHY LTS 65+,HOMECARE - C&V,2102861088,1000080924
04.09.2018,ADULT SOCIAL CARE,LONDON CARE LTD,854.93,PHY LTS 65+,HOMECARE - C&V,2102860912,1000003398
04.09.2018,ADULT SOCIAL CARE,SAGECARE LTD,865.96,PHY LTS 65+,HOMECARE - C&V,2102861207,1000080924
04.09.2018,ADULT SOCIAL CARE,SAGECARE LTD,874.47,PHY LTS 65+,HOMECARE - C&V,2102861186,1000080924
04.09.2018,ADULT SOCIAL CARE,LONDON CARE LTD,875.75,PHY LTS 65+,HOMECARE - C&V,2102860989,1000003398
04.09.2018,ADULT SOCIAL CARE,SAGECARE LTD,899.5,PHY LTS 65+,HOMECARE - C&V,2102861102,1000080924
04.09.2018,ADULT SOCIAL CARE,SAGECARE LTD,899.52,PHY LTS 65+,HOMECARE - C&V,2102861104,1000080924
04.09.2018,ADULT SOCIAL CARE,SAGECARE LTD,916.12,PHY LTS 65+,HOMECARE - C&V,2102861000,1000080924
04.09.2018,ADULT SOCIAL CARE,SAGECARE LTD,916.12,PHY LTS 65+,HOMECARE - C&V,2102861167,1000080924
04.09.2018,ADULT SOCIAL CARE,LONDON CARE LTD,917.44,PHY LTS 65+,HOMECARE - C&V,2102860925,1000003398
04.09.2018,ADULT SOCIAL CARE,LONDON CARE LTD,917.48,PHY LTS 65+,HOMECARE - C&V,2102860864,1000003398
04.09.2018,ADULT SOCIAL CARE,LONDON CARE LTD,917.48,PHY LTS 65+,HOMECARE - C&V,2102860879,1000003398
04.09.2018,ADULT SOCIAL CARE,LONDON CARE LTD,917.48,PHY LTS 65+,HOMECARE - C&V,2102860959,1000003398
04.09.2018,ADULT SOCIAL CARE,LONDON CARE LTD,918.85,PHY LTS 65+,HOMECARE - C&V,2102860940,1000003398
04.09.2018,ADULT SOCIAL CARE,SAGECARE LTD,932.64,PHY LTS 65+,HOMECARE - C&V,2102861163,1000080924
04.09.2018,ADULT SOCIAL CARE,SAGECARE LTD,932.68,PHY LTS 65+,HOMECARE - C&V,2102861081,1000080924
04.09.2018,ADULT SOCIAL CARE,SAGECARE LTD,932.76,PHY LTS 65+,HOMECARE - C&V,2102861011,1000080924
04.09.2018,ADULT SOCIAL CARE,SAGECARE LTD,932.76,PHY LTS 65+,HOMECARE - C&V,2102861033,1000080924
04.09.2018,ADULT SOCIAL CARE,LONDON CARE LTD,933.68,PHY LTS 65+,HOMECARE - C&V,2102860928,1000003398
04.09.2018,ADULT SOCIAL CARE,LONDON CARE LTD,933.96,PHY LTS 65+,HOMECARE - C&V,2102860891,1000003398
04.09.2018,ADULT SOCIAL CARE,LONDON CARE LTD,933.96,PHY LTS 65+,HOMECARE - C&V,2102860902,1000003398
04.09.2018,ADULT SOCIAL CARE,SAGECARE LTD,941.07,PHY LTS 65+,HOMECARE - C&V,2102861143,1000080924
04.09.2018,ADULT SOCIAL CARE,SAGECARE LTD,949.4,PHY LTS 65+,HOMECARE - C&V,2102861194,1000080924
04.09.2018,ADULT SOCIAL CARE,SAGECARE LTD,957.72,PHY LTS 65+,HOMECARE - C&V,2102861148,1000080924
04.09.2018,ADULT SOCIAL CARE,LONDON CARE LTD,967.07,PHY LTS 65+,HOMECARE - C&V,2102860948,1000003398
04.09.2018,ADULT SOCIAL CARE,LONDON CARE LTD,967.32,PHY LTS 65+,HOMECARE - C&V,2102860939,1000003398
04.09.2018,ADULT SOCIAL CARE,SAGECARE LTD,974.48,PHY LTS 65+,HOMECARE - C&V,2102861208,1000080924
04.09.2018,ADULT SOCIAL CARE,LONDON CARE LTD,976.66,PHY LTS 65+,HOMECARE - C&V,2102860889,1000003398
04.09.2018,ADULT SOCIAL CARE,LONDON CARE LTD,"1,000.72",PHY LTS 65+,HOMECARE - C&V,2102860792,1000003398
04.09.2018,ADULT SOCIAL CARE,SAGECARE LTD,"1,024.18",PHY LTS 65+,HOMECARE - C&V,2102861217,1000080924
04.09.2018,ADULT SOCIAL CARE,LONDON CARE LTD,"1,034.12",PHY LTS 65+,HOMECARE - C&V,2102860838,1000003398
04.09.2018,ADULT SOCIAL CARE,SAGECARE LTD,"1,040.83",PHY LTS 65+,HOMECARE - C&V,2102861135,1000080924
04.09.2018,ADULT SOCIAL CARE,SAGECARE LTD,"1,049.16",PHY LTS 65+,HOMECARE - C&V,2102861222,1000080924
04.09.2018,ADULT SOCIAL CARE,LONDON CARE LTD,"1,050.88",PHY LTS 65+,HOMECARE - C&V,2102860886,1000003398
04.09.2018,ADULT SOCIAL CARE,LONDON CARE LTD,"1,058.73",PHY LTS 65+,HOMECARE - C&V,2102860992,1000003398
04.09.2018,ADULT SOCIAL CARE,SAGECARE LTD,"1,065.60",PHY LTS 65+,HOMECARE - C&V,2102861007,1000080924
04.09.2018,ADULT SOCIAL CARE,SAGECARE LTD,"1,065.88",PHY LTS 65+,HOMECARE - C&V,2102860998,1000080924
04.09.2018,ADULT SOCIAL CARE,SAGECARE LTD,"1,065.88",PHY LTS 65+,HOMECARE - C&V,2102861137,1000080924
04.09.2018,ADULT SOCIAL CARE,SAGECARE LTD,"1,065.88",PHY LTS 65+,HOMECARE - C&V,2102861184,1000080924
04.09.2018,ADULT SOCIAL CARE,LONDON CARE LTD,"1,087.04",PHY LTS 65+,HOMECARE - C&V,2102860878,1000003398
04.09.2018,ADULT SOCIAL CARE,LONDON CARE LTD,"1,100.88",PHY LTS 65+,HOMECARE - C&V,2102860895,1000003398
04.09.2018,ADULT SOCIAL CARE,LONDON CARE LTD,"1,100.88",PHY LTS 65+,HOMECARE - C&V,2102860909,1000003398
04.09.2018,ADULT SOCIAL CARE,LONDON CARE LTD,"1,155.25",PHY LTS 65+,HOMECARE - C&V,2102860801,1000003398
04.09.2018,ADULT SOCIAL CARE,SAGECARE LTD,"1,165.92",PHY LTS 65+,HOMECARE - C&V,2102861034,1000080924
04.09.2018,ADULT SOCIAL CARE,SAGECARE LTD,"1,165.92",PHY LTS 65+,HOMECARE - C&V,2102861119,1000080924
04.09.2018,ADULT SOCIAL CARE,SAGECARE LTD,"1,182.36",PHY LTS 65+,HOMECARE - C&V,2102861120,1000080924
04.09.2018,ADULT SOCIAL CARE,SAGECARE LTD,"1,182.36",PHY LTS 65+,HOMECARE - C&V,2102861124,1000080924
04.09.2018,ADULT SOCIAL CARE,LONDON CARE LTD,"1,223.45",PHY LTS 65+,HOMECARE - C&V,2102860830,1000003398
04.09.2018,ADULT SOCIAL CARE,LONDON CARE LTD,"1,267.68",PHY LTS 65+,HOMECARE - C&V,2102860950,1000003398
04.09.2018,ADULT SOCIAL CARE,SAGECARE LTD,"1,282.40",PHY LTS 65+,HOMECARE - C&V,2102861078,1000080924
04.09.2018,ADULT SOCIAL CARE,LONDON CARE LTD,"1,300.71",PHY LTS 65+,HOMECARE - C&V,2102860924,1000003398
04.09.2018,ADULT SOCIAL CARE,LONDON CARE LTD,"1,317.22",PHY LTS 65+,HOMECARE - C&V,2102860856,1000003398
04.09.2018,ADULT SOCIAL CARE,SAGECARE LTD,"1,349.08",PHY LTS 65+,HOMECARE - C&V,2102861004,1000080924
04.09.2018,ADULT SOCIAL CARE,SAGECARE LTD,"1,399.04",PHY LTS 65+,HOMECARE - C&V,2102861154,1000080924
04.09.2018,ADULT SOCIAL CARE,SAGECARE LTD,"1,415.60",PHY LTS 65+,HOMECARE - C&V,2102861046,1000080924
04.09.2018,ADULT SOCIAL CARE,SAGECARE LTD,"1,531.82",PHY LTS 65+,HOMECARE - C&V,2102861175,1000080924
04.09.2018,ADULT SOCIAL CARE,LONDON CARE LTD,"1,634.34",PHY LTS 65+,HOMECARE - C&V,2102860922,1000003398
04.09.2018,ADULT SOCIAL CARE,LONDON CARE LTD,"1,634.64",PHY LTS 65+,HOMECARE - C&V,2102860930,1000003398
04.09.2018,ADULT SOCIAL CARE,SAGECARE LTD,"1,769.89",PHY LTS 65+,HOMECARE - C&V,2102861219,1000080924
04.09.2018,ADULT SOCIAL CARE,LONDON CARE LTD,"1,830.21",PHY LTS 65+,HOMECARE - C&V,2102860988,1000003398
04.09.2018,ADULT SOCIAL CARE,SAGECARE LTD,"1,861.30",PHY LTS 65+,HOMECARE - C&V,2102861190,1000080924
04.09.2018,ADULT SOCIAL CARE,LONDON CARE LTD,"1,984.56",PHY LTS 65+,HOMECARE - C&V,2102860894,1000003398
04.09.2018,ADULT SOCIAL CARE,SAGECARE LTD,"2,002.85",PHY LTS 65+,HOMECARE - C&V,2102861062,1000080924
04.09.2018,ADULT SOCIAL CARE,SAGECARE LTD,"2,186.31",PHY LTS 65+,HOMECARE - C&V,2102861041,1000080924
04.09.2018,ADULT SOCIAL CARE,SAGECARE LTD,"2,298.00",PHY LTS 65+,HOMECARE - C&V,2102861049,1000080924
04.09.2018,ADULT SOCIAL CARE,SAGECARE LTD,"2,331.84",PHY LTS 65+,HOMECARE - C&V,2102861022,1000080924
04.09.2018,ADULT SOCIAL CARE,SAGECARE LTD,"2,331.84",PHY LTS 65+,HOMECARE - C&V,2102861071,1000080924
04.09.2018,ADULT SOCIAL CARE,LONDON CARE LTD,"2,335.04",PHY LTS 65+,HOMECARE - C&V,2102860778,1000003398
04.09.2018,ADULT SOCIAL CARE,LONDON CARE LTD,"2,422.71",PHY LTS 65+,HOMECARE - C&V,2102860850,1000003398
04.09.2018,ADULT SOCIAL CARE,LONDON CARE LTD,"2,435.03",PHY LTS 65+,HOMECARE - C&V,2102860890,1000003398
04.09.2018,ADULT SOCIAL CARE,SAGECARE LTD,"2,452.39",PHY LTS 65+,HOMECARE - C&V,2102861187,1000080924
04.09.2018,ADULT SOCIAL CARE,SAGECARE LTD,"2,710.50",PHY LTS 65+,HOMECARE - C&V,2102861025,1000080924
04.09.2018,ADULT SOCIAL CARE,LONDON CARE LTD,"2,757.05",PHY LTS 65+,HOMECARE - C&V,2102860946,1000003398
04.09.2018,ADULT SOCIAL CARE,SAGECARE LTD,"2,764.60",PHY LTS 65+,HOMECARE - C&V,2102861089,1000080924
04.09.2018,ADULT SOCIAL CARE,SAGECARE LTD,"2,781.32",PHY LTS 65+,HOMECARE - C&V,2102861216,1000080924
04.09.2018,ADULT SOCIAL CARE,SAGECARE LTD,"2,789.70",PHY LTS 65+,HOMECARE - C&V,2102861090,1000080924
04.09.2018,ADULT SOCIAL CARE,LONDON CARE LTD,"2,793.18",PHY LTS 65+,HOMECARE - C&V,2102860885,1000003398
04.09.2018,ADULT SOCIAL CARE,SAGECARE LTD,"2,797.48",PHY LTS 65+,HOMECARE - C&V,2102861055,1000080924
04.09.2018,ADULT SOCIAL CARE,LONDON CARE LTD,"2,901.56",PHY LTS 65+,HOMECARE - C&V,2102860821,1000003398
04.09.2018,ADULT SOCIAL CARE,SAGECARE LTD,"3,030.72",PHY LTS 65+,HOMECARE - C&V,2102861093,1000080924
04.09.2018,ADULT SOCIAL CARE,LONDON CARE LTD,"3,132.15",PHY LTS 65+,HOMECARE - C&V,2102860979,1000003398
04.09.2018,ADULT SOCIAL CARE,LONDON CARE LTD,"3,401.96",PHY LTS 65+,HOMECARE - C&V,2102860846,1000003398
04.09.2018,ADULT SOCIAL CARE,SAGECARE LTD,"3,596.72",PHY LTS 65+,HOMECARE - C&V,2102861133,1000080924
04.09.2018,ADULT SOCIAL CARE,LONDON CARE LTD,266.92,PHY LTS 65+,HOMECARE - SPOT,2102860769,1000003398
04.09.2018,ADULT SOCIAL CARE,LONDON CARE LTD,416.79,PHY LTS 65+,HOMECARE - SPOT,2102860828,1000003398
04.09.2018,ADULT SOCIAL CARE,LONDON CARE LTD,438.02,PHY LTS 65+,HOMECARE - SPOT,2102860772,1000003398
04.09.2018,ADULT SOCIAL CARE,SAGECARE LTD,965.72,PHY LTS 65+,HOMECARE - SPOT,2102861109,1000080924
04.09.2018,ADULT SOCIAL CARE,LONDON CARE LTD,"1,000.56",PHY LTS 65+,HOMECARE - SPOT,2102860811,1000003398
04.09.2018,ADULT SOCIAL CARE,SAGECARE LTD,"1,093.50",PHY STS 65+,HOMECARE - IC,2102861180,1000080924
04.09.2018,ADULT SOCIAL CARE,LONDON CARE LTD,291.48,SOCIAL ISOLATION,HOMECARE - C&V,2102860863,1000003398
04.09.2018,ADULT SOCIAL CARE,LONDON CARE LTD,325.22,SOCIAL ISOLATION,HOMECARE - C&V,2102860872,1000003398
04.09.2018,ADULT SOCIAL CARE,LONDON CARE LTD,333,SOCIAL ISOLATION,HOMECARE - C&V,2102860845,1000003398
04.09.2018,ADULT SOCIAL CARE,LONDON CARE LTD,350.2,SOCIAL ISOLATION,HOMECARE - C&V,2102860869,1000003398
04.09.2018,ADULT SOCIAL CARE,SAGECARE LTD,433.16,SOCIAL ISOLATION,HOMECARE - C&V,2102861200,1000080924
04.09.2018,ADULT SOCIAL CARE,SAGECARE LTD,516.42,SOCIAL ISOLATION,HOMECARE - C&V,2102861079,1000080924
04.09.2018,ADULT SOCIAL CARE,LONDON CARE LTD,545.69,SOCIAL ISOLATION,HOMECARE - C&V,2102860947,1000003398
04.09.2018,ADULT SOCIAL CARE,SAGECARE LTD,695.07,SOCIAL ISOLATION,HOMECARE - C&V,2102861130,1000080924
04.09.2018,ADULT SOCIAL CARE,SAGECARE LTD,782.76,SOCIAL ISOLATION,HOMECARE - C&V,2102861096,1000080924
04.09.2018,ADULT SOCIAL CARE,SAGECARE LTD,"2,410.74",SOCIAL ISOLATION,HOMECARE - C&V,2102861028,1000080924
04.09.2018,ADULT SOCIAL CARE,LONDON CARE LTD,"2,334.48",SOCIAL ISOLATION,HOMECARE - SPOT,2102860957,1000003398
04.09.2018,ADULT SOCIAL CARE,CRANSTOUN,895.72,SUB LTS 18-64,RESIDENTIAL CARE,2102860759,11283784
04.09.2018,ADULT SOCIAL CARE,STREETSCENE ADDICTION RECOVERY,"3,180.00",SUB LTS 18-64,RESIDENTIAL CARE,2102860758,11221787
04.09.2018,ADULT SOCIAL CARE,STREETSCENE ADDICTION RECOVERY,"3,180.00",SUB LTS 18-64,RESIDENTIAL CARE,2102860765,11221787
04.09.2018,ADULT SOCIAL CARE,SAGECARE LTD,370.51,SUB LTS 65+,HOMECARE - C&V,2102861091,1000080924
04.09.2018,ADULT SOCIAL CARE,LONDON CARE LTD,"2,570.40",TRANSFORMING COM E,HOMECARE - C&V,5902318770,1000003398
04.09.2018,ADULT SOCIAL CARE,LONDON CARE LTD,"31,416.00",TRANSFORMING COM E,HOMECARE - C&V,5902318772,1000003398
04.09.2018,ADULT SOCIAL CARE,LONDON CARE LTD,"31,416.00",TRANSFORMING COM E,HOMECARE - C&V,5902318779,1000003398
04.09.2018,ADULT SOCIAL CARE,LONDON CARE LTD,"32,272.80",TRANSFORMING COM E,HOMECARE - C&V,5902318768,1000003398
04.09.2018,ADULT SOCIAL CARE,LONDON CARE LTD,"32,272.80",TRANSFORMING COM E,HOMECARE - C&V,5902318781,1000003398
04.09.2018,ASSET MANAGEMENT,PRB ESTATES LTD,"88,971.05",R&M CONTRACTS (SOUTH),BUILDING R&M,2102861226,3000001691
04.09.2018,CENTRAL FUNCTIONS,STANDAGE & CO LTD,"32,138.00",AYLESBURY,SECURITY SERVICES,2102861235,4002817
04.09.2018,CENTRAL FUNCTIONS,INTERSERVE (FACILITIES MANAGEMENT),"1,481.60",COMMERCIAL PROPERTIES,BUILDING R&M,2102861231,3000000166
04.09.2018,CHIEF EXECUTIVE,ANDREW WALLER,489,CAPITAL PS (REGEN),CONSTRUCTION,5902318823,1000055527
04.09.2018,CHIEF EXECUTIVE,CONWAY AECOM LTD,"7,745.30",CAPITAL PS (REGEN),CONSTR'N SUB CONTRACT - NON CERTIFICATED,5902318804,1000071205
04.09.2018,CHIEF EXECUTIVE,TREE SHEPHERD LTD,"1,440.75",CAPITAL PS (REGEN),LAND & BUILDINGS ACQUISITION FEES,5902318810,1000076895
04.09.2018,CHIEF EXECUTIVE,TREE SHEPHERD LTD,"1,440.75",CAPITAL PS (REGEN),LAND & BUILDINGS ACQUISITION FEES,5902318820,1000076895
04.09.2018,CHIEF EXECUTIVE,TREE SHEPHERD LTD,"1,440.75",CAPITAL PS (REGEN),LAND & BUILDINGS ACQUISITION FEES,5902318827,1000076895
04.09.2018,CHIEF EXECUTIVE,TREE SHEPHERD LTD,"2,038.00",CAPITAL PS (REGEN),LAND & BUILDINGS ACQUISITION FEES,5902318814,1000076895
04.09.2018,CHIEF EXECUTIVE,TREE SHEPHERD LTD,"2,038.00",CAPITAL PS (REGEN),LAND & BUILDINGS ACQUISITION FEES,5902318817,1000076895
04.09.2018,CHIEF EXECUTIVE,TREE SHEPHERD LTD,"2,038.00",CAPITAL PS (REGEN),LAND & BUILDINGS ACQUISITION FEES,5902318826,1000076895
04.09.2018,CHIEF EXECUTIVE,SHARPE PRITCHARD LLP,544,CAPITAL PS (STRAT SERV),CONSTRUCTION FEES - LEGAL,5902318756,1790085
04.09.2018,CHILDREN AND ADULT,INTERSERVE (FACILITIES MANAGEMENT),"2,817.02",CAPITAL PS (EDUCATION),CONSTRUCTION MAIN CONTRACT,2102861229,3000000166
04.09.2018,CHILDREN AND ADULT,INTERSERVE (FACILITIES MANAGEMENT),"3,275.04",CAPITAL PS (SOC SERV),CONSTRUCTION MAIN CONTRACT,2102861228,3000000166
04.09.2018,CHILDREN AND ADULT,INTERSERVE (FACILITIES MANAGEMENT),"5,458.40",CAPITAL PS (SOC SERV),CONSTRUCTION MAIN CONTRACT,2102861232,3000000166
04.09.2018,CHILDREN AND ADULT,INTERSERVE (FACILITIES MANAGEMENT),"12,196.84",CAPITAL PS (SOC SERV),CONSTRUCTION MAIN CONTRACT,2102861234,3000000166
04.09.2018,CHILDREN AND ADULT,INTERSERVE (FACILITIES MANAGEMENT),"12,762.56",CAPITAL PS (SOC SERV),CONSTRUCTION MAIN CONTRACT,2102861233,3000000166
04.09.2018,CHILDREN AND ADULT,INTERSERVE (FACILITIES MANAGEMENT),"2,343.60",CAPITAL PS (SOC SERV),CONSTRUCTION MAIN CONTRACT -CERTIFICATED,2102861227,3000000166
04.09.2018,CHILDREN'S SERVICES,WINCHMORE TUTORS LTD,300,ALTERNATIVE PROVISION,EXTERNAL AGENCIES AND BODIES,5902318780,1000075298
04.09.2018,CHILDREN'S SERVICES,WINCHMORE TUTORS LTD,480,ALTERNATIVE PROVISION,EXTERNAL AGENCIES AND BODIES,5902318767,1000075298
04.09.2018,CHILDREN'S SERVICES,WINCHMORE TUTORS LTD,960,ALTERNATIVE PROVISION,EXTERNAL AGENCIES AND BODIES,5902318789,1000075298
04.09.2018,CHILDREN'S SERVICES,WINCHMORE TUTORS LTD,"1,810.00",ALTERNATIVE PROVISION,EXTERNAL AGENCIES AND BODIES,5902318764,1000075298
04.09.2018,CHILDREN'S SERVICES,WINCHMORE TUTORS LTD,"2,080.00",ALTERNATIVE PROVISION,EXTERNAL AGENCIES AND BODIES,5902318773,1000075298
04.09.2018,CHILDREN'S SERVICES,WINCHMORE TUTORS LTD,"4,800.00",ALTERNATIVE PROVISION,EXTERNAL AGENCIES AND BODIES,5902318755,1000075298
04.09.2018,CHILDREN'S SERVICES,EAGLE HOUSE (MITCHAM) LTD T/A EAGLE HOUSE MITCHAM,"136,560.64",CASEWORK OLA  0-8,RECOUPMENT,2102859394,1000071156
04.09.2018,CHILDREN'S SERVICES,BEATRICE WEYDERT,"2,200.00",DISABILITY & HIV,PROFESSIONAL FEES,5902318795,1000034579
04.09.2018,CHILDREN'S SERVICES,EQUAL EDUCATION LTD,720,LAC EDUCATION,EXTERNAL AGENCIES AND BODIES,5902318765,1000077423
04.09.2018,CHILDREN'S SERVICES,EQUAL EDUCATION LTD,765,LAC EDUCATION,EXTERNAL AGENCIES AND BODIES,5902318769,1000077423
04.09.2018,CHILDREN'S SERVICES,FLEET TUTORS,"1,555.00",PUPIL PREMIUM CURRENT YEAR,EXTERNAL AGENCIES AND BODIES,5902318717,1000044820
04.09.2018,CHILDREN'S SERVICES,REDACTED PERSONAL DATA,-956.34,SCH TRANS - CONTRACT COST,CAR MILEAGE EXPENSES,REDACTED,REDACTED
04.09.2018,CHILDREN'S SERVICES,REDACTED PERSONAL DATA,956.34,SCH TRANS - CONTRACT COST,CAR MILEAGE EXPENSES,REDACTED,REDACTED
04.09.2018,CHILDREN'S SERVICES,BDO LLP,"2,135.00",SCHOOLS AUDIT,PAYMENTS FOR FINANCIAL SERVICES,5902318735,1000057898
04.09.2018,CHILDREN'S SERVICES,BDO LLP,"2,135.00",SCHOOLS AUDIT,PAYMENTS FOR FINANCIAL SERVICES,5902318743,1000057898
04.09.2018,CHILDREN'S SERVICES,VEOLIA ES (UK)LTD,250.2,SOUTH BERMONDSEY CHILDRENS & PARENTS CNT,WASTE DISPOSAL CONTRACT,5902318726,1824835
04.09.2018,COMMISSIONING & CENTRAL,THAMES REACH,"75,123.50",SUPPORTING PEOPLE,EXTERNAL AGENCIES AND BODIES,5902318794,1723415
04.09.2018,COMMUNITIES,REDACTED PERSONAL DATA,"9,510.00",NO RECOURSE TO PUBLIC FUNDS,ACCOMMODATION CHARGES,REDACTED,REDACTED
04.09.2018,COMMUNITIES,LONDON CARE LTD,"1,284.16",NO RECOURSE TO PUBLIC FUNDS,NATIONAL ASSISTANCE,2102860967,1000003398
04.09.2018,CUSTOMER EXPERIENCE HGF,SITTRA LTD,"30,160.70",NIGHTLY TA (NSC),EXTERNAL AGENCIES AND BODIES,5902316656,1000080857
04.09.2018,ENVIRONMENT AND LEISURE,FLEXIFORM BUSINESS FURNITURE LIMITED,508.33,CAPITAL PS (LEISURE),CONST'N MAIN CONTRACT - NON CERTIFICATED,5902318720,1000043435
04.09.2018,ENVIRONMENT AND LEISURE,CYCLEHOOP LTD,"3,409.90",CAPITAL PS (LEISURE),CONST'N MAIN CONTRACT - NON CERTIFICATED,5902318824,1000057894
04.09.2018,ENVIRONMENT AND LEISURE,TGMS LTD,560,CAPITAL PS (LEISURE),CONSTRUCTION FEES,5902318802,1000066904
04.09.2018,ENVIRONMENT AND LEISURE,APPLEYARD & TREW,"4,500.00",CAPITAL PS (LEISURE),CONSTRUCTION FEES  - EXTERNAL,5902318797,1000029065
04.09.2018,ENVIRONMENT DIRECTORATE,PERFORMANCE CHEMICALS LTD,579.8,ESTATE CLEANING-GENERAL,MATERIALS,5902318711,1000037129
04.09.2018,ENVIRONMENT DIRECTORATE,LIGHTING REALITY LTD,690,HIGHWAY LIGHTING OVERHEADS,SUBSCRIPTIONS,5902318714,1000030576
04.09.2018,ENVIRONMENT DIRECTORATE,BELL BRUSH COMPANY,801.5,MANAGEMENT TEAM,MATERIALS,5902318746,1259776
04.09.2018,ENVIRONMENT DIRECTORATE,KILLGERM CHEMICALS LTD,320.35,PEST CONTROL,MATERIALS,5902318818,1000045706
04.09.2018,ENVIRONMENT DIRECTORATE,A & H PEST CONTROL LTD,"1,590.00",PEST CONTROL,OTHER CONTRACTORS,5902318819,11230875
04.09.2018,ENVIRONMENT DIRECTORATE,KYBOCORP LTD,780,PEST CONTROL,SOFTWARE,5902318811,1000074513
04.09.2018,ENVIRONMENT DIRECTORATE,TFL TELESALES / OYSTER FULFILMENT,420,PROJECT SUPPORT,PUBLIC TRANSPORT,5902318710,1000059727
04.09.2018,ENVIRONMENT DIRECTORATE,URBIS SCHREDER LTD,"10,084.80",PUBLIC LIGHTING,MATERIALS,5902318712,1087958
04.09.2018,ENVIRONMENT DIRECTORATE,URBIS SCHREDER LTD,"13,696.65",PUBLIC LIGHTING,MATERIALS,5902318712,1087958
04.09.2018,ENVIRONMENT DIRECTORATE,REDFORD CHARLES LTD,"2,625.00",PUBLIC LIGHTING,TRAINING,5902318715,1000060421
04.09.2018,ENVIRONMENT DIRECTORATE,REDFORD CHARLES LTD,"2,625.00",PUBLIC LIGHTING,TRAINING,5902318716,1000060421
04.09.2018,ENVIRONMENT DIRECTORATE,CRAMPTON PRIMARY SCHOOL,"1,000.00","ROAD SAFETY EDUCATION,TRAINING&PUBLICITY",PROFESSIONAL FEES,5902318713,5001000023
04.09.2018,ENVIRONMENT DIRECTORATE,KENT COUNTY COUNCIL - LASER,305.31,SANDGATE STREET,GAS,5902318744,1000012926
04.09.2018,ENVIRONMENT DIRECTORATE,KENT COUNTY COUNCIL - LASER,779.37,SANDGATE STREET,GAS,5902318745,1000012926
04.09.2018,ENVIRONMENT DIRECTORATE,ELLIOT ENVIRONMENTAL LTD,400,STREET CLEANING-GENERAL,OTHER CONTRACTORS,5902318719,1000047392
04.09.2018,F & C S EXCLUDING CORPORATE BUDGETS,CAPITA BUSINESS SERVICES LTD,"3,434.46",CAPITA,OTHER CONTRACTORS,5902318721,1000049446
04.09.2018,F & C S EXCLUDING CORPORATE BUDGETS,BDO LLP,431.25,INTERNAL AUDIT CONTRACTS,PAYMENTS FOR FINANCIAL SERVICES,5902318735,1000057898
04.09.2018,F & C S EXCLUDING CORPORATE BUDGETS,BDO LLP,431.25,INTERNAL AUDIT CONTRACTS,PAYMENTS FOR FINANCIAL SERVICES,5902318743,1000057898
04.09.2018,F & C S EXCLUDING CORPORATE BUDGETS,BDO LLP,"19,471.00",INTERNAL AUDIT CONTRACTS,PAYMENTS FOR FINANCIAL SERVICES,5902318735,1000057898
04.09.2018,F & C S EXCLUDING CORPORATE BUDGETS,BDO LLP,"19,471.00",INTERNAL AUDIT CONTRACTS,PAYMENTS FOR FINANCIAL SERVICES,5902318743,1000057898
04.09.2018,HOUSING & MODERNISATION,METRO CENTRE LTD,750,VCS GRANTS,OTHER CONTRACTORS,5902318805,1000073797
04.09.2018,HOUSING & MODERNISATION,SPORTING RECOVERY CIC,998,VCS GRANTS,OTHER CONTRACTORS,5902318800,1000080008
04.09.2018,HOUSING & MODERNISATION,THEATRE PECKHAM,"1,000.00",VCS GRANTS,OTHER CONTRACTORS,5902318798,1071668
04.09.2018,HOUSING GENERAL FUND,INTERSERVE (FACILITIES MANAGEMENT),"50,221.45",CAPITAL PS (REGEN),CONSTRUCTION,2102861230,3000000166
04.09.2018,HOUSING HRA,SOUTHWARK NEWSPAPER LTD,252,CAPITAL PS (HRA),CONSTRUCTION FEES  - EXTERNAL,5902318728,1556957
04.09.2018,HOUSING HRA,CALFORD SEADEN LLP,"1,450.40",CAPITAL PS (HRA),CONSTRUCTION FEES  - EXTERNAL,5902318757,1061592
04.09.2018,HOUSING HRA,CALFORD SEADEN LLP,"4,218.90",CAPITAL PS (HRA),CONSTRUCTION FEES  - EXTERNAL,5902318754,1061592
04.09.2018,HOUSING HRA,CALFORD SEADEN LLP,"5,000.00",CAPITAL PS (HRA),CONSTRUCTION FEES  - EXTERNAL,5902318763,1061592
04.09.2018,HOUSING HRA,WAVERLEY CONTRACT & SUPPLY LTD,"9,640.84",CAPITAL PS (HRA),CONSTRUCTION FEES  - EXTERNAL,5902318748,1000076678
04.09.2018,HOUSING HRA,CALFORD SEADEN LLP,"10,000.00",CAPITAL PS (HRA),CONSTRUCTION FEES  - EXTERNAL,5902318828,1061592
04.09.2018,HOUSING HRA,WAVERLEY CONTRACT & SUPPLY LTD,"11,000.53",CAPITAL PS (HRA),CONSTRUCTION FEES  - EXTERNAL,5902318729,1000076678
04.09.2018,HOUSING HRA,STANBURY BUILDING SERVICES LTD,295,CAPITAL PS (HRA),CONSTRUCTION MAIN CONTRACT -CERTIFICATED,5902318722,1000078207
04.09.2018,LEISURE DIRECTORATE,TELESHORE UK LTD,412,CEMETERIES,GROUNDS MAINTENANCE,5902318807,1000075290
04.09.2018,LEISURE DIRECTORATE,STANBURY BUILDING SERVICES LTD,545,CEMETERIES,OTHER CONTRACTORS,5902318790,1000078207
04.09.2018,LEISURE DIRECTORATE,STANBURY BUILDING SERVICES LTD,545,CEMETERIES,OTHER CONTRACTORS,5902318793,1000078207
04.09.2018,LEISURE DIRECTORATE,WESTMINSTER WASTE,600,CEMETERIES,OTHER CONTRACTORS,5902318783,1000080933
04.09.2018,LEISURE DIRECTORATE,KEITON LTD,720,TREES PRINCIPAL ROADS,OTHER CONTRACTORS,5902318774,1000080780
04.09.2018,MODERNISATION HGF,BLACK AND WHITE TRADING LTD,399,HR PAYROLL COSTS,TRAINING,5902318787,1000072187
04.09.2018,MODERNISATION HGF,SHL UK LTD,553.5,OCCUPATIONAL ASSESSMENT,CONSULTANTS SERVICES,5902318723,1050652
04.09.2018,RESIDENT SERVICES,EDF ENERGY PLC,251.73,OPERATIONS/OFFICES ACCOMMODATION,ELECTRICITY,5902318791,1008746
04.09.2018,RESIDENT SERVICES,KENT COUNTY COUNCIL - LASER,501.35,TA HOSTELS,ELECTRICITY,5902318740,1000012926
04.09.2018,RESIDENT SERVICES,CITYGLEN LTD,423,TA PLACEMENTS,EXTERNAL AGENCIES AND BODIES,5902318751,1000026239
04.09.2018,RESIDENT SERVICES,CITYGLEN LTD,557,TA PLACEMENTS,EXTERNAL AGENCIES AND BODIES,5902318751,1000026239
04.09.2018,RESIDENT SERVICES HGF,KENT COUNTY COUNCIL - LASER,414.67,DEVONSHIRE ROAD,ELECTRICITY,5902318739,1000012926
05.09.2018,ADULT SOCIAL CARE,LONDON CARE LTD,"26,811.17",EXTRA CARE CONTRACT,HOMECARE - C&V,5902318833,1000003398
05.09.2018,ADULT SOCIAL CARE,LONDON CARE LTD,"39,818.57",EXTRA CARE CONTRACT,HOMECARE - C&V,5902318849,1000003398
05.09.2018,ADULT SOCIAL CARE,LONDON CARE LTD,"56,137.20",EXTRA CARE CONTRACT,HOMECARE - C&V,5902318834,1000003398
05.09.2018,ADULT SOCIAL CARE,KENT COUNTY COUNCIL - LASER,277.39,FRED FRANCIS CENTRE,ELECTRICITY,5902318829,1000012926
05.09.2018,ADULT SOCIAL CARE,CAMBRIDGE HOUSE & TALBOT,"12,439.98",INDEPENDENT MC ADVOCACY,EXTERNAL AGENCIES AND BODIES,5902318871,1139414
05.09.2018,ADULT SOCIAL CARE,METRO HOMECARE LTD,448.18,PHY LTS 65+,HOMECARE - C&V,2102860744,1000070695
05.09.2018,ADULT SOCIAL CARE,METRO HOMECARE LTD,434.39,PHY LTS 65+,HOMECARE - SPOT,2102860754,1000070695
05.09.2018,ADULT SOCIAL CARE,METRO HOMECARE LTD,455.07,PHY LTS 65+,HOMECARE - SPOT,2102860755,1000070695
05.09.2018,ADULT SOCIAL CARE,METRO HOMECARE LTD,386.12,PHY STS 65+,HOMECARE - IC,2102860752,1000070695
05.09.2018,ADULT SOCIAL CARE,METRO HOMECARE LTD,434.39,PHY STS 65+,HOMECARE - IC,2102860753,1000070695
05.09.2018,ADULT SOCIAL CARE,METRO HOMECARE LTD,434.39,PHY STS 65+,HOMECARE - IC,2102860757,1000070695
05.09.2018,ASSET MANAGEMENT,STANNAH LIFT SERVICES LTD,"5,681.00",ADAPTATIONS,BUILDING R&M,5902318884,1063595
05.09.2018,ASSET MANAGEMENT,JGP RESOURCING LTD,"5,751.00",ENG CONTRACTS,PROFESSIONAL FEES,5902318830,1000067655
05.09.2018,ASSET MANAGEMENT,T BROWN & SONS (HEATING) LTD,"3,907.44",ENG CONTRACTS (NORTH),PLANNED MAINTENANCE,5902318843,1000040191
05.09.2018,CHIEF EXECUTIVE,STANDAGE & CO LTD,"23,936.64",CAPITAL PS (REGEN),CONSTRUCTION MAIN CONTRACT -CERTIFICATED,5902318901,11223389
05.09.2018,CHIEF EXECUTIVE,TREE SHEPHERD LTD,"2,038.00",CAPITAL PS (REGEN),LAND & BUILDINGS ACQUISITION FEES,5902318835,1000076895
05.09.2018,CHILDREN AND ADULT,HERBERT CONSULTING LIMITED,"7,000.00",CAPITAL PS (STRAT SERV),ICT ACQUISITION,5902318870,1000062551
05.09.2018,CHILDREN'S SERVICES,REDACTED PERSONAL DATA,254.5,CARE GRPS  1 TO 3,OTHER PAYMENTS FOR CLIENTS,REDACTED,REDACTED
05.09.2018,CHILDREN'S SERVICES,REVIVAL,825,CENTRAL SUPPORT,OTHER PAYMENTS FOR CLIENTS,5902318920,1000027424
05.09.2018,CHILDREN'S SERVICES,COMPANY OF COOKS,932.99,REGIONAL ADOPTION AGENCY,EXTERNAL AGENCIES AND BODIES,5902315720,1000059519
05.09.2018,CHILDREN'S SERVICES,REDACTED PERSONAL DATA,263.96,RESIDENCE ORDERS,PAYMENTS TO CARERS,REDACTED,REDACTED
05.09.2018,CHILDREN'S SERVICES,REDACTED PERSONAL DATA,264.16,RESIDENCE ORDERS,PAYMENTS TO CARERS,REDACTED,REDACTED
05.09.2018,CHILDREN'S SERVICES,REDACTED PERSONAL DATA,269.08,RESIDENCE ORDERS,PAYMENTS TO CARERS,REDACTED,REDACTED
05.09.2018,CHILDREN'S SERVICES,REDACTED PERSONAL DATA,269.08,RESIDENCE ORDERS,PAYMENTS TO CARERS,REDACTED,REDACTED
05.09.2018,CHILDREN'S SERVICES,REDACTED PERSONAL DATA,269.08,RESIDENCE ORDERS,PAYMENTS TO CARERS,REDACTED,REDACTED
05.09.2018,CHILDREN'S SERVICES,REDACTED PERSONAL DATA,276.1,RESIDENCE ORDERS,PAYMENTS TO CARERS,REDACTED,REDACTED
05.09.2018,CHILDREN'S SERVICES,REDACTED PERSONAL DATA,289.6,SCH TRANS - CONTRACT COST,CAR MILEAGE EXPENSES,REDACTED,REDACTED
05.09.2018,CHILDREN'S SERVICES,REDACTED PERSONAL DATA,272,SCH TRANS - CONTRACT COST,OTHER PAYMENTS FOR CLIENTS,REDACTED,REDACTED
05.09.2018,CHILDREN'S SERVICES,REDACTED PERSONAL DATA,300,SCH TRANS - CONTRACT COST,OTHER PAYMENTS FOR CLIENTS,REDACTED,REDACTED
05.09.2018,CHILDREN'S SERVICES,REDACTED PERSONAL DATA,416,SCH TRANS - CONTRACT COST,OTHER PAYMENTS FOR CLIENTS,REDACTED,REDACTED
05.09.2018,CHILDREN'S SERVICES,REDACTED PERSONAL DATA,635.6,SCH TRANS - CONTRACT COST,OTHER PAYMENTS FOR CLIENTS,REDACTED,REDACTED
05.09.2018,CHILDREN'S SERVICES,REDACTED PERSONAL DATA,648,SCH TRANS - CONTRACT COST,OTHER PAYMENTS FOR CLIENTS,REDACTED,REDACTED
05.09.2018,CHILDREN'S SERVICES,REDACTED PERSONAL DATA,792,SCH TRANS - CONTRACT COST,OTHER PAYMENTS FOR CLIENTS,REDACTED,REDACTED
05.09.2018,CHILDREN'S SERVICES,REDACTED PERSONAL DATA,"1,020.00",SCH TRANS - CONTRACT COST,OTHER PAYMENTS FOR CLIENTS,REDACTED,REDACTED
05.09.2018,CHILDREN'S SERVICES,SILVER BIRCH CARE LTD,"1,500.00",SEMI INDEPENDENT,EXTERNAL AGENCIES AND BODIES,5902318909,1000076525
05.09.2018,CHILDREN'S SERVICES,REDACTED PERSONAL DATA,268.36,SPECIAL GUARDIANSHIP,PAYMENTS TO CARERS,REDACTED,REDACTED
05.09.2018,CHILDREN'S SERVICES,REDACTED PERSONAL DATA,269.08,SPECIAL GUARDIANSHIP,PAYMENTS TO CARERS,REDACTED,REDACTED
05.09.2018,CHILDREN'S SERVICES,REDACTED PERSONAL DATA,269.08,SPECIAL GUARDIANSHIP,PAYMENTS TO CARERS,REDACTED,REDACTED
05.09.2018,CHILDREN'S SERVICES,REDACTED PERSONAL DATA,269.08,SPECIAL GUARDIANSHIP,PAYMENTS TO CARERS,REDACTED,REDACTED
05.09.2018,CHILDREN'S SERVICES,REDACTED PERSONAL DATA,276.1,SPECIAL GUARDIANSHIP,PAYMENTS TO CARERS,REDACTED,REDACTED
05.09.2018,CHILDREN'S SERVICES,REDACTED PERSONAL DATA,303.97,SPECIAL GUARDIANSHIP,PAYMENTS TO CARERS,REDACTED,REDACTED
05.09.2018,CHILDREN'S SERVICES,REDACTED PERSONAL DATA,342.45,SPECIAL GUARDIANSHIP,PAYMENTS TO CARERS,REDACTED,REDACTED
05.09.2018,CHILDREN'S SERVICES,REDACTED PERSONAL DATA,343.05,SPECIAL GUARDIANSHIP,PAYMENTS TO CARERS,REDACTED,REDACTED
05.09.2018,CHILDREN'S SERVICES,REDACTED PERSONAL DATA,356.15,SPECIAL GUARDIANSHIP,PAYMENTS TO CARERS,REDACTED,REDACTED
05.09.2018,CHILDREN'S SERVICES,REDACTED PERSONAL DATA,389.34,SPECIAL GUARDIANSHIP,PAYMENTS TO CARERS,REDACTED,REDACTED
05.09.2018,CHILDREN'S SERVICES,REDACTED PERSONAL DATA,403.04,SPECIAL GUARDIANSHIP,PAYMENTS TO CARERS,REDACTED,REDACTED
05.09.2018,CHILDREN'S SERVICES,REDACTED PERSONAL DATA,525,SPECIAL GUARDIANSHIP,PAYMENTS TO CARERS,REDACTED,REDACTED
05.09.2018,CHILDREN'S SERVICES,REDACTED PERSONAL DATA,525,SPECIAL GUARDIANSHIP,PAYMENTS TO CARERS,REDACTED,REDACTED
05.09.2018,CHILDREN'S SERVICES,REDACTED PERSONAL DATA,525,SPECIAL GUARDIANSHIP,PAYMENTS TO CARERS,REDACTED,REDACTED
05.09.2018,CHILDREN'S SERVICES,SILVER BIRCH CARE LTD,"1,600.00",UASC SECTION 24,EXTERNAL AGENCIES AND BODIES,5902318909,1000076525
05.09.2018,CHILDREN'S SERVICES,FUTURE FOUNDATIONS LTD,"1,722.71",UASC SECTION 24,EXTERNAL AGENCIES AND BODIES,5902318896,1000063272
05.09.2018,CHILDREN'S SERVICES,LONDON BUBBLE THEATRE COMPANY,"1,286.00",YOS SUPPORT,EXTERNAL AGENCIES AND BODIES,5902318921,11022517
05.09.2018,CUSTOMER EXPERIENCE,MORGAN HUNT LTD,"1,629.45",HOUSING REPAIRS TEAM,MISCELLANEOUS EXPENSES,5902318558,1000030386
05.09.2018,CUSTOMER EXPERIENCE,MORGAN HUNT LTD,"1,629.45",HOUSING REPAIRS TEAM,MISCELLANEOUS EXPENSES,5902318569,1000030386
05.09.2018,CUSTOMER EXPERIENCE,MORGAN HUNT LTD,"1,752.08",HOUSING REPAIRS TEAM,MISCELLANEOUS EXPENSES,5902318556,1000030386
05.09.2018,CUSTOMER EXPERIENCE,MORGAN HUNT LTD,"1,752.08",HOUSING REPAIRS TEAM,MISCELLANEOUS EXPENSES,5902318559,1000030386
05.09.2018,CUSTOMER EXPERIENCE,MORGAN HUNT LTD,"1,752.08",HOUSING REPAIRS TEAM,MISCELLANEOUS EXPENSES,5902318561,1000030386
05.09.2018,CUSTOMER EXPERIENCE,MORGAN HUNT LTD,"1,752.08",HOUSING REPAIRS TEAM,MISCELLANEOUS EXPENSES,5902318564,1000030386
05.09.2018,CUSTOMER EXPERIENCE,MORGAN HUNT LTD,"1,752.08",HOUSING REPAIRS TEAM,MISCELLANEOUS EXPENSES,5902318566,1000030386
05.09.2018,CUSTOMER EXPERIENCE,MORGAN HUNT LTD,"1,752.08",HOUSING REPAIRS TEAM,MISCELLANEOUS EXPENSES,5902318571,1000030386
05.09.2018,CUSTOMER EXPERIENCE HGF,LODGISTICS ESTATES,"2,510.97",PSL PLACEMENTS,EXTERNAL AGENCIES AND BODIES,5902318832,1000080324
05.09.2018,CUSTOMER EXPERIENCE HGF,OAK HOUSING LTD,"2,538.28",PSL PLACEMENTS,EXTERNAL AGENCIES AND BODIES,5902318831,1000079310
05.09.2018,CUSTOMER EXPERIENCE HGF,TEC SERVICES ASSOCIATION C.I.C.,"1,230.00",SMART MOBILE RESPONSE TEAM,SUBSCRIPTIONS,5902318337,1000050295
05.09.2018,ENVIRONMENT AND LEISURE,PICK EVERARD,"1,185.50",CAPITAL PS (LEISURE),CONSTRUCTION FEES  - EXTERNAL,5902318907,1000077395
05.09.2018,ENVIRONMENT AND LEISURE,CONWAY AECOM LTD,"2,758.44",CAPITAL PS (LEISURE),CONSTRUCTION FEES  - EXTERNAL,5902318859,1000071205
05.09.2018,ENVIRONMENT AND LEISURE,BIKEAWAY,"3,570.00",CAPITAL PS (LEISURE),CONSTRUCTION FEES  - EXTERNAL,5902318911,1000036918
05.09.2018,F & C S EXCLUDING CORPORATE BUDGETS,NORTHGATE PUBLIC SERVICES (UK) LTD,277.61,ADMINISTRATIVE SUPPORT,POSTAGES,5902318869,1000037405
05.09.2018,F & C S EXCLUDING CORPORATE BUDGETS,NORTHGATE PUBLIC SERVICES (UK) LTD,"3,795.00",ADMINISTRATIVE SUPPORT,SOFTWARE,5902318908,1000037405
05.09.2018,F & C S EXCLUDING CORPORATE BUDGETS,NORTHGATE PUBLIC SERVICES (UK) LTD,"8,625.00",ADMINISTRATIVE SUPPORT,SOFTWARE,5902318883,1000037405
05.09.2018,F & C S EXCLUDING CORPORATE BUDGETS,COMMUNITY SOUTHWARK,"50,000.00",SESS,EXTERNAL AGENCIES AND BODIES,5902318906,1000018147
05.09.2018,HOUSING & MODERNISATION,RESTORATIVE JUSTICE FOR ALL,500,VCS GRANTS,OTHER CONTRACTORS,5902318887,1000081455
05.09.2018,HOUSING & MODERNISATION,SOUTH LONDON GALLERY,720,VCS GRANTS,OTHER CONTRACTORS,5902318905,11011694
05.09.2018,HOUSING & MODERNISATION,NUNHEADS VOICE LTD,750,VCS GRANTS,OTHER CONTRACTORS,5902318890,1000053009
05.09.2018,HOUSING & MODERNISATION,BLUE ELEPHANT THEATRE LTD,750,VCS GRANTS,OTHER CONTRACTORS,5902318893,1000015417
05.09.2018,HOUSING HRA,L H BRIDGE LTD,"7,565.00",CAPITAL PS (HRA),CONST'N MAIN CONTRACT - NON CERTIFICATED,2102861237,3000001167
05.09.2018,HOUSING HRA,MITIE PROPERTY SERVICES (UK) LTD,"39,878.53",CAPITAL PS (HRA),CONSTRUCTION MAIN CONTRACT -CERTIFICATED,2102861238,4010766
05.09.2018,HOUSING HRA,MOTT MACDONALD LTD,"4,982.00",CAPITAL PS (HRA),CONSTRUCTION SITE COSTS,5902318913,1000067305
05.09.2018,HOUSING HRA,GUIDELINE LIFT SERVICES LTD,47948.04,GUIDELINE,MANUAL CREDITORS,5902318860,1000064176
05.09.2018,HOUSING HRA,KENT COUNTY COUNCIL - LASER,"26,956.11",RESIDENT SERVICES BUSINESS SUPPORT,ELECTRICITY,6101849103,DIRECT DEBIT PAYMENT
05.09.2018,HOUSING HRA,KENT COUNTY COUNCIL - LASER,"71,322.07",RESIDENT SERVICES BUSINESS SUPPORT,ELECTRICITY,6101849104,DIRECT DEBIT PAYMENT
05.09.2018,LEISURE DIRECTORATE,WESTMINSTER WASTE,647,CEMETERIES,OTHER CONTRACTORS,5902318788,1000080933
05.09.2018,LEISURE DIRECTORATE,TELESHORE UK LTD,266.25,CREMATORIUM,MATERIALS,5902318856,1000075290
05.09.2018,LEISURE DIRECTORATE,TELESHORE UK LTD,445,CREMATORIUM,MATERIALS,5902318858,1000075290
05.09.2018,LEISURE DIRECTORATE,CONSTANTINE LIMITED,467.53,HERITAGE,OTHER CONTRACTORS,5902318880,11202702
05.09.2018,LEISURE DIRECTORATE,CONSTANTINE LIMITED,"3,472.30",HERITAGE,OTHER CONTRACTORS,5902318881,11202702
05.09.2018,LEISURE DIRECTORATE,DENIS MCMILLAN,300,PLAY SERVICE MANAGEMENT & ADMIN,PROFESSIONAL FEES,5902318872,1000006604
05.09.2018,LEISURE DIRECTORATE,INCENTIVE QAS LTD,"1,330.17",TEMPORARY NEWINGTON,PREMISES CLEANING,5902318899,1000074675
05.09.2018,MODERNISATION HGF,ASSESSMENT & DEVELOPMENT,498.2,OCCUPATIONAL ASSESSMENT,EQUIPMENT PURCHASE & REPAIR,5902318839,1000008858
05.09.2018,PLANNING AND TRANSPORT,FAITHFUL & GOULD,"46,476.22",PECKHAM TOWNSCAPE HERITAGE INITIATIVE,PROFESSIONAL FEES,5902318915,1000061390
05.09.2018,REGENERATION,HANNAH MAULE-FFINCH,500,MASTER PLAN-H/WAY & TRANS INTERCHANGE,MARKETING & PUBLICITY SERVICES,5902318882,1000034725
05.09.2018,REGENERATION,WIBBLY WOBBLY WEBSITE,900,OKR MASTER PLANNING,PROFESSIONAL FEES,5902318868,1000081004
05.09.2018,RESIDENT SERVICES,RELIANCE HIGH-TECH LTD,"1,597.20",OPERATIONS/OFFICES ACCOMMODATION,MEDICAL / HEALTH & SAFETY SERVICES,5902318900,1000079374
05.09.2018,RESIDENT SERVICES,ARGOS BUSINESS SOLUTIONS LTD,440.9,SHELTERED NORTH,FURNITURE PURCHASE & REPAIR,5902318910,1000001734
05.09.2018,RESIDENT SERVICES,SOUTH OF THE RIVER INVESTMENTS LTD,"1,904.00",TA PLACEMENTS,EXTERNAL AGENCIES AND BODIES,5902318844,1000073638
05.09.2018,REVENUES AND BENEFITS,PINSENT MASONS LLP,"2,192.00",PENSIONS,PAYMENTS FOR LEGAL SERVICES,5902318848,1000046862
05.09.2018,REVENUES AND BENEFITS,PINSENT MASONS LLP,"2,304.00",PENSIONS,PAYMENTS FOR LEGAL SERVICES,5902318847,1000046862
05.09.2018,SUSTAINABILITY & BUSINESS DEVELOPMENT,CANADA WATER CULTURE SPACE,"1,508.00",STRATEGIC DIRECTOR'S OFFICE E AND L,OTHER SUBSISTENCE & CONFERENCE EXPENSES,5902318876,1000075539
06.09.2018,ADULT SOCIAL CARE,REDACTED PERSONAL DATA,332.4,APPOINTEESHIPS,OTHER PAYMENTS FOR CLIENTS,REDACTED,REDACTED
06.09.2018,ADULT SOCIAL CARE,REDACTED PERSONAL DATA,400,APPOINTEESHIPS,OTHER PAYMENTS FOR CLIENTS,REDACTED,REDACTED
06.09.2018,ADULT SOCIAL CARE,GENIUS WITHIN CIC,"1,320.00",ASC OP NORTH TEAM,TRAINING,5902319006,1000081507
06.09.2018,ADULT SOCIAL CARE,ACCESS MOBILITY TRANSPORT LTD,"2,393.60",LD LTS 18-64,CLIENT TRANSPORT,2102861639,1000074637
06.09.2018,ADULT SOCIAL CARE,LONDON CARE LTD,266.4,LD LTS 18-64,HOMECARE - C&V,2102861649,1000003398
06.09.2018,ADULT SOCIAL CARE,LONDON CARE LTD,266.4,LD LTS 18-64,HOMECARE - C&V,2102861657,1000003398
06.09.2018,ADULT SOCIAL CARE,LONDON CARE LTD,899.1,LD LTS 18-64,HOMECARE - C&V,2102861651,1000003398
06.09.2018,ADULT SOCIAL CARE,LONDON CARE LTD,915.75,LD LTS 18-64,HOMECARE - C&V,2102861661,1000003398
06.09.2018,ADULT SOCIAL CARE,INSPIRE SUPPORT WORKERS LTD,624,LD LTS 18-64,HOMECARE - SPOT,2102861683,1000080725
06.09.2018,ADULT SOCIAL CARE,LONDON CARE LTD,"6,260.68",LD LTS 65+,HOMECARE - C&V,2102861921,1000003398
06.09.2018,ADULT SOCIAL CARE,LONDON CARE LTD,324.78,MEM LTS 65+,HOMECARE - C&V,2102861877,1000003398
06.09.2018,ADULT SOCIAL CARE,LONDON CARE LTD,707.66,MEM LTS 65+,HOMECARE - C&V,2102861761,1000003398
06.09.2018,ADULT SOCIAL CARE,SUPREME CARE SERVICES LTD,851.72,MEM LTS 65+,HOMECARE - C&V,2102861972,1000059416
06.09.2018,ADULT SOCIAL CARE,LONDON CARE LTD,882.53,MEM LTS 65+,HOMECARE - C&V,2102861867,1000003398
06.09.2018,ADULT SOCIAL CARE,SUPREME CARE SERVICES LTD,"1,030.63",MEM LTS 65+,HOMECARE - C&V,2102861979,1000059416
06.09.2018,ADULT SOCIAL CARE,OASIS CARE AND TRAINING AGENCY,386.12,MH LTS 18-64,SUPPORTED LIVING,2102861681,1000003687
06.09.2018,ADULT SOCIAL CARE,LONDON CARE LTD,333,MH LTS 65+,HOMECARE - C&V,2102861717,1000003398
06.09.2018,ADULT SOCIAL CARE,LONDON CARE LTD,882.8,MH LTS 65+,HOMECARE - C&V,2102861803,1000003398
06.09.2018,ADULT SOCIAL CARE,LONDON CARE LTD,258.19,PHY LTS 18-64,HOMECARE - C&V,2102861659,1000003398
06.09.2018,ADULT SOCIAL CARE,SUPREME CARE SERVICES LTD,263.04,PHY LTS 18-64,HOMECARE - C&V,2102861959,1000059416
06.09.2018,ADULT SOCIAL CARE,LONDON CARE LTD,266.4,PHY LTS 18-64,HOMECARE - C&V,2102861755,1000003398
06.09.2018,ADULT SOCIAL CARE,LONDON CARE LTD,266.52,PHY LTS 18-64,HOMECARE - C&V,2102861663,1000003398
06.09.2018,ADULT SOCIAL CARE,LONDON CARE LTD,266.52,PHY LTS 18-64,HOMECARE - C&V,2102861929,1000003398
06.09.2018,ADULT SOCIAL CARE,LONDON CARE LTD,312.25,PHY LTS 18-64,HOMECARE - C&V,2102861787,1000003398
06.09.2018,ADULT SOCIAL CARE,LONDON CARE LTD,349.72,PHY LTS 18-64,HOMECARE - C&V,2102861813,1000003398
06.09.2018,ADULT SOCIAL CARE,LONDON CARE LTD,349.72,PHY LTS 18-64,HOMECARE - C&V,2102861851,1000003398
06.09.2018,ADULT SOCIAL CARE,LONDON CARE LTD,366.4,PHY LTS 18-64,HOMECARE - C&V,2102861927,1000003398
06.09.2018,ADULT SOCIAL CARE,LONDON CARE LTD,366.44,PHY LTS 18-64,HOMECARE - C&V,2102861647,1000003398
06.09.2018,ADULT SOCIAL CARE,LONDON CARE LTD,366.44,PHY LTS 18-64,HOMECARE - C&V,2102861665,1000003398
06.09.2018,ADULT SOCIAL CARE,SUPREME CARE SERVICES LTD,372.16,PHY LTS 18-64,HOMECARE - C&V,2102861977,1000059416
06.09.2018,ADULT SOCIAL CARE,LONDON CARE LTD,399.67,PHY LTS 18-64,HOMECARE - C&V,2102861721,1000003398
06.09.2018,ADULT SOCIAL CARE,LONDON CARE LTD,416.32,PHY LTS 18-64,HOMECARE - C&V,2102861653,1000003398
06.09.2018,ADULT SOCIAL CARE,LONDON CARE LTD,453.79,PHY LTS 18-64,HOMECARE - C&V,2102861905,1000003398
06.09.2018,ADULT SOCIAL CARE,LONDON CARE LTD,503.67,PHY LTS 18-64,HOMECARE - C&V,2102861917,1000003398
06.09.2018,ADULT SOCIAL CARE,SUPREME CARE SERVICES LTD,529.63,PHY LTS 18-64,HOMECARE - C&V,2102861964,1000059416
06.09.2018,ADULT SOCIAL CARE,LONDON CARE LTD,532.8,PHY LTS 18-64,HOMECARE - C&V,2102861693,1000003398
06.09.2018,ADULT SOCIAL CARE,SUPREME CARE SERVICES LTD,584.52,PHY LTS 18-64,HOMECARE - C&V,2102861966,1000059416
06.09.2018,ADULT SOCIAL CARE,LONDON CARE LTD,632.92,PHY LTS 18-64,HOMECARE - C&V,2102861667,1000003398
06.09.2018,ADULT SOCIAL CARE,LONDON CARE LTD,637.07,PHY LTS 18-64,HOMECARE - C&V,2102861923,1000003398
06.09.2018,ADULT SOCIAL CARE,LONDON CARE LTD,682.88,PHY LTS 18-64,HOMECARE - C&V,2102861669,1000003398
06.09.2018,ADULT SOCIAL CARE,LONDON CARE LTD,691.12,PHY LTS 18-64,HOMECARE - C&V,2102861699,1000003398
06.09.2018,ADULT SOCIAL CARE,LONDON CARE LTD,699.47,PHY LTS 18-64,HOMECARE - C&V,2102861931,1000003398
06.09.2018,ADULT SOCIAL CARE,LONDON CARE LTD,816.1,PHY LTS 18-64,HOMECARE - C&V,2102861839,1000003398
06.09.2018,ADULT SOCIAL CARE,LONDON CARE LTD,824.41,PHY LTS 18-64,HOMECARE - C&V,2102861773,1000003398
06.09.2018,ADULT SOCIAL CARE,LONDON CARE LTD,882.46,PHY LTS 18-64,HOMECARE - C&V,2102861837,1000003398
06.09.2018,ADULT SOCIAL CARE,LONDON CARE LTD,"1,099.38",PHY LTS 18-64,HOMECARE - C&V,2102861739,1000003398
06.09.2018,ADULT SOCIAL CARE,LONDON CARE LTD,"1,419.99",PHY LTS 18-64,HOMECARE - C&V,2102861801,1000003398
06.09.2018,ADULT SOCIAL CARE,LONDON CARE LTD,"1,790.53",PHY LTS 18-64,HOMECARE - C&V,2102861781,1000003398
06.09.2018,ADULT SOCIAL CARE,LONDON CARE LTD,"2,165.48",PHY LTS 18-64,HOMECARE - C&V,2102861697,1000003398
06.09.2018,ADULT SOCIAL CARE,LONDON CARE LTD,"2,356.60",PHY LTS 18-64,HOMECARE - C&V,2102861713,1000003398
06.09.2018,ADULT SOCIAL CARE,LONDON CARE LTD,"2,414.80",PHY LTS 18-64,HOMECARE - C&V,2102861871,1000003398
06.09.2018,ADULT SOCIAL CARE,LONDON CARE LTD,"2,914.50",PHY LTS 18-64,HOMECARE - C&V,2102861941,1000003398
06.09.2018,ADULT SOCIAL CARE,LONDON CARE LTD,299.72,PHY LTS 65+,HOMECARE - C&V,2102861857,1000003398
06.09.2018,ADULT SOCIAL CARE,LONDON CARE LTD,304,PHY LTS 65+,HOMECARE - C&V,2102861769,1000003398
06.09.2018,ADULT SOCIAL CARE,SUPREME CARE SERVICES LTD,316.82,PHY LTS 65+,HOMECARE - C&V,2102861962,1000059416
06.09.2018,ADULT SOCIAL CARE,LONDON CARE LTD,344.3,PHY LTS 65+,HOMECARE - C&V,2102861779,1000003398
06.09.2018,ADULT SOCIAL CARE,LONDON CARE LTD,349.72,PHY LTS 65+,HOMECARE - C&V,2102861725,1000003398
06.09.2018,ADULT SOCIAL CARE,LONDON CARE LTD,383.18,PHY LTS 65+,HOMECARE - C&V,2102861821,1000003398
06.09.2018,ADULT SOCIAL CARE,LONDON CARE LTD,399.68,PHY LTS 65+,HOMECARE - C&V,2102861751,1000003398
06.09.2018,ADULT SOCIAL CARE,LONDON CARE LTD,416.25,PHY LTS 65+,HOMECARE - C&V,2102861831,1000003398
06.09.2018,ADULT SOCIAL CARE,LONDON CARE LTD,432.96,PHY LTS 65+,HOMECARE - C&V,2102861707,1000003398
06.09.2018,ADULT SOCIAL CARE,LONDON CARE LTD,441.35,PHY LTS 65+,HOMECARE - C&V,2102861799,1000003398
06.09.2018,ADULT SOCIAL CARE,LONDON CARE LTD,449.64,PHY LTS 65+,HOMECARE - C&V,2102861887,1000003398
06.09.2018,ADULT SOCIAL CARE,LONDON CARE LTD,458.04,PHY LTS 65+,HOMECARE - C&V,2102861919,1000003398
06.09.2018,ADULT SOCIAL CARE,LONDON CARE LTD,466.4,PHY LTS 65+,HOMECARE - C&V,2102861711,1000003398
06.09.2018,ADULT SOCIAL CARE,LONDON CARE LTD,499.76,PHY LTS 65+,HOMECARE - C&V,2102861903,1000003398
06.09.2018,ADULT SOCIAL CARE,LONDON CARE LTD,541.31,PHY LTS 65+,HOMECARE - C&V,2102861737,1000003398
06.09.2018,ADULT SOCIAL CARE,LONDON CARE LTD,549.54,PHY LTS 65+,HOMECARE - C&V,2102861741,1000003398
06.09.2018,ADULT SOCIAL CARE,LONDON CARE LTD,549.72,PHY LTS 65+,HOMECARE - C&V,2102861897,1000003398
06.09.2018,ADULT SOCIAL CARE,LONDON CARE LTD,553.83,PHY LTS 65+,HOMECARE - C&V,2102861807,1000003398
06.09.2018,ADULT SOCIAL CARE,LONDON CARE LTD,566.12,PHY LTS 65+,HOMECARE - C&V,2102861827,1000003398
06.09.2018,ADULT SOCIAL CARE,LONDON CARE LTD,566.4,PHY LTS 65+,HOMECARE - C&V,2102861833,1000003398
06.09.2018,ADULT SOCIAL CARE,SUPREME CARE SERVICES LTD,567.8,PHY LTS 65+,HOMECARE - C&V,2102861963,1000059416
06.09.2018,ADULT SOCIAL CARE,LONDON CARE LTD,570.47,PHY LTS 65+,HOMECARE - C&V,2102861727,1000003398
06.09.2018,ADULT SOCIAL CARE,SUPREME CARE SERVICES LTD,601.2,PHY LTS 65+,HOMECARE - C&V,2102861965,1000059416
06.09.2018,ADULT SOCIAL CARE,SUPREME CARE SERVICES LTD,628.06,PHY LTS 65+,HOMECARE - C&V,2102861967,1000059416
06.09.2018,ADULT SOCIAL CARE,LONDON CARE LTD,645.39,PHY LTS 65+,HOMECARE - C&V,2102861845,1000003398
06.09.2018,ADULT SOCIAL CARE,LONDON CARE LTD,649.48,PHY LTS 65+,HOMECARE - C&V,2102861805,1000003398
06.09.2018,ADULT SOCIAL CARE,LONDON CARE LTD,666.22,PHY LTS 65+,HOMECARE - C&V,2102861791,1000003398
06.09.2018,ADULT SOCIAL CARE,LONDON CARE LTD,666.32,PHY LTS 65+,HOMECARE - C&V,2102861689,1000003398
06.09.2018,ADULT SOCIAL CARE,LONDON CARE LTD,683.06,PHY LTS 65+,HOMECARE - C&V,2102861703,1000003398
06.09.2018,ADULT SOCIAL CARE,LONDON CARE LTD,683.06,PHY LTS 65+,HOMECARE - C&V,2102861915,1000003398
06.09.2018,ADULT SOCIAL CARE,SUPREME CARE SERVICES LTD,701.4,PHY LTS 65+,HOMECARE - C&V,2102861961,1000059416
06.09.2018,ADULT SOCIAL CARE,SUPREME CARE SERVICES LTD,701.4,PHY LTS 65+,HOMECARE - C&V,2102861968,1000059416
06.09.2018,ADULT SOCIAL CARE,SUPREME CARE SERVICES LTD,701.4,PHY LTS 65+,HOMECARE - C&V,2102861973,1000059416
06.09.2018,ADULT SOCIAL CARE,LONDON CARE LTD,703.65,PHY LTS 65+,HOMECARE - C&V,2102861745,1000003398
06.09.2018,ADULT SOCIAL CARE,LONDON CARE LTD,703.77,PHY LTS 65+,HOMECARE - C&V,2102861861,1000003398
06.09.2018,ADULT SOCIAL CARE,SUPREME CARE SERVICES LTD,718.12,PHY LTS 65+,HOMECARE - C&V,2102861980,1000059416
06.09.2018,ADULT SOCIAL CARE,LONDON CARE LTD,736.97,PHY LTS 65+,HOMECARE - C&V,2102861835,1000003398
06.09.2018,ADULT SOCIAL CARE,LONDON CARE LTD,749.4,PHY LTS 65+,HOMECARE - C&V,2102861753,1000003398
06.09.2018,ADULT SOCIAL CARE,LONDON CARE LTD,749.64,PHY LTS 65+,HOMECARE - C&V,2102861881,1000003398
06.09.2018,ADULT SOCIAL CARE,SUPREME CARE SERVICES LTD,751.52,PHY LTS 65+,HOMECARE - C&V,2102861976,1000059416
06.09.2018,ADULT SOCIAL CARE,LONDON CARE LTD,786.8,PHY LTS 65+,HOMECARE - C&V,2102861879,1000003398
06.09.2018,ADULT SOCIAL CARE,LONDON CARE LTD,795.3,PHY LTS 65+,HOMECARE - C&V,2102861701,1000003398
06.09.2018,ADULT SOCIAL CARE,LONDON CARE LTD,795.35,PHY LTS 65+,HOMECARE - C&V,2102861935,1000003398
06.09.2018,ADULT SOCIAL CARE,LONDON CARE LTD,816.2,PHY LTS 65+,HOMECARE - C&V,2102861743,1000003398
06.09.2018,ADULT SOCIAL CARE,LONDON CARE LTD,816.2,PHY LTS 65+,HOMECARE - C&V,2102861815,1000003398
06.09.2018,ADULT SOCIAL CARE,LONDON CARE LTD,837.01,PHY LTS 65+,HOMECARE - C&V,2102861933,1000003398
06.09.2018,ADULT SOCIAL CARE,SUPREME CARE SERVICES LTD,868.4,PHY LTS 65+,HOMECARE - C&V,2102861970,1000059416
06.09.2018,ADULT SOCIAL CARE,LONDON CARE LTD,878.44,PHY LTS 65+,HOMECARE - C&V,2102861775,1000003398
06.09.2018,ADULT SOCIAL CARE,LONDON CARE LTD,882.8,PHY LTS 65+,HOMECARE - C&V,2102861763,1000003398
06.09.2018,ADULT SOCIAL CARE,LONDON CARE LTD,916.08,PHY LTS 65+,HOMECARE - C&V,2102861847,1000003398
06.09.2018,ADULT SOCIAL CARE,LONDON CARE LTD,932.4,PHY LTS 65+,HOMECARE - C&V,2102861843,1000003398
06.09.2018,ADULT SOCIAL CARE,LONDON CARE LTD,936.75,PHY LTS 65+,HOMECARE - C&V,2102861889,1000003398
06.09.2018,ADULT SOCIAL CARE,LONDON CARE LTD,937,PHY LTS 65+,HOMECARE - C&V,2102861777,1000003398
06.09.2018,ADULT SOCIAL CARE,LONDON CARE LTD,945.23,PHY LTS 65+,HOMECARE - C&V,2102861757,1000003398
06.09.2018,ADULT SOCIAL CARE,LONDON CARE LTD,965.96,PHY LTS 65+,HOMECARE - C&V,2102861735,1000003398
06.09.2018,ADULT SOCIAL CARE,LONDON CARE LTD,999.28,PHY LTS 65+,HOMECARE - C&V,2102861771,1000003398
06.09.2018,ADULT SOCIAL CARE,SUPREME CARE SERVICES LTD,"1,002.00",PHY LTS 65+,HOMECARE - C&V,2102861957,1000059416
06.09.2018,ADULT SOCIAL CARE,LONDON CARE LTD,"1,007.62",PHY LTS 65+,HOMECARE - C&V,2102861687,1000003398
06.09.2018,ADULT SOCIAL CARE,LONDON CARE LTD,"1,024.28",PHY LTS 65+,HOMECARE - C&V,2102861865,1000003398
06.09.2018,ADULT SOCIAL CARE,SUPREME CARE SERVICES LTD,"1,035.40",PHY LTS 65+,HOMECARE - C&V,2102861969,1000059416
06.09.2018,ADULT SOCIAL CARE,LONDON CARE LTD,"1,041.11",PHY LTS 65+,HOMECARE - C&V,2102861895,1000003398
06.09.2018,ADULT SOCIAL CARE,LONDON CARE LTD,"1,157.55",PHY LTS 65+,HOMECARE - C&V,2102861823,1000003398
06.09.2018,ADULT SOCIAL CARE,LONDON CARE LTD,"1,165.92",PHY LTS 65+,HOMECARE - C&V,2102861883,1000003398
06.09.2018,ADULT SOCIAL CARE,LONDON CARE LTD,"1,165.98",PHY LTS 65+,HOMECARE - C&V,2102861783,1000003398
06.09.2018,ADULT SOCIAL CARE,SUPREME CARE SERVICES LTD,"1,519.72",PHY LTS 65+,HOMECARE - C&V,2102861974,1000059416
06.09.2018,ADULT SOCIAL CARE,LONDON CARE LTD,"1,553.28",PHY LTS 65+,HOMECARE - C&V,2102861715,1000003398
06.09.2018,ADULT SOCIAL CARE,SUPREME CARE SERVICES LTD,"1,646.14",PHY LTS 65+,HOMECARE - C&V,2102861978,1000059416
06.09.2018,ADULT SOCIAL CARE,LONDON CARE LTD,"1,715.38",PHY LTS 65+,HOMECARE - C&V,2102861733,1000003398
06.09.2018,ADULT SOCIAL CARE,SUPREME CARE SERVICES LTD,"1,916.34",PHY LTS 65+,HOMECARE - C&V,2102861971,1000059416
06.09.2018,ADULT SOCIAL CARE,LONDON CARE LTD,"1,932.28",PHY LTS 65+,HOMECARE - C&V,2102861945,1000003398
06.09.2018,ADULT SOCIAL CARE,LONDON CARE LTD,"2,088.98",PHY LTS 65+,HOMECARE - C&V,2102861825,1000003398
06.09.2018,ADULT SOCIAL CARE,LONDON CARE LTD,"2,115.04",PHY LTS 65+,HOMECARE - C&V,2102861869,1000003398
06.09.2018,ADULT SOCIAL CARE,LONDON CARE LTD,"2,140.55",PHY LTS 65+,HOMECARE - C&V,2102861819,1000003398
06.09.2018,ADULT SOCIAL CARE,LONDON CARE LTD,"2,365.15",PHY LTS 65+,HOMECARE - C&V,2102861937,1000003398
06.09.2018,ADULT SOCIAL CARE,LONDON CARE LTD,"2,489.67",PHY LTS 65+,HOMECARE - C&V,2102861893,1000003398
06.09.2018,ADULT SOCIAL CARE,LONDON CARE LTD,"2,593.99",PHY LTS 65+,HOMECARE - C&V,2102861797,1000003398
06.09.2018,ADULT SOCIAL CARE,LONDON CARE LTD,"2,614.58",PHY LTS 65+,HOMECARE - C&V,2102861891,1000003398
06.09.2018,ADULT SOCIAL CARE,LONDON CARE LTD,"2,635.66",PHY LTS 65+,HOMECARE - C&V,2102861849,1000003398
06.09.2018,ADULT SOCIAL CARE,SUPREME CARE SERVICES LTD,"2,855.72",PHY LTS 65+,HOMECARE - C&V,2102861953,1000059416
06.09.2018,ADULT SOCIAL CARE,LONDON CARE LTD,"2,947.75",PHY LTS 65+,HOMECARE - C&V,2102861709,1000003398
06.09.2018,ADULT SOCIAL CARE,LONDON CARE LTD,"3,688.24",PHY LTS 65+,HOMECARE - C&V,2102861913,1000003398
06.09.2018,ADULT SOCIAL CARE,YOUTH GRACES (UK) LTD,399.91,PHY LTS 65+,HOMECARE - SPOT,2102861673,1000072524
06.09.2018,ADULT SOCIAL CARE,YOUTH GRACES (UK) LTD,399.91,PHY LTS 65+,HOMECARE - SPOT,2102861679,1000072524
06.09.2018,ADULT SOCIAL CARE,LONDON CARE LTD,533,PHY LTS 65+,HOMECARE - SPOT,2102861793,1000003398
06.09.2018,ADULT SOCIAL CARE,REDACTED PERSONAL DATA,451.16,PHY LTS 65+,DISCRETIONARY FLEXIBLE FEES & INCOME,REDACTED,REDACTED
06.09.2018,ADULT SOCIAL CARE,LONDON CARE LTD,391.47,SOCIAL ISOLATION,HOMECARE - C&V,2102861691,1000003398
06.09.2018,ADULT SOCIAL CARE,LONDON CARE LTD,432.92,SOCIAL ISOLATION,HOMECARE - C&V,2102861873,1000003398
06.09.2018,ADULT SOCIAL CARE,LONDON CARE LTD,"1,016.00",SOCIAL ISOLATION,HOMECARE - C&V,2102861939,1000003398
06.09.2018,ADULT SOCIAL CARE,HEBRON TRUST,"2,325.00",SUB LTS 18-64,PLACEMENTS - REHAB,2102861641,1000056819
06.09.2018,ADULT SOCIAL CARE,REDACTED PERSONAL DATA,"1,640.00",SUB LTS 18-64,DAYCARE,REDACTED,REDACTED
06.09.2018,ASSET MANAGEMENT,PRB ESTATES LTD,"15,863.43",ADAPTATIONS,BUILDING R&M,5902319091,1000072298
06.09.2018,ASSET MANAGEMENT,GAS LOGIC LTD,950,REPAIRS OPERATIONS,TRAINING,5902319070,1000070763
06.09.2018,ASSET MANAGEMENT,BRIDGEWATER ROOFING CONTRACTORS LTD,461,VISIBLE DIFFERENCE (NORTH),BUILDING R&M,2102862184,3000001482
06.09.2018,CENTRAL FUNCTIONS,DAVID MILES & PARTNERS LTD,"1,082.00",LEDBURY ESTATE,OTHER R&M,5902319065,1000001119
06.09.2018,CENTRAL FUNCTIONS,DAVID MILES & PARTNERS LTD,"7,666.00",LEDBURY ESTATE,OTHER R&M,5902319065,1000001119
06.09.2018,CHIEF EXECUTIVE,KIER CONSTRUCTION,"76,962.61",CAPITAL PS (REGEN),CONSTRUCTION FEES,5902319089,1000078751
06.09.2018,CHIEF EXECUTIVE,KIER CONSTRUCTION,"81,235.07",CAPITAL PS (REGEN),CONSTRUCTION FEES,5902319085,1000078751
06.09.2018,CHILDREN AND ADULT,STONEGROVE LIMITED,"20,983.36",CAPITAL PS (EDUCATION),CONSTRUCTION MAIN CONTRACT -CERTIFICATED,2102861595,3000001525
06.09.2018,CHILDREN AND ADULT,STONEGROVE LIMITED,"25,865.65",CAPITAL PS (EDUCATION),CONSTRUCTION MAIN CONTRACT -CERTIFICATED,2102862181,3000001525
06.09.2018,CHILDREN AND ADULT,STONEGROVE LIMITED,"69,337.13",CAPITAL PS (EDUCATION),CONSTRUCTION MAIN CONTRACT -CERTIFICATED,2102861594,3000001525
06.09.2018,CHILDREN AND ADULT,KIER FACILITIES SERVICES LTD,"222,727.14",CAPITAL PS (SOC SERV),CONSTRUCTION MAIN CONTRACT,2102861592,3000001990
06.09.2018,CHILDREN'S SERVICES,REDACTED PERSONAL DATA,802.5,ADOPTION REFORM GRANT (PART B),PROFESSIONAL FEES,REDACTED,REDACTED
06.09.2018,CHILDREN'S SERVICES,HELP ME GROW FOSTERING SERVICES LTD,-796.87,AGENCY FOSTERING,EXTERNAL AGENCIES AND BODIES,2102857582,1000079302
06.09.2018,CHILDREN'S SERVICES,CHILDREN OF COLOUR,"2,368.00",AGENCY FOSTERING,EXTERNAL AGENCIES AND BODIES,2102862058,1000044955
06.09.2018,CHILDREN'S SERVICES,HELP ME GROW FOSTERING SERVICES LTD,"2,869.67",AGENCY FOSTERING,EXTERNAL AGENCIES AND BODIES,2102862020,1000079302
06.09.2018,CHILDREN'S SERVICES,HELP ME GROW FOSTERING SERVICES LTD,"2,869.67",AGENCY FOSTERING,EXTERNAL AGENCIES AND BODIES,2102862045,1000079302
06.09.2018,CHILDREN'S SERVICES,CHILDREN OF COLOUR,"3,017.14",AGENCY FOSTERING,EXTERNAL AGENCIES AND BODIES,2102861990,1000044955
06.09.2018,CHILDREN'S SERVICES,KENT HOMEFINDING & FOSTERING LTD,"3,041.10",AGENCY FOSTERING,EXTERNAL AGENCIES AND BODIES,2102862013,1000033978
06.09.2018,CHILDREN'S SERVICES,KENT HOMEFINDING & FOSTERING LTD,"3,041.10",AGENCY FOSTERING,EXTERNAL AGENCIES AND BODIES,2102862034,1000033978
06.09.2018,CHILDREN'S SERVICES,KENT HOMEFINDING & FOSTERING LTD,"3,041.10",AGENCY FOSTERING,EXTERNAL AGENCIES AND BODIES,2102862067,1000033978
06.09.2018,CHILDREN'S SERVICES,COMPASS FOSTERING LONDON LTD,"3,077.99",AGENCY FOSTERING,EXTERNAL AGENCIES AND BODIES,2102862000,1000057908
06.09.2018,CHILDREN'S SERVICES,SUPPORTED FOSTERING SERVICES,"3,095.66",AGENCY FOSTERING,EXTERNAL AGENCIES AND BODIES,2102862003,1927554
06.09.2018,CHILDREN'S SERVICES,TIME FOR CHILDREN LTD,"3,100.00",AGENCY FOSTERING,EXTERNAL AGENCIES AND BODIES,2102862007,1000024439
06.09.2018,CHILDREN'S SERVICES,HELP ME GROW FOSTERING SERVICES LTD,"3,188.35",AGENCY FOSTERING,EXTERNAL AGENCIES AND BODIES,2102861985,1000079302
06.09.2018,CHILDREN'S SERVICES,HELP ME GROW FOSTERING SERVICES LTD,"3,188.35",AGENCY FOSTERING,EXTERNAL AGENCIES AND BODIES,2102861994,1000079302
06.09.2018,CHILDREN'S SERVICES,HELP ME GROW FOSTERING SERVICES LTD,"3,188.35",AGENCY FOSTERING,EXTERNAL AGENCIES AND BODIES,2102862062,1000079302
06.09.2018,CHILDREN'S SERVICES,HELP ME GROW FOSTERING SERVICES LTD,"3,188.35",AGENCY FOSTERING,EXTERNAL AGENCIES AND BODIES,2102862064,1000079302
06.09.2018,CHILDREN'S SERVICES,HELP ME GROW FOSTERING SERVICES LTD,"3,188.35",AGENCY FOSTERING,EXTERNAL AGENCIES AND BODIES,2102862069,1000079302
06.09.2018,CHILDREN'S SERVICES,CORE ASSETS FOSTERING LTD,"3,211.60",AGENCY FOSTERING,EXTERNAL AGENCIES AND BODIES,2102862044,11288002
06.09.2018,CHILDREN'S SERVICES,GREATER LONDON FOSTERING,"3,220.28",AGENCY FOSTERING,EXTERNAL AGENCIES AND BODIES,2102862031,1000029184
06.09.2018,CHILDREN'S SERVICES,FOSTERING FOR YOU LTD,"3,271.21",AGENCY FOSTERING,EXTERNAL AGENCIES AND BODIES,2102861986,1000080380
06.09.2018,CHILDREN'S SERVICES,FOSTERING FOR YOU LTD,"3,271.21",AGENCY FOSTERING,EXTERNAL AGENCIES AND BODIES,2102862065,1000080380
06.09.2018,CHILDREN'S SERVICES,SELECT FOSTERCARE SERVICES LTD,"3,286.00",AGENCY FOSTERING,EXTERNAL AGENCIES AND BODIES,2102862001,1000079277
06.09.2018,CHILDREN'S SERVICES,GREATER LONDON FOSTERING,"3,286.00",AGENCY FOSTERING,EXTERNAL AGENCIES AND BODIES,2102862043,1000029184
06.09.2018,CHILDREN'S SERVICES,GREATER LONDON FOSTERING,"3,286.00",AGENCY FOSTERING,EXTERNAL AGENCIES AND BODIES,2102862059,1000029184
06.09.2018,CHILDREN'S SERVICES,SHINING STARS FOSTERING AGENCY LTD,"3,321.34",AGENCY FOSTERING,EXTERNAL AGENCIES AND BODIES,2102862052,1000079431
06.09.2018,CHILDREN'S SERVICES,CONNECT FOSTERING SERVICES LTD,"3,343.57",AGENCY FOSTERING,EXTERNAL AGENCIES AND BODIES,2102861984,1000079969
06.09.2018,CHILDREN'S SERVICES,THE XCEL 2000 PARTNERSHIP LTD,"3,356.86",AGENCY FOSTERING,EXTERNAL AGENCIES AND BODIES,2102862016,1000024427
06.09.2018,CHILDREN'S SERVICES,FIVE RIVERS CHILD CARE LTD,"3,365.71",AGENCY FOSTERING,EXTERNAL AGENCIES AND BODIES,2102862002,1000018792
06.09.2018,CHILDREN'S SERVICES,FOSTERING FOR YOU LTD,"3,443.39",AGENCY FOSTERING,EXTERNAL AGENCIES AND BODIES,2102861998,1000080380
06.09.2018,CHILDREN'S SERVICES,FOSTERING FOR YOU LTD,"3,443.39",AGENCY FOSTERING,EXTERNAL AGENCIES AND BODIES,2102862021,1000080380
06.09.2018,CHILDREN'S SERVICES,FOSTERING FOR YOU LTD,"3,443.39",AGENCY FOSTERING,EXTERNAL AGENCIES AND BODIES,2102862051,1000080380
06.09.2018,CHILDREN'S SERVICES,GREATER LONDON FOSTERING,"3,448.13",AGENCY FOSTERING,EXTERNAL AGENCIES AND BODIES,2102862066,1000029184
06.09.2018,CHILDREN'S SERVICES,CHILDREN OF COLOUR,"3,472.00",AGENCY FOSTERING,EXTERNAL AGENCIES AND BODIES,2102862039,1000044955
06.09.2018,CHILDREN'S SERVICES,CAPSTONE FOSTER CARE,"3,511.68",AGENCY FOSTERING,EXTERNAL AGENCIES AND BODIES,2102861981,1000050353
06.09.2018,CHILDREN'S SERVICES,GREATER LONDON FOSTERING,"3,516.95",AGENCY FOSTERING,EXTERNAL AGENCIES AND BODIES,2102862041,1000029184
06.09.2018,CHILDREN'S SERVICES,ST CHRISTOPHER FELLOWSHIP,"3,520.67",AGENCY FOSTERING,EXTERNAL AGENCIES AND BODIES,2102862030,1000045269
06.09.2018,CHILDREN'S SERVICES,CONNECT FOSTERING SERVICES LTD,"3,520.71",AGENCY FOSTERING,EXTERNAL AGENCIES AND BODIES,2102862055,1000079969
06.09.2018,CHILDREN'S SERVICES,SUPPORTED FOSTERING SERVICES,"3,527.18",AGENCY FOSTERING,EXTERNAL AGENCIES AND BODIES,2102862015,1927554
06.09.2018,CHILDREN'S SERVICES,RYANCARE FOSTERING,"3,541.75",AGENCY FOSTERING,EXTERNAL AGENCIES AND BODIES,2102862049,1000062376
06.09.2018,CHILDREN'S SERVICES,SHINING STARS FOSTERING AGENCY LTD,"3,542.68",AGENCY FOSTERING,EXTERNAL AGENCIES AND BODIES,2102861983,1000079431
06.09.2018,CHILDREN'S SERVICES,CHILDREN OF COLOUR,"3,558.80",AGENCY FOSTERING,EXTERNAL AGENCIES AND BODIES,2102862018,1000044955
06.09.2018,CHILDREN'S SERVICES,BARNARDOS SERVICES LTD,"3,559.11",AGENCY FOSTERING,EXTERNAL AGENCIES AND BODIES,2102861987,1000063730
06.09.2018,CHILDREN'S SERVICES,SANKOFA CARE LTD,"3,593.21",AGENCY FOSTERING,EXTERNAL AGENCIES AND BODIES,2102862005,1000030717
06.09.2018,CHILDREN'S SERVICES,SANKOFA CARE LTD,"3,593.21",AGENCY FOSTERING,EXTERNAL AGENCIES AND BODIES,2102862063,1000030717
06.09.2018,CHILDREN'S SERVICES,FUTURES FOR CHILDREN LIMITED,"3,649.94",AGENCY FOSTERING,EXTERNAL AGENCIES AND BODIES,2102862019,1000041984
06.09.2018,CHILDREN'S SERVICES,FUTURES FOR CHILDREN LIMITED,"3,649.94",AGENCY FOSTERING,EXTERNAL AGENCIES AND BODIES,2102862029,1000041984
06.09.2018,CHILDREN'S SERVICES,SELECT FOSTERCARE SERVICES LTD,"3,653.35",AGENCY FOSTERING,EXTERNAL AGENCIES AND BODIES,2102862061,1000079277
06.09.2018,CHILDREN'S SERVICES,SELECT FOSTERCARE SERVICES LTD,"3,653.66",AGENCY FOSTERING,EXTERNAL AGENCIES AND BODIES,2102862006,1000079277
06.09.2018,CHILDREN'S SERVICES,SYNERGY FOSTERING LTD,"3,671.27",AGENCY FOSTERING,EXTERNAL AGENCIES AND BODIES,2102861996,1000031559
06.09.2018,CHILDREN'S SERVICES,COMPASS FOSTERING LONDON LTD,"3,675.67",AGENCY FOSTERING,EXTERNAL AGENCIES AND BODIES,2102862036,1000057908
06.09.2018,CHILDREN'S SERVICES,COMPASS FOSTERING LONDON LTD,"3,675.67",AGENCY FOSTERING,EXTERNAL AGENCIES AND BODIES,2102862047,1000057908
06.09.2018,CHILDREN'S SERVICES,COMPASS FOSTERING LONDON LTD,"3,675.67",AGENCY FOSTERING,EXTERNAL AGENCIES AND BODIES,2102862054,1000057908
06.09.2018,CHILDREN'S SERVICES,ETHELBERT SPECIALIST HOMES,"3,678.11",AGENCY FOSTERING,EXTERNAL AGENCIES AND BODIES,2102862010,1796129
06.09.2018,CHILDREN'S SERVICES,ETHELBERT SPECIALIST HOMES,"3,678.11",AGENCY FOSTERING,EXTERNAL AGENCIES AND BODIES,2102862025,1796129
06.09.2018,CHILDREN'S SERVICES,ETHELBERT SPECIALIST HOMES,"3,678.11",AGENCY FOSTERING,EXTERNAL AGENCIES AND BODIES,2102862032,1796129
06.09.2018,CHILDREN'S SERVICES,WELCOME FOSTER CARE LTD,"3,764.33",AGENCY FOSTERING,EXTERNAL AGENCIES AND BODIES,2102861997,1000074586
06.09.2018,CHILDREN'S SERVICES,WELCOME FOSTER CARE LTD,"3,764.33",AGENCY FOSTERING,EXTERNAL AGENCIES AND BODIES,2102862035,1000074586
06.09.2018,CHILDREN'S SERVICES,ANCHOR FOSTERCARE,"3,799.67",AGENCY FOSTERING,EXTERNAL AGENCIES AND BODIES,2102861989,1000065675
06.09.2018,CHILDREN'S SERVICES,CHILDREN FIRST FOSTERING AGENCY LTD,"3,875.00",AGENCY FOSTERING,EXTERNAL AGENCIES AND BODIES,2102862014,1000060081
06.09.2018,CHILDREN'S SERVICES,CHILDREN FIRST FOSTERING AGENCY LTD,"3,875.00",AGENCY FOSTERING,EXTERNAL AGENCIES AND BODIES,2102862060,1000060081
06.09.2018,CHILDREN'S SERVICES,ETHELBERT SPECIALIST HOMES,"3,882.40",AGENCY FOSTERING,EXTERNAL AGENCIES AND BODIES,2102862022,1796129
06.09.2018,CHILDREN'S SERVICES,ETHELBERT SPECIALIST HOMES,"3,882.40",AGENCY FOSTERING,EXTERNAL AGENCIES AND BODIES,2102862040,1796129
06.09.2018,CHILDREN'S SERVICES,SANKOFA CARE LTD,"3,929.87",AGENCY FOSTERING,EXTERNAL AGENCIES AND BODIES,2102862023,1000030717
06.09.2018,CHILDREN'S SERVICES,NEXT STEP FOSTERING SERVICES LTD,"3,986.60",AGENCY FOSTERING,EXTERNAL AGENCIES AND BODIES,2102862050,1000044973
06.09.2018,CHILDREN'S SERVICES,DIVERSITY FOSTER CARE LTD,"4,108.69",AGENCY FOSTERING,EXTERNAL AGENCIES AND BODIES,2102862027,1000081399
06.09.2018,CHILDREN'S SERVICES,DIVERSITY FOSTER CARE LTD,"4,108.69",AGENCY FOSTERING,EXTERNAL AGENCIES AND BODIES,2102862068,1000081399
06.09.2018,CHILDREN'S SERVICES,NEXT STEP FOSTERING SERVICES LTD,"4,349.30",AGENCY FOSTERING,EXTERNAL AGENCIES AND BODIES,2102862057,1000044973
06.09.2018,CHILDREN'S SERVICES,GREATER LONDON FOSTERING,"4,424.01",AGENCY FOSTERING,EXTERNAL AGENCIES AND BODIES,2102862008,1000029184
06.09.2018,CHILDREN'S SERVICES,COMPASS FOSTERING SOUTH EAST LTD,"4,495.00",AGENCY FOSTERING,EXTERNAL AGENCIES AND BODIES,2102861999,1000081155
06.09.2018,CHILDREN'S SERVICES,SANKOFA CARE LTD,"4,538.71",AGENCY FOSTERING,EXTERNAL AGENCIES AND BODIES,2102862026,1000030717
06.09.2018,CHILDREN'S SERVICES,SANKOFA CARE LTD,"4,538.71",AGENCY FOSTERING,EXTERNAL AGENCIES AND BODIES,2102862046,1000030717
06.09.2018,CHILDREN'S SERVICES,CHILDREN OF ALL NATIONS LTD,"4,565.19",AGENCY FOSTERING,EXTERNAL AGENCIES AND BODIES,2102862017,1000060151
06.09.2018,CHILDREN'S SERVICES,CHILDREN OF ALL NATIONS LTD,"4,565.19",AGENCY FOSTERING,EXTERNAL AGENCIES AND BODIES,2102862033,1000060151
06.09.2018,CHILDREN'S SERVICES,GREATER LONDON FOSTERING,"4,645.35",AGENCY FOSTERING,EXTERNAL AGENCIES AND BODIES,2102862009,1000029184
06.09.2018,CHILDREN'S SERVICES,ST CHRISTOPHER FELLOWSHIP,"4,650.00",AGENCY FOSTERING,EXTERNAL AGENCIES AND BODIES,2102861982,1000045269
06.09.2018,CHILDREN'S SERVICES,ST CHRISTOPHER FELLOWSHIP,"4,650.00",AGENCY FOSTERING,EXTERNAL AGENCIES AND BODIES,2102862011,1000045269
06.09.2018,CHILDREN'S SERVICES,HELP ME GROW FOSTERING SERVICES LTD,"4,650.00",AGENCY FOSTERING,EXTERNAL AGENCIES AND BODIES,2102862056,1000079302
06.09.2018,CHILDREN'S SERVICES,FOSTERING SUPPORT GROUP LTD,"4,799.76",AGENCY FOSTERING,EXTERNAL AGENCIES AND BODIES,2102861988,1000065830
06.09.2018,CHILDREN'S SERVICES,CHILDREN OF COLOUR,"4,871.42",AGENCY FOSTERING,EXTERNAL AGENCIES AND BODIES,2102862042,1000044955
06.09.2018,CHILDREN'S SERVICES,CHRYSALIS CARE,"5,311.88",AGENCY FOSTERING,EXTERNAL AGENCIES AND BODIES,2102862106,1000028987
06.09.2018,CHILDREN'S SERVICES,HEATH FARM FAMILY SOLUTION (FOSTERING),"5,322.08",AGENCY FOSTERING,EXTERNAL AGENCIES AND BODIES,2102861992,11271268
06.09.2018,CHILDREN'S SERVICES,COMPASS FOSTERING SOUTH EAST LTD,"5,535.67",AGENCY FOSTERING,EXTERNAL AGENCIES AND BODIES,2102861991,1000081155
06.09.2018,CHILDREN'S SERVICES,FOSTERING INNOVATIONS LTD,"5,712.86",AGENCY FOSTERING,EXTERNAL AGENCIES AND BODIES,2102862048,1000081286
06.09.2018,CHILDREN'S SERVICES,HELP ME GROW FOSTERING SERVICES LTD,"5,757.01",AGENCY FOSTERING,EXTERNAL AGENCIES AND BODIES,2102861993,1000079302
06.09.2018,CHILDREN'S SERVICES,HELP ME GROW FOSTERING SERVICES LTD,"5,757.01",AGENCY FOSTERING,EXTERNAL AGENCIES AND BODIES,2102862004,1000079302
06.09.2018,CHILDREN'S SERVICES,HELP ME GROW FOSTERING SERVICES LTD,"5,757.01",AGENCY FOSTERING,EXTERNAL AGENCIES AND BODIES,2102862012,1000079302
06.09.2018,CHILDREN'S SERVICES,LIGHTHOUSE FOSTERING LTD,"5,821.52",AGENCY FOSTERING,EXTERNAL AGENCIES AND BODIES,2102862053,1000080372
06.09.2018,CHILDREN'S SERVICES,ALL4U FOSTERING LTD,"6,443.04",AGENCY FOSTERING,EXTERNAL AGENCIES AND BODIES,2102862024,1000080663
06.09.2018,CHILDREN'S SERVICES,FIVE RIVERS CHILD CARE LTD,"6,527.71",AGENCY FOSTERING,EXTERNAL AGENCIES AND BODIES,2102862028,1000018792
06.09.2018,CHILDREN'S SERVICES,MOSAIC FOSTER CARE LTD,"6,642.68",AGENCY FOSTERING,EXTERNAL AGENCIES AND BODIES,2102862037,1000076259
06.09.2018,CHILDREN'S SERVICES,MOSAIC FOSTER CARE LTD,"6,975.00",AGENCY FOSTERING,EXTERNAL AGENCIES AND BODIES,2102861995,1000076259
06.09.2018,CHILDREN'S SERVICES,MOSAIC FOSTER CARE LTD,"6,975.00",AGENCY FOSTERING,EXTERNAL AGENCIES AND BODIES,2102862038,1000076259
06.09.2018,CHILDREN'S SERVICES,BLUE SKY AUTISM PROJECT,510,AST,CONSULTANTS SERVICES,2102859395,1000081565
06.09.2018,CHILDREN'S SERVICES,BLUE SKY AUTISM PROJECT,450,AST,OTHER CONTRACTORS,2102859396,1000081565
06.09.2018,CHILDREN'S SERVICES,LONDON EARLY YEARS FOUNDATION,"1,368.00",CAMBERWELL GROVE EARLY YEARS CENTRE,OTHER SUBSISTENCE & CONFERENCE EXPENSES,5902318413,1000081575
06.09.2018,CHILDREN'S SERVICES,TFL TELESALES / OYSTER FULFILMENT,542.5,CENTRAL COSTS - SEN,PUBLIC TRANSPORT,5902318983,1000059727
06.09.2018,CHILDREN'S SERVICES,THE GROVE CHILDRENS CENTRE,"3,323.10",DSG - EARLY YEARS FUNDING,SCHOOLS CAPITATION,2102861613,5001000090
06.09.2018,CHILDREN'S SERVICES,HEBER PRIMARY SCHOOL,302.1,DSG - EARLY YEARS FUNDING,SCHOOLS CAPITATION,2102861597,5001000035
06.09.2018,CHILDREN'S SERVICES,ST JOHNS RC PRIMARY SCHOOL,302.1,DSG - EARLY YEARS FUNDING,SCHOOLS CAPITATION,2102861603,5001000075
06.09.2018,CHILDREN'S SERVICES,CHARLES DICKENS PRIMARY SCHOOL,302.1,DSG - EARLY YEARS FUNDING,SCHOOLS CAPITATION,2102861605,5001000015
06.09.2018,CHILDREN'S SERVICES,IVYDALE PRIMARY SCHOOL,302.1,DSG - EARLY YEARS FUNDING,SCHOOLS CAPITATION,2102861609,5001000038
06.09.2018,CHILDREN'S SERVICES,MICHAEL FARADAY PRIMARY SCHOOL,302.1,DSG - EARLY YEARS FUNDING,SCHOOLS CAPITATION,2102861610,5001000048
06.09.2018,CHILDREN'S SERVICES,COBOURG PRIMARY SCHOOL,604.2,DSG - EARLY YEARS FUNDING,SCHOOLS CAPITATION,2102861602,5001000021
06.09.2018,CHILDREN'S SERVICES,ILDERTON PRIMARY SCHOOL,604.2,DSG - EARLY YEARS FUNDING,SCHOOLS CAPITATION,2102861607,5001000037
06.09.2018,CHILDREN'S SERVICES,SOUTHWARK PARK PRIMARY SCHOOL,906.3,DSG - EARLY YEARS FUNDING,SCHOOLS CAPITATION,2102861606,5001000062
06.09.2018,CHILDREN'S SERVICES,ST JOSEPHS CATHOLIC PRIMARY SCHOOL,"1,510.50",DSG - EARLY YEARS FUNDING,SCHOOLS CAPITATION,2102861611,5001000078
06.09.2018,CHILDREN'S SERVICES,JOHN RUSKIN PRIMARY SCHOOL,"1,812.60",DSG - EARLY YEARS FUNDING,SCHOOLS CAPITATION,2102861596,5001000040
06.09.2018,CHILDREN'S SERVICES,GOODRICH PRIMARY SCHOOL,"1,812.60",DSG - EARLY YEARS FUNDING,SCHOOLS CAPITATION,2102861600,5001000028
06.09.2018,CHILDREN'S SERVICES,BRUNSWICK PARK PRIMARY SCHOOL,"1,812.60",DSG - EARLY YEARS FUNDING,SCHOOLS CAPITATION,2102861601,5001000013
06.09.2018,CHILDREN'S SERVICES,DOG KENNEL HILL PRIMARY SCHOOL,"1,812.60",DSG - EARLY YEARS FUNDING,SCHOOLS CAPITATION,2102861604,5001000025
06.09.2018,CHILDREN'S SERVICES,PILGRIM'S WAY PRIMARY SCHOOL,"2,114.70",DSG - EARLY YEARS FUNDING,SCHOOLS CAPITATION,2102861612,5001000054
06.09.2018,CHILDREN'S SERVICES,KINTORE WAY CHILDRENS CENTRE,"4,229.40",DSG - EARLY YEARS FUNDING,SCHOOLS CAPITATION,2102861598,5001000047
06.09.2018,CHILDREN'S SERVICES,ST JAMES THE GREAT RC SCHOOL,"6,344.10",DSG - EARLY YEARS FUNDING,SCHOOLS CAPITATION,2102861608,5001000071
06.09.2018,CHILDREN'S SERVICES,OLIVER GOLDSMITH PRIMARY SCHOOL,"12,084.00",DSG - EARLY YEARS FUNDING,SCHOOLS CAPITATION,2102861599,5001000051
06.09.2018,CHILDREN'S SERVICES,C MOXON CONSULTANCY LTD,"2,500.00",FAMILY ASSESSMENTS,RESIDENTIAL CARE,5902318923,1000081403
06.09.2018,CHILDREN'S SERVICES,BRYN MELYN CARE LTD,"-13,165.71",RESIDENTIAL,RESIDENTIAL CARE,5902219875,1000077660
06.09.2018,CHILDREN'S SERVICES,BRYN MELYN CARE LTD,"-3,085.71",RESIDENTIAL,RESIDENTIAL CARE,5902319269,1000077660
06.09.2018,CHILDREN'S SERVICES,BRYN MELYN CARE LTD,"3,085.71",RESIDENTIAL,RESIDENTIAL CARE,5902219872,1000077660
06.09.2018,CHILDREN'S SERVICES,BRYN MELYN CARE LTD,"13,165.71",RESIDENTIAL,RESIDENTIAL CARE,5902319270,1000077660
06.09.2018,CHILDREN'S SERVICES,CREATING CARE CHOICES LTD,"15,500.00",RESIDENTIAL,RESIDENTIAL CARE,2102862105,1000076738
06.09.2018,CHILDREN'S SERVICES,STONELAKE LONDON LTD,"24,552.00",RESIDENTIAL,RESIDENTIAL CARE,2102862104,1000080075
06.09.2018,CHILDREN'S SERVICES,PURPLE PEBBLES(CHILD CARE) SERVICES,-695.48,S24 CLA,EXTERNAL AGENCIES AND BODIES,2102862075,1000070705
06.09.2018,CHILDREN'S SERVICES,PURPLE PEBBLES(CHILD CARE) SERVICES,-663.4,S24 CLA,EXTERNAL AGENCIES AND BODIES,2102862078,1000070705
06.09.2018,CHILDREN'S SERVICES,PURPLE PEBBLES(CHILD CARE) SERVICES,-358.06,S24 CLA,EXTERNAL AGENCIES AND BODIES,2102862084,1000070705
06.09.2018,CHILDREN'S SERVICES,PURPLE PEBBLES(CHILD CARE) SERVICES,260,S24 CLA,EXTERNAL AGENCIES AND BODIES,2102862093,1000070705
06.09.2018,CHILDREN'S SERVICES,PURPLE PEBBLES(CHILD CARE) SERVICES,325,S24 CLA,EXTERNAL AGENCIES AND BODIES,2102862074,1000070705
06.09.2018,CHILDREN'S SERVICES,PURPLE PEBBLES(CHILD CARE) SERVICES,325,S24 CLA,EXTERNAL AGENCIES AND BODIES,2102862079,1000070705
06.09.2018,CHILDREN'S SERVICES,PURPLE PEBBLES(CHILD CARE) SERVICES,325,S24 CLA,EXTERNAL AGENCIES AND BODIES,2102862082,1000070705
06.09.2018,CHILDREN'S SERVICES,PURPLE PEBBLES(CHILD CARE) SERVICES,325,S24 CLA,EXTERNAL AGENCIES AND BODIES,2102862097,1000070705
06.09.2018,CHILDREN'S SERVICES,PURPLE PEBBLES(CHILD CARE) SERVICES,325,S24 CLA,EXTERNAL AGENCIES AND BODIES,2102862100,1000070705
06.09.2018,CHILDREN'S SERVICES,PURPLE PEBBLES(CHILD CARE) SERVICES,325,S24 CLA,EXTERNAL AGENCIES AND BODIES,2102862102,1000070705
06.09.2018,CHILDREN'S SERVICES,FINEFAIR LTD,762.02,S24 CLA,EXTERNAL AGENCIES AND BODIES,2102862094,1000075570
06.09.2018,CHILDREN'S SERVICES,PURPLE PEBBLES(CHILD CARE) SERVICES,819.28,S24 CLA,EXTERNAL AGENCIES AND BODIES,2102862083,1000070705
06.09.2018,CHILDREN'S SERVICES,PURPLE PEBBLES(CHILD CARE) SERVICES,"1,217.86",S24 CLA,EXTERNAL AGENCIES AND BODIES,2102862081,1000070705
06.09.2018,CHILDREN'S SERVICES,PURPLE PEBBLES(CHILD CARE) SERVICES,"1,328.57",S24 CLA,EXTERNAL AGENCIES AND BODIES,2102862089,1000070705
06.09.2018,CHILDREN'S SERVICES,PURPLE PEBBLES(CHILD CARE) SERVICES,"1,328.57",S24 CLA,EXTERNAL AGENCIES AND BODIES,2102862091,1000070705
06.09.2018,CHILDREN'S SERVICES,PURPLE PEBBLES(CHILD CARE) SERVICES,"1,350.71",S24 CLA,EXTERNAL AGENCIES AND BODIES,2102862101,1000070705
06.09.2018,CHILDREN'S SERVICES,PURPLE PEBBLES(CHILD CARE) SERVICES,"1,439.29",S24 CLA,EXTERNAL AGENCIES AND BODIES,2102862080,1000070705
06.09.2018,CHILDREN'S SERVICES,PURPLE PEBBLES(CHILD CARE) SERVICES,"1,439.29",S24 CLA,EXTERNAL AGENCIES AND BODIES,2102862092,1000070705
06.09.2018,CHILDREN'S SERVICES,FINEFAIR LTD,"1,687.33",S24 CLA,EXTERNAL AGENCIES AND BODIES,2102862090,1000075570
06.09.2018,CHILDREN'S SERVICES,FINEFAIR LTD,"1,687.33",S24 CLA,EXTERNAL AGENCIES AND BODIES,2102862098,1000075570
06.09.2018,CHILDREN'S SERVICES,CARE R US LTD,"2,512.47",S24 CLA,EXTERNAL AGENCIES AND BODIES,2102862109,1000053515
06.09.2018,CHILDREN'S SERVICES,FINEFAIR LTD,"2,967.32",S24 CLA,EXTERNAL AGENCIES AND BODIES,2102862085,1000075570
06.09.2018,CHILDREN'S SERVICES,ADULLAM SUPPORT LTD,"4,368.52",S24 CLA,EXTERNAL AGENCIES AND BODIES,2102862073,1000081148
06.09.2018,CHILDREN'S SERVICES,ADULLAM SUPPORT LTD,"4,368.52",S24 CLA,EXTERNAL AGENCIES AND BODIES,2102862099,1000081148
06.09.2018,CHILDREN'S SERVICES,LEEDS CITY COUNCIL,"2,000.00",SCH TRANS - CONTRACT COST,TRAINING,5902319057,1000052679
06.09.2018,CHILDREN'S SERVICES,PURPLE PEBBLES(CHILD CARE) SERVICES,325,SEMI INDEPENDENT,EXTERNAL AGENCIES AND BODIES,2102862072,1000070705
06.09.2018,CHILDREN'S SERVICES,PURPLE PEBBLES(CHILD CARE) SERVICES,"1,328.57",SEMI INDEPENDENT,EXTERNAL AGENCIES AND BODIES,2102862086,1000070705
06.09.2018,CHILDREN'S SERVICES,CARE R US LTD,"3,650.00",SEMI INDEPENDENT,EXTERNAL AGENCIES AND BODIES,2102862114,1000053515
06.09.2018,CHILDREN'S SERVICES,SILVER BIRCH CARE LTD,"3,653.57",SEMI INDEPENDENT,EXTERNAL AGENCIES AND BODIES,2102862096,1000076525
06.09.2018,CHILDREN'S SERVICES,HOLIBROOK HOUSE LTD,"4,871.43",SEMI INDEPENDENT,EXTERNAL AGENCIES AND BODIES,2102862115,1000067873
06.09.2018,CHILDREN'S SERVICES,HOLIBROOK HOUSE LTD,"7,462.14",SEMI INDEPENDENT,EXTERNAL AGENCIES AND BODIES,2102862112,1000067873
06.09.2018,CHILDREN'S SERVICES,HOLIBROOK HOUSE LTD,"7,905.00",SEMI INDEPENDENT,EXTERNAL AGENCIES AND BODIES,2102862113,1000067873
06.09.2018,CHILDREN'S SERVICES,SPORTFIT SHORT BREAK CARE LTD,"10,230.00",SEMI INDEPENDENT,EXTERNAL AGENCIES AND BODIES,2102862070,1000078113
06.09.2018,CHILDREN'S SERVICES,ARC COMMUNITY TRUSTEES,368.33,SPECIAL GUARDIANSHIP,EXTERNAL AGENCIES AND BODIES,5902319001,1000046206
06.09.2018,CHILDREN'S SERVICES,ARC COMMUNITY TRUSTEES,650,SPECIAL GUARDIANSHIP,EXTERNAL AGENCIES AND BODIES,5902319005,1000046206
06.09.2018,CHILDREN'S SERVICES,ARC COMMUNITY TRUSTEES,650,SPECIAL GUARDIANSHIP,EXTERNAL AGENCIES AND BODIES,5902319007,1000046206
06.09.2018,CHILDREN'S SERVICES,NATIONAL FOSTERING AGENCY,"1,470.02",STAYING PUT,EXTERNAL AGENCIES AND BODIES,2102862110,1000038868
06.09.2018,CHILDREN'S SERVICES,NATIONAL FOSTERING AGENCY,"1,860.00",STAYING PUT,EXTERNAL AGENCIES AND BODIES,2102862107,1000038868
06.09.2018,CHILDREN'S SERVICES,REDACTED PERSONAL DATA,"5,321.43",STAYING PUT,PAYMENTS TO CARERS,REDACTED,REDACTED
06.09.2018,CHILDREN'S SERVICES,HOLMDENE HOUSING LTD,-264.29,UASC SECTION 24,EXTERNAL AGENCIES AND BODIES,2102862095,1000032598
06.09.2018,CHILDREN'S SERVICES,PURPLE PEBBLES(CHILD CARE) SERVICES,325,UASC SECTION 24,EXTERNAL AGENCIES AND BODIES,2102862077,1000070705
06.09.2018,CHILDREN'S SERVICES,HOLMDENE HOUSING LTD,975,UASC SECTION 24,EXTERNAL AGENCIES AND BODIES,2102862103,1000032598
06.09.2018,CHILDREN'S SERVICES,PURPLE PEBBLES(CHILD CARE) SERVICES,"1,284.29",UASC SECTION 24,EXTERNAL AGENCIES AND BODIES,2102862087,1000070705
06.09.2018,CHILDREN'S SERVICES,PURPLE PEBBLES(CHILD CARE) SERVICES,"1,727.14",UASC SECTION 24,EXTERNAL AGENCIES AND BODIES,2102862088,1000070705
06.09.2018,CHILDREN'S SERVICES,HOLMDENE HOUSING LTD,"1,850.00",UASC SECTION 24,EXTERNAL AGENCIES AND BODIES,2102862076,1000032598
06.09.2018,COMMUNITIES,CITY HOPE CHURCH,300,COMMUNITY COUNCILS TEAM,HIRE OF ROOMS/HALLS,5902319080,1000035253
06.09.2018,CUSTOMER EXPERIENCE HGF,NORTHGATE PUBLIC SERVICES (UK) LTD,"1,502.86",BLUE BADGES,MATERIALS,5902319105,1000037405
06.09.2018,CUSTOMER EXPERIENCE HGF,IMPERIAL COLLEGE PROJECTS LTD,332,CORONER'S,PROFESSIONAL FEES,5902319097,1000080106
06.09.2018,CUSTOMER EXPERIENCE HGF,IMPERIAL COLLEGE PROJECTS LTD,344,CORONER'S,PROFESSIONAL FEES,5902319099,1000080106
06.09.2018,CUSTOMER EXPERIENCE HGF,IMPERIAL COLLEGE PROJECTS LTD,388,CORONER'S,PROFESSIONAL FEES,5902319095,1000080106
06.09.2018,CUSTOMER EXPERIENCE HGF,IMPERIAL COLLEGE PROJECTS LTD,424,CORONER'S,PROFESSIONAL FEES,5902319102,1000080106
06.09.2018,CUSTOMER EXPERIENCE HGF,IMPERIAL COLLEGE PROJECTS LTD,424,CORONER'S,PROFESSIONAL FEES,5902319103,1000080106
06.09.2018,CUSTOMER EXPERIENCE HGF,IMPERIAL COLLEGE PROJECTS LTD,484,CORONER'S,PROFESSIONAL FEES,5902319100,1000080106
06.09.2018,CUSTOMER EXPERIENCE HGF,IMPERIAL COLLEGE PROJECTS LTD,484,CORONER'S,PROFESSIONAL FEES,5902319106,1000080106
06.09.2018,CUSTOMER EXPERIENCE HGF,STENFORD PROPERTY LTD,"52,509.30",NIGHTLY TA (NSC),EXTERNAL AGENCIES AND BODIES,5902319062,1000074759
06.09.2018,CUSTOMER EXPERIENCE HGF,OFFICE OF IMMIGRATION SERVICES COMMISSIONER,575,REGISTRARS,OFFICE EXPENSES,5902319064,1000049070
06.09.2018,ENVIRONMENT AND LEISURE,PICK EVERARD,592.89,CAPITAL PS (LEISURE),CONSTRUCTION FEES  - EXTERNAL,5902319093,1000077395
06.09.2018,ENVIRONMENT AND LEISURE,STANBURY BUILDING SERVICES LTD,795,CAPITAL PS (LEISURE),CONST'N MAIN CONTRACT - NON CERTIFICATED,2102861591,3000001967
06.09.2018,ENVIRONMENT AND LEISURE,TRINITY IN CAMBERWELL,"1,500.00",CAPITAL PS (LEISURE),CONSTR'N SUB CONTRACT - NON CERTIFICATED,5902318989,1000071860
06.09.2018,ENVIRONMENT AND LEISURE,IB CDM LTD,600,CAPITAL PS (LEISURE),CONSTRUCTION FEES,5902319090,1000081479
06.09.2018,ENVIRONMENT AND LEISURE,CONWAY AECOM LTD,"8,734.63",CAPITAL PS (LEISURE),CONSTRUCTION FEES,2102861590,3000001595
06.09.2018,ENVIRONMENT AND LEISURE,STONEGROVE LIMITED,"31,901.95",CAPITAL PS (LEISURE),CONSTRUCTION FEES  - EXTERNAL,2102862182,3000001525
06.09.2018,ENVIRONMENT DIRECTORATE,CONWAY AECOM LTD,842.42,PARKING OVERHEADS,OTHER CONTRACTORS,2102862185,3000001595
06.09.2018,ENVIRONMENT DIRECTORATE,EDF ENERGY PLC,277.81,PUBLIC CONVENIENCES,ELECTRICITY,5902318934,1008746
06.09.2018,ENVIRONMENT DIRECTORATE,NPOWER,506.47,SANDGATE STREET,ELECTRICITY,5902318924,1000032342
06.09.2018,ENVIRONMENT DIRECTORATE,HIGHWAY QUALITY SOLUTIONS LTD,"1,654.46",STREET WORKS OVERHEADS,BOOKS & PUBLICATIONS,5902319073,1000078521
06.09.2018,ENVIRONMENT DIRECTORATE,ECOLAB LTD,"3,701.60",STRUCTURES RECOVERABLE WORKS,OTHER CONTRACTORS,5902318932,1000051810
06.09.2018,F & C S EXCLUDING CORPORATE BUDGETS,ARCUS GLOBAL LTD,700,ADMINISTRATIVE SUPPORT,SOFTWARE,5902319094,1000080110
06.09.2018,F & C S EXCLUDING CORPORATE BUDGETS,HEWITT ASSOCIATES LTD,"14,222.00",PENSION FUND MANAGEMENT,PROFESSIONAL FEES,5902318993,1000000036
06.09.2018,HOUSING & MODERNISATION,LONDON SENIOR SOCIAL LTD,300,VCS GRANTS,OTHER CONTRACTORS,5902319051,1000076545
06.09.2018,HOUSING & MODERNISATION,RYE HILL ESTATE T&RA,300,VCS GRANTS,OTHER CONTRACTORS,5902319083,1000042261
06.09.2018,HOUSING & MODERNISATION,ELEVATION NETWORKS TRUST,500,VCS GRANTS,OTHER CONTRACTORS,5902319003,1000081530
06.09.2018,HOUSING & MODERNISATION,DRAPER T&RA,500,VCS GRANTS,OTHER CONTRACTORS,5902319012,1000037876
06.09.2018,HOUSING & MODERNISATION,THE AFRICA CENTRE,500,VCS GRANTS,OTHER CONTRACTORS,5902319013,1000029863
06.09.2018,HOUSING & MODERNISATION,SILVERLOCK SHU SOCIAL CLUB,500,VCS GRANTS,OTHER CONTRACTORS,5902319096,1000018545
06.09.2018,HOUSING & MODERNISATION,SOUTHWARK CATHEDRAL,600,VCS GRANTS,OTHER CONTRACTORS,5902319000,1000063220
06.09.2018,HOUSING & MODERNISATION,ST HELENA & OLDFIELD TR&A,750,VCS GRANTS,OTHER CONTRACTORS,5902318977,1000061625
06.09.2018,HOUSING GENERAL FUND,SAFESTORE LTD,961.67,CAPITAL PS (HOUSING GF),CONSTRUCTION,5902318069,1000057677
06.09.2018,HOUSING GENERAL FUND,COLT TECHNOLOGY SERVICES,"1,706.00",CAPITAL PS (STRAT SERV),ICT ACQUISITION,5902318994,1000009377
06.09.2018,HOUSING GENERAL FUND,COLT TECHNOLOGY SERVICES,"1,706.00",CAPITAL PS (STRAT SERV),ICT ACQUISITION,5902318997,1000009377
06.09.2018,HOUSING HRA,OPEN COMMUNITIES LTD,477.75,CAPITAL PS (HRA),CONSTRUCTION FEES  - EXTERNAL,5902319053,1000065800
06.09.2018,HOUSING HRA,CALFORD SEADEN LLP,"3,149.58",CAPITAL PS (HRA),CONSTRUCTION FEES  - EXTERNAL,5902318931,1061592
06.09.2018,HOUSING HRA,CALFORD SEADEN LLP,"4,354.78",CAPITAL PS (HRA),CONSTRUCTION FEES  - EXTERNAL,5902318937,1061592
06.09.2018,HOUSING HRA,CALFORD SEADEN LLP,"4,573.53",CAPITAL PS (HRA),CONSTRUCTION FEES  - EXTERNAL,5902318940,1061592
06.09.2018,HOUSING HRA,MITIE PROPERTY SERVICES (UK) LTD,"328,996.53",CAPITAL PS (HRA),CONSTRUCTION MAIN CONTRACT -CERTIFICATED,2102862183,4010766
06.09.2018,HOUSING HRA,MEARS LTD,607654.79,MEARS,MANUAL CREDITORS,2102861593,3000001096
06.09.2018,HOUSING STRATEGY AND OPTIONS,REDACTED PERSONAL DATA,"1,224.35",HOMELESS PROJECTS,GRANTS,REDACTED,REDACTED
06.09.2018,HOUSING STRATEGY AND OPTIONS,REDACTED PERSONAL DATA,"1,261.20",HOMELESS PROJECTS,GRANTS,REDACTED,REDACTED
06.09.2018,HOUSING STRATEGY AND OPTIONS,REDACTED PERSONAL DATA,"1,261.20",HOMELESS PROJECTS,GRANTS,REDACTED,REDACTED
06.09.2018,HOUSING STRATEGY AND OPTIONS,REDACTED PERSONAL DATA,"1,261.20",HOMELESS PROJECTS,GRANTS,REDACTED,REDACTED
06.09.2018,HOUSING STRATEGY AND OPTIONS,REDACTED PERSONAL DATA,"1,261.20",HOMELESS PROJECTS,GRANTS,REDACTED,REDACTED
06.09.2018,HOUSING STRATEGY AND OPTIONS,REDACTED PERSONAL DATA,"1,261.20",HOMELESS PROJECTS,GRANTS,REDACTED,REDACTED
06.09.2018,HOUSING STRATEGY AND OPTIONS,REDACTED PERSONAL DATA,"3,000.00",HOMELESS PROJECTS,GRANTS,REDACTED,REDACTED
06.09.2018,HOUSING STRATEGY AND OPTIONS,RUBICON PROPERTY (SHRUBBERY LTD),910.87,HOMELESS PROJECTS,GRANTS,5902319109,1000080428
06.09.2018,HOUSING STRATEGY AND OPTIONS,PARAGON REALTY LTD,"1,261.20",HOMELESS PROJECTS,GRANTS,5902319107,1000079707
06.09.2018,LEISURE DIRECTORATE,CASTLE WATER LTD,444.13,BURGESS AREA TEAM,WATER,5902318935,1000078867
06.09.2018,LEISURE DIRECTORATE,INTELLIGENT HEALTH  LTD,"28,106.00",COMMUNITY SPORTS DEVELOPMENT,GRANTS,5902319068,1000075426
06.09.2018,LEISURE DIRECTORATE,CASTLE WATER LTD,890.5,DULWICH AREA TEAM,WATER,5902318939,1000078867
06.09.2018,LEISURE DIRECTORATE,CASTLE WATER LTD,"1,580.32",DULWICH AREA TEAM,WATER,5902318982,1000078867
06.09.2018,LEISURE DIRECTORATE,IKEA LTD,362.49,EAST STREET LIBRARY,EQUIPMENT PURCHASE & REPAIR,5902318953,11108725
06.09.2018,LEISURE DIRECTORATE,CASTLE WATER LTD,649.24,PECKHAM RYE AREA TEAM,WATER,5902318938,1000078867
06.09.2018,LEISURE DIRECTORATE,CAMBERWELL ARTS,"3,200.00",SOUTHWARK FESTIVAL FUND,OP LEASE/HIRE CHARGES:PLANT/EQUIP/FURNIT,5902318885,1000054033
06.09.2018,MODERNISATION HGF,ROYAL MAIL GROUP LTD,366.71,160 TOOLEY ST.,POSTAGES,5902318991,1000008168
06.09.2018,MODERNISATION HGF,ROYAL MAIL GROUP LTD,"4,206.00",160 TOOLEY ST.,POSTAGES,5902318825,1000008168
06.09.2018,MODERNISATION HGF,ELIESHA TRAINING LTD,765,ILM COSTS,TRAINING,5902319078,1000079900
06.09.2018,MODERNISATION HGF,ELIESHA TRAINING LTD,805,ILM COSTS,TRAINING,5902319078,1000079900
06.09.2018,MODERNISATION HGF,ELIESHA TRAINING LTD,"1,610.00",ILM COSTS,TRAINING,5902319031,1000079900
06.09.2018,MODERNISATION HGF,ANTALIS LTD,626,QUEENS RD 1 (BLOCK F),STATIONERY,5902318990,1000066919
06.09.2018,MODERNISATION HGF,PULSE CORPORATION LTD,450,REPAIR AND MAINTENANCE SERVICES,HARDWARE,5902319002,1000072911
06.09.2018,MODERNISATION HGF,COMENSURA LTD,"356,998.05",WEEKLY PAYMENTS,AGENCY STAFF,5902319084,1000051261
06.09.2018,REGENERATION,OPEN COMMUNITIES LTD,"1,782.50",OKR MASTER PLANNING,PROFESSIONAL FEES,5902318987,1000065800
06.09.2018,RESIDENT SERVICES,CITYGLEN LTD,560,TA PLACEMENTS,EXTERNAL AGENCIES AND BODIES,5902319014,1000026239
06.09.2018,RESIDENT SERVICES,CITYGLEN LTD,"1,470.00",TA PLACEMENTS,EXTERNAL AGENCIES AND BODIES,5902319017,1000026239
06.09.2018,RESIDENT SERVICES,CITYGLEN LTD,"1,519.00",TA PLACEMENTS,EXTERNAL AGENCIES AND BODIES,5902319016,1000026239
06.09.2018,SOUTHWARK BUILDING SERVICES,ORANGE PERSONAL COMMUNICATIONS,"3,460.39",ICT & COMMUNICATIONS,TELEPHONES (MOBILES),5902318962,11239402
06.09.2018,SOUTHWARK BUILDING SERVICES,PITNEY BOWES PURCHASE POWER,"1,040.00",R & M OVERHEADS,POSTAGES,5902318961,1000000025
06.09.2018,SOUTHWARK BUILDING SERVICES,PPG ARCHITECTURAL COATINGS,294.6,STORES/LOGISTICS,CREDITORS -GR/IR CLEARING ACCOUNT,5902319045,11063178
06.09.2018,SOUTHWARK BUILDING SERVICES,HOWDENS JOINERY CO,264.8,WALWORTH VOIDS - PLUMBER,MATERIALS,5902319075,1000027491
07.09.2018,ADULT SOCIAL CARE,REDACTED PERSONAL DATA,454.34,APPOINTEESHIPS,OTHER PAYMENTS FOR CLIENTS,REDACTED,REDACTED
07.09.2018,ADULT SOCIAL CARE,GUYS & ST THOMAS NHS FOUNDATION TRUST,"41,118.00",DIR OF ASC,PROFESSIONAL FEES,5902319183,1765536
07.09.2018,ADULT SOCIAL CARE,HEALTHCARE & TRANSPORT SERVICES,306,LD LTS 18-64,CLIENT TRANSPORT,2102862365,1000042743
07.09.2018,ADULT SOCIAL CARE,SURREY DOCKS FARM PROVIDENT SOCIETY,487.5,LD LTS 18-64,DAYCARE,2102862360,1000000958
07.09.2018,ADULT SOCIAL CARE,SURREY DOCKS FARM PROVIDENT SOCIETY,720,LD LTS 18-64,DAYCARE,2102862359,1000000958
07.09.2018,ADULT SOCIAL CARE,BEDE CAFE PROJECT,"1,040.00",LD LTS 18-64,DAYCARE,2102862362,1553877
07.09.2018,ADULT SOCIAL CARE,MEDACS HOMECARE,813.1,LD LTS 18-64,HOMECARE - C&V,2102862255,11287415
07.09.2018,ADULT SOCIAL CARE,LONDON CARE LTD,366.44,MEM LTS 18-64,HOMECARE - C&V,2102862466,1000003398
07.09.2018,ADULT SOCIAL CARE,MEDACS HOMECARE,724.5,MEM LTS 18-64,HOMECARE - C&V,2102862294,11287415
07.09.2018,ADULT SOCIAL CARE,LONDON CARE LTD,932.4,MEM LTS 18-64,HOMECARE - C&V,2102862489,1000003398
07.09.2018,ADULT SOCIAL CARE,LONDON CARE LTD,266.54,MEM LTS 65+,HOMECARE - C&V,2102862456,1000003398
07.09.2018,ADULT SOCIAL CARE,LONDON CARE LTD,399.6,MEM LTS 65+,HOMECARE - C&V,2102862450,1000003398
07.09.2018,ADULT SOCIAL CARE,LONDON CARE LTD,449.7,MEM LTS 65+,HOMECARE - C&V,2102862409,1000003398
07.09.2018,ADULT SOCIAL CARE,MEDACS HOMECARE,552,MEM LTS 65+,HOMECARE - C&V,2102862250,11287415
07.09.2018,ADULT SOCIAL CARE,MEDACS HOMECARE,942.85,MEM LTS 65+,HOMECARE - C&V,2102862283,11287415
07.09.2018,ADULT SOCIAL CARE,MEDACS HOMECARE,948.75,MEM LTS 65+,HOMECARE - C&V,2102862232,11287415
07.09.2018,ADULT SOCIAL CARE,LONDON CARE LTD,957.91,MEM LTS 65+,HOMECARE - C&V,2102862551,1000003398
07.09.2018,ADULT SOCIAL CARE,MEDACS HOMECARE,"1,035.00",MEM LTS 65+,HOMECARE - C&V,2102862277,11287415
07.09.2018,ADULT SOCIAL CARE,LONDON CARE LTD,"2,323.51",MEM LTS 65+,HOMECARE - C&V,2102862390,1000003398
07.09.2018,ADULT SOCIAL CARE,MEDACS HOMECARE,491.63,MH LTS 18-64,HOMECARE - C&V,2102862319,11287415
07.09.2018,ADULT SOCIAL CARE,LONDON CARE LTD,499.64,MH LTS 18-64,HOMECARE - C&V,2102862424,1000003398
07.09.2018,ADULT SOCIAL CARE,MEDACS HOMECARE,621,MH LTS 18-64,HOMECARE - C&V,2102862311,11287415
07.09.2018,ADULT SOCIAL CARE,MEDACS HOMECARE,457.13,MH LTS 65+,HOMECARE - C&V,2102862316,11287415
07.09.2018,ADULT SOCIAL CARE,LONDON CARE LTD,582.96,MH LTS 65+,HOMECARE - C&V,2102862404,1000003398
07.09.2018,ADULT SOCIAL CARE,LONDON CARE LTD,757.64,MH LTS 65+,HOMECARE - C&V,2102862394,1000003398
07.09.2018,ADULT SOCIAL CARE,MEDACS HOMECARE,888.38,MH LTS 65+,HOMECARE - C&V,2102862324,11287415
07.09.2018,ADULT SOCIAL CARE,LONDON CARE LTD,"1,049.44",MH LTS 65+,HOMECARE - C&V,2102862423,1000003398
07.09.2018,ADULT SOCIAL CARE,MEDACS HOMECARE,621,MH LTS 65+,HOMECARE - SPOT,2102862315,11287415
07.09.2018,ADULT SOCIAL CARE,MEDACS HOMECARE,250.13,PHY LTS 18-64,HOMECARE - C&V,2102862339,11287415
07.09.2018,ADULT SOCIAL CARE,MEDACS HOMECARE,263.06,PHY LTS 18-64,HOMECARE - C&V,2102862279,11287415
07.09.2018,ADULT SOCIAL CARE,MEDACS HOMECARE,284.63,PHY LTS 18-64,HOMECARE - C&V,2102862328,11287415
07.09.2018,ADULT SOCIAL CARE,MEDACS HOMECARE,293.25,PHY LTS 18-64,HOMECARE - C&V,2102862327,11287415
07.09.2018,ADULT SOCIAL CARE,LONDON CARE LTD,299.84,PHY LTS 18-64,HOMECARE - C&V,2102862516,1000003398
07.09.2018,ADULT SOCIAL CARE,MEDACS HOMECARE,306.19,PHY LTS 18-64,HOMECARE - C&V,2102862241,11287415
07.09.2018,ADULT SOCIAL CARE,MEDACS HOMECARE,310.5,PHY LTS 18-64,HOMECARE - C&V,2102862240,11287415
07.09.2018,ADULT SOCIAL CARE,MEDACS HOMECARE,323.44,PHY LTS 18-64,HOMECARE - C&V,2102862243,11287415
07.09.2018,ADULT SOCIAL CARE,MEDACS HOMECARE,327.75,PHY LTS 18-64,HOMECARE - C&V,2102862242,11287415
07.09.2018,ADULT SOCIAL CARE,LONDON CARE LTD,349.68,PHY LTS 18-64,HOMECARE - C&V,2102862544,1000003398
07.09.2018,ADULT SOCIAL CARE,LONDON CARE LTD,349.72,PHY LTS 18-64,HOMECARE - C&V,2102862384,1000003398
07.09.2018,ADULT SOCIAL CARE,LONDON CARE LTD,349.72,PHY LTS 18-64,HOMECARE - C&V,2102862445,1000003398
07.09.2018,ADULT SOCIAL CARE,LONDON CARE LTD,366.44,PHY LTS 18-64,HOMECARE - C&V,2102862395,1000003398
07.09.2018,ADULT SOCIAL CARE,LONDON CARE LTD,387.25,PHY LTS 18-64,HOMECARE - C&V,2102862483,1000003398
07.09.2018,ADULT SOCIAL CARE,LONDON CARE LTD,399.64,PHY LTS 18-64,HOMECARE - C&V,2102862369,1000003398
07.09.2018,ADULT SOCIAL CARE,MEDACS HOMECARE,431.25,PHY LTS 18-64,HOMECARE - C&V,2102862258,11287415
07.09.2018,ADULT SOCIAL CARE,MEDACS HOMECARE,431.25,PHY LTS 18-64,HOMECARE - C&V,2102862312,11287415
07.09.2018,ADULT SOCIAL CARE,MEDACS HOMECARE,449.8,PHY LTS 18-64,HOMECARE - C&V,2102862245,11287415
07.09.2018,ADULT SOCIAL CARE,LONDON CARE LTD,474.63,PHY LTS 18-64,HOMECARE - C&V,2102862418,1000003398
07.09.2018,ADULT SOCIAL CARE,LONDON CARE LTD,474.78,PHY LTS 18-64,HOMECARE - C&V,2102862372,1000003398
07.09.2018,ADULT SOCIAL CARE,LONDON CARE LTD,482.92,PHY LTS 18-64,HOMECARE - C&V,2102862492,1000003398
07.09.2018,ADULT SOCIAL CARE,MEDACS HOMECARE,483,PHY LTS 18-64,HOMECARE - C&V,2102862274,11287415
07.09.2018,ADULT SOCIAL CARE,MEDACS HOMECARE,495.94,PHY LTS 18-64,HOMECARE - C&V,2102862260,11287415
07.09.2018,ADULT SOCIAL CARE,MEDACS HOMECARE,500.25,PHY LTS 18-64,HOMECARE - C&V,2102862329,11287415
07.09.2018,ADULT SOCIAL CARE,MEDACS HOMECARE,534.75,PHY LTS 18-64,HOMECARE - C&V,2102862307,11287415
07.09.2018,ADULT SOCIAL CARE,MEDACS HOMECARE,543.38,PHY LTS 18-64,HOMECARE - C&V,2102862251,11287415
07.09.2018,ADULT SOCIAL CARE,MEDACS HOMECARE,547.69,PHY LTS 18-64,HOMECARE - C&V,2102862340,11287415
07.09.2018,ADULT SOCIAL CARE,LONDON CARE LTD,549.74,PHY LTS 18-64,HOMECARE - C&V,2102862525,1000003398
07.09.2018,ADULT SOCIAL CARE,MEDACS HOMECARE,580.31,PHY LTS 18-64,HOMECARE - C&V,2102862320,11287415
07.09.2018,ADULT SOCIAL CARE,LONDON CARE LTD,582.96,PHY LTS 18-64,HOMECARE - C&V,2102862373,1000003398
07.09.2018,ADULT SOCIAL CARE,LONDON CARE LTD,582.96,PHY LTS 18-64,HOMECARE - C&V,2102862504,1000003398
07.09.2018,ADULT SOCIAL CARE,LONDON CARE LTD,582.97,PHY LTS 18-64,HOMECARE - C&V,2102862387,1000003398
07.09.2018,ADULT SOCIAL CARE,MEDACS HOMECARE,596.85,PHY LTS 18-64,HOMECARE - C&V,2102862317,11287415
07.09.2018,ADULT SOCIAL CARE,LONDON CARE LTD,616.28,PHY LTS 18-64,HOMECARE - C&V,2102862401,1000003398
07.09.2018,ADULT SOCIAL CARE,LONDON CARE LTD,645.4,PHY LTS 18-64,HOMECARE - C&V,2102862391,1000003398
07.09.2018,ADULT SOCIAL CARE,LONDON CARE LTD,649.56,PHY LTS 18-64,HOMECARE - C&V,2102862403,1000003398
07.09.2018,ADULT SOCIAL CARE,LONDON CARE LTD,666,PHY LTS 18-64,HOMECARE - C&V,2102862412,1000003398
07.09.2018,ADULT SOCIAL CARE,LONDON CARE LTD,666.12,PHY LTS 18-64,HOMECARE - C&V,2102862541,1000003398
07.09.2018,ADULT SOCIAL CARE,LONDON CARE LTD,699.4,PHY LTS 18-64,HOMECARE - C&V,2102862505,1000003398
07.09.2018,ADULT SOCIAL CARE,MEDACS HOMECARE,707.25,PHY LTS 18-64,HOMECARE - C&V,2102862331,11287415
07.09.2018,ADULT SOCIAL CARE,MEDACS HOMECARE,709.3,PHY LTS 18-64,HOMECARE - C&V,2102862301,11287415
07.09.2018,ADULT SOCIAL CARE,LONDON CARE LTD,728.65,PHY LTS 18-64,HOMECARE - C&V,2102862558,1000003398
07.09.2018,ADULT SOCIAL CARE,LONDON CARE LTD,766.04,PHY LTS 18-64,HOMECARE - C&V,2102862488,1000003398
07.09.2018,ADULT SOCIAL CARE,LONDON CARE LTD,774.48,PHY LTS 18-64,HOMECARE - C&V,2102862461,1000003398
07.09.2018,ADULT SOCIAL CARE,LONDON CARE LTD,803.43,PHY LTS 18-64,HOMECARE - C&V,2102862380,1000003398
07.09.2018,ADULT SOCIAL CARE,LONDON CARE LTD,832.64,PHY LTS 18-64,HOMECARE - C&V,2102862563,1000003398
07.09.2018,ADULT SOCIAL CARE,MEDACS HOMECARE,845.25,PHY LTS 18-64,HOMECARE - C&V,2102862287,11287415
07.09.2018,ADULT SOCIAL CARE,LONDON CARE LTD,887.07,PHY LTS 18-64,HOMECARE - C&V,2102862472,1000003398
07.09.2018,ADULT SOCIAL CARE,MEDACS HOMECARE,905.63,PHY LTS 18-64,HOMECARE - C&V,2102862261,11287415
07.09.2018,ADULT SOCIAL CARE,MEDACS HOMECARE,909.94,PHY LTS 18-64,HOMECARE - C&V,2102862300,11287415
07.09.2018,ADULT SOCIAL CARE,LONDON CARE LTD,916.02,PHY LTS 18-64,HOMECARE - C&V,2102862399,1000003398
07.09.2018,ADULT SOCIAL CARE,LONDON CARE LTD,916.12,PHY LTS 18-64,HOMECARE - C&V,2102862455,1000003398
07.09.2018,ADULT SOCIAL CARE,LONDON CARE LTD,932.4,PHY LTS 18-64,HOMECARE - C&V,2102862482,1000003398
07.09.2018,ADULT SOCIAL CARE,LONDON CARE LTD,932.52,PHY LTS 18-64,HOMECARE - C&V,2102862406,1000003398
07.09.2018,ADULT SOCIAL CARE,LONDON CARE LTD,932.64,PHY LTS 18-64,HOMECARE - C&V,2102862393,1000003398
07.09.2018,ADULT SOCIAL CARE,MEDACS HOMECARE,961.69,PHY LTS 18-64,HOMECARE - C&V,2102862235,11287415
07.09.2018,ADULT SOCIAL CARE,LONDON CARE LTD,982.44,PHY LTS 18-64,HOMECARE - C&V,2102862420,1000003398
07.09.2018,ADULT SOCIAL CARE,MEDACS HOMECARE,"1,095.38",PHY LTS 18-64,HOMECARE - C&V,2102862264,11287415
07.09.2018,ADULT SOCIAL CARE,MEDACS HOMECARE,"1,203.19",PHY LTS 18-64,HOMECARE - C&V,2102862299,11287415
07.09.2018,ADULT SOCIAL CARE,LONDON CARE LTD,"1,482.00",PHY LTS 18-64,HOMECARE - C&V,2102862405,1000003398
07.09.2018,ADULT SOCIAL CARE,LONDON CARE LTD,"1,644.44",PHY LTS 18-64,HOMECARE - C&V,2102862457,1000003398
07.09.2018,ADULT SOCIAL CARE,MEDACS HOMECARE,"2,218.73",PHY LTS 18-64,HOMECARE - C&V,2102862323,11287415
07.09.2018,ADULT SOCIAL CARE,LONDON CARE LTD,"2,331.84",PHY LTS 18-64,HOMECARE - C&V,2102862462,1000003398
07.09.2018,ADULT SOCIAL CARE,LONDON CARE LTD,349.72,PHY LTS 18-64,HOMECARE - SPOT,2102862539,1000003398
07.09.2018,ADULT SOCIAL CARE,LONDON CARE LTD,641.23,PHY LTS 18-64,HOMECARE - SPOT,2102862470,1000003398
07.09.2018,ADULT SOCIAL CARE,MEDACS HOMECARE,258.75,PHY LTS 65+,HOMECARE - C&V,2102862271,11287415
07.09.2018,ADULT SOCIAL CARE,MEDACS HOMECARE,258.75,PHY LTS 65+,HOMECARE - C&V,2102862273,11287415
07.09.2018,ADULT SOCIAL CARE,LONDON CARE LTD,283.08,PHY LTS 65+,HOMECARE - C&V,2102862552,1000003398
07.09.2018,ADULT SOCIAL CARE,LONDON CARE LTD,283.22,PHY LTS 65+,HOMECARE - C&V,2102862415,1000003398
07.09.2018,ADULT SOCIAL CARE,LONDON CARE LTD,299.78,PHY LTS 65+,HOMECARE - C&V,2102862522,1000003398
07.09.2018,ADULT SOCIAL CARE,MEDACS HOMECARE,303.26,PHY LTS 65+,HOMECARE - C&V,2102862268,11287415
07.09.2018,ADULT SOCIAL CARE,MEDACS HOMECARE,310.5,PHY LTS 65+,HOMECARE - C&V,2102862249,11287415
07.09.2018,ADULT SOCIAL CARE,MEDACS HOMECARE,320.05,PHY LTS 65+,HOMECARE - C&V,2102862285,11287415
07.09.2018,ADULT SOCIAL CARE,LONDON CARE LTD,333,PHY LTS 65+,HOMECARE - C&V,2102862528,1000003398
07.09.2018,ADULT SOCIAL CARE,LONDON CARE LTD,341.33,PHY LTS 65+,HOMECARE - C&V,2102862375,1000003398
07.09.2018,ADULT SOCIAL CARE,LONDON CARE LTD,349.72,PHY LTS 65+,HOMECARE - C&V,2102862473,1000003398
07.09.2018,ADULT SOCIAL CARE,LONDON CARE LTD,349.72,PHY LTS 65+,HOMECARE - C&V,2102862503,1000003398
07.09.2018,ADULT SOCIAL CARE,LONDON CARE LTD,349.72,PHY LTS 65+,HOMECARE - C&V,2102862554,1000003398
07.09.2018,ADULT SOCIAL CARE,LONDON CARE LTD,349.72,PHY LTS 65+,HOMECARE - C&V,2102862564,1000003398
07.09.2018,ADULT SOCIAL CARE,LONDON CARE LTD,349.86,PHY LTS 65+,HOMECARE - C&V,2102862501,1000003398
07.09.2018,ADULT SOCIAL CARE,LONDON CARE LTD,353.88,PHY LTS 65+,HOMECARE - C&V,2102862378,1000003398
07.09.2018,ADULT SOCIAL CARE,MEDACS HOMECARE,354.65,PHY LTS 65+,HOMECARE - C&V,2102862306,11287415
07.09.2018,ADULT SOCIAL CARE,LONDON CARE LTD,366.36,PHY LTS 65+,HOMECARE - C&V,2102862514,1000003398
07.09.2018,ADULT SOCIAL CARE,MEDACS HOMECARE,366.56,PHY LTS 65+,HOMECARE - C&V,2102862265,11287415
07.09.2018,ADULT SOCIAL CARE,LONDON CARE LTD,387.19,PHY LTS 65+,HOMECARE - C&V,2102862437,1000003398
07.09.2018,ADULT SOCIAL CARE,LONDON CARE LTD,392.8,PHY LTS 65+,HOMECARE - C&V,2102862467,1000003398
07.09.2018,ADULT SOCIAL CARE,MEDACS HOMECARE,414,PHY LTS 65+,HOMECARE - C&V,2102862233,11287415
07.09.2018,ADULT SOCIAL CARE,LONDON CARE LTD,416.4,PHY LTS 65+,HOMECARE - C&V,2102862545,1000003398
07.09.2018,ADULT SOCIAL CARE,LONDON CARE LTD,424.83,PHY LTS 65+,HOMECARE - C&V,2102862513,1000003398
07.09.2018,ADULT SOCIAL CARE,METRO HOMECARE LTD,448.18,PHY LTS 65+,HOMECARE - C&V,2102862343,1000070695
07.09.2018,ADULT SOCIAL CARE,LONDON CARE LTD,457.93,PHY LTS 65+,HOMECARE - C&V,2102862547,1000003398
07.09.2018,ADULT SOCIAL CARE,LONDON CARE LTD,466.48,PHY LTS 65+,HOMECARE - C&V,2102862377,1000003398
07.09.2018,ADULT SOCIAL CARE,LONDON CARE LTD,466.48,PHY LTS 65+,HOMECARE - C&V,2102862385,1000003398
07.09.2018,ADULT SOCIAL CARE,LONDON CARE LTD,466.48,PHY LTS 65+,HOMECARE - C&V,2102862508,1000003398
07.09.2018,ADULT SOCIAL CARE,MEDACS HOMECARE,474.37,PHY LTS 65+,HOMECARE - C&V,2102862259,11287415
07.09.2018,ADULT SOCIAL CARE,MEDACS HOMECARE,480.08,PHY LTS 65+,HOMECARE - C&V,2102862267,11287415
07.09.2018,ADULT SOCIAL CARE,LONDON CARE LTD,482.92,PHY LTS 65+,HOMECARE - C&V,2102862396,1000003398
07.09.2018,ADULT SOCIAL CARE,LONDON CARE LTD,528.83,PHY LTS 65+,HOMECARE - C&V,2102862374,1000003398
07.09.2018,ADULT SOCIAL CARE,LONDON CARE LTD,533.08,PHY LTS 65+,HOMECARE - C&V,2102862431,1000003398
07.09.2018,ADULT SOCIAL CARE,LONDON CARE LTD,533.08,PHY LTS 65+,HOMECARE - C&V,2102862469,1000003398
07.09.2018,ADULT SOCIAL CARE,MEDACS HOMECARE,534.75,PHY LTS 65+,HOMECARE - C&V,2102862237,11287415
07.09.2018,ADULT SOCIAL CARE,MEDACS HOMECARE,536.3,PHY LTS 65+,HOMECARE - C&V,2102862270,11287415
07.09.2018,ADULT SOCIAL CARE,MEDACS HOMECARE,543.38,PHY LTS 65+,HOMECARE - C&V,2102862290,11287415
07.09.2018,ADULT SOCIAL CARE,LONDON CARE LTD,549.45,PHY LTS 65+,HOMECARE - C&V,2102862422,1000003398
07.09.2018,ADULT SOCIAL CARE,MEDACS HOMECARE,552,PHY LTS 65+,HOMECARE - C&V,2102862330,11287415
07.09.2018,ADULT SOCIAL CARE,LONDON CARE LTD,562.24,PHY LTS 65+,HOMECARE - C&V,2102862413,1000003398
07.09.2018,ADULT SOCIAL CARE,LONDON CARE LTD,566.28,PHY LTS 65+,HOMECARE - C&V,2102862490,1000003398
07.09.2018,ADULT SOCIAL CARE,LONDON CARE LTD,566.4,PHY LTS 65+,HOMECARE - C&V,2102862565,1000003398
07.09.2018,ADULT SOCIAL CARE,LONDON CARE LTD,582.8,PHY LTS 65+,HOMECARE - C&V,2102862497,1000003398
07.09.2018,ADULT SOCIAL CARE,LONDON CARE LTD,582.96,PHY LTS 65+,HOMECARE - C&V,2102862432,1000003398
07.09.2018,ADULT SOCIAL CARE,LONDON CARE LTD,582.96,PHY LTS 65+,HOMECARE - C&V,2102862458,1000003398
07.09.2018,ADULT SOCIAL CARE,LONDON CARE LTD,582.96,PHY LTS 65+,HOMECARE - C&V,2102862530,1000003398
07.09.2018,ADULT SOCIAL CARE,LONDON CARE LTD,591.35,PHY LTS 65+,HOMECARE - C&V,2102862435,1000003398
07.09.2018,ADULT SOCIAL CARE,LONDON CARE LTD,599.4,PHY LTS 65+,HOMECARE - C&V,2102862444,1000003398
07.09.2018,ADULT SOCIAL CARE,LONDON CARE LTD,599.4,PHY LTS 65+,HOMECARE - C&V,2102862537,1000003398
07.09.2018,ADULT SOCIAL CARE,LONDON CARE LTD,599.4,PHY LTS 65+,HOMECARE - C&V,2102862548,1000003398
07.09.2018,ADULT SOCIAL CARE,LONDON CARE LTD,599.68,PHY LTS 65+,HOMECARE - C&V,2102862430,1000003398
07.09.2018,ADULT SOCIAL CARE,LONDON CARE LTD,599.72,PHY LTS 65+,HOMECARE - C&V,2102862500,1000003398
07.09.2018,ADULT SOCIAL CARE,MEDACS HOMECARE,601.18,PHY LTS 65+,HOMECARE - C&V,2102862303,11287415
07.09.2018,ADULT SOCIAL CARE,MEDACS HOMECARE,603.75,PHY LTS 65+,HOMECARE - C&V,2102862266,11287415
07.09.2018,ADULT SOCIAL CARE,MEDACS HOMECARE,605.5,PHY LTS 65+,HOMECARE - C&V,2102862318,11287415
07.09.2018,ADULT SOCIAL CARE,MEDACS HOMECARE,608.06,PHY LTS 65+,HOMECARE - C&V,2102862338,11287415
07.09.2018,ADULT SOCIAL CARE,LONDON CARE LTD,632.92,PHY LTS 65+,HOMECARE - C&V,2102862411,1000003398
07.09.2018,ADULT SOCIAL CARE,LONDON CARE LTD,632.96,PHY LTS 65+,HOMECARE - C&V,2102862523,1000003398
07.09.2018,ADULT SOCIAL CARE,MEDACS HOMECARE,646.88,PHY LTS 65+,HOMECARE - C&V,2102862325,11287415
07.09.2018,ADULT SOCIAL CARE,LONDON CARE LTD,649.56,PHY LTS 65+,HOMECARE - C&V,2102862459,1000003398
07.09.2018,ADULT SOCIAL CARE,MEDACS HOMECARE,664.13,PHY LTS 65+,HOMECARE - C&V,2102862326,11287415
07.09.2018,ADULT SOCIAL CARE,MEDACS HOMECARE,668.44,PHY LTS 65+,HOMECARE - C&V,2102862310,11287415
07.09.2018,ADULT SOCIAL CARE,MEDACS HOMECARE,672.75,PHY LTS 65+,HOMECARE - C&V,2102862314,11287415
07.09.2018,ADULT SOCIAL CARE,LONDON CARE LTD,683.06,PHY LTS 65+,HOMECARE - C&V,2102862506,1000003398
07.09.2018,ADULT SOCIAL CARE,LONDON CARE LTD,699.44,PHY LTS 65+,HOMECARE - C&V,2102862543,1000003398
07.09.2018,ADULT SOCIAL CARE,LONDON CARE LTD,699.44,PHY LTS 65+,HOMECARE - C&V,2102862549,1000003398
07.09.2018,ADULT SOCIAL CARE,MEDACS HOMECARE,702.94,PHY LTS 65+,HOMECARE - C&V,2102862239,11287415
07.09.2018,ADULT SOCIAL CARE,LONDON CARE LTD,707.81,PHY LTS 65+,HOMECARE - C&V,2102862553,1000003398
07.09.2018,ADULT SOCIAL CARE,LONDON CARE LTD,732.79,PHY LTS 65+,HOMECARE - C&V,2102862446,1000003398
07.09.2018,ADULT SOCIAL CARE,LONDON CARE LTD,766.04,PHY LTS 65+,HOMECARE - C&V,2102862397,1000003398
07.09.2018,ADULT SOCIAL CARE,LONDON CARE LTD,799.36,PHY LTS 65+,HOMECARE - C&V,2102862499,1000003398
07.09.2018,ADULT SOCIAL CARE,LONDON CARE LTD,799.62,PHY LTS 65+,HOMECARE - C&V,2102862389,1000003398
07.09.2018,ADULT SOCIAL CARE,LONDON CARE LTD,803.43,PHY LTS 65+,HOMECARE - C&V,2102862562,1000003398
07.09.2018,ADULT SOCIAL CARE,LONDON CARE LTD,815.92,PHY LTS 65+,HOMECARE - C&V,2102862468,1000003398
07.09.2018,ADULT SOCIAL CARE,LONDON CARE LTD,816.16,PHY LTS 65+,HOMECARE - C&V,2102862498,1000003398
07.09.2018,ADULT SOCIAL CARE,LONDON CARE LTD,816.2,PHY LTS 65+,HOMECARE - C&V,2102862434,1000003398
07.09.2018,ADULT SOCIAL CARE,LONDON CARE LTD,816.2,PHY LTS 65+,HOMECARE - C&V,2102862540,1000003398
07.09.2018,ADULT SOCIAL CARE,LONDON CARE LTD,824.59,PHY LTS 65+,HOMECARE - C&V,2102862512,1000003398
07.09.2018,ADULT SOCIAL CARE,MEDACS HOMECARE,830.93,PHY LTS 65+,HOMECARE - C&V,2102862280,11287415
07.09.2018,ADULT SOCIAL CARE,LONDON CARE LTD,832.64,PHY LTS 65+,HOMECARE - C&V,2102862568,1000003398
07.09.2018,ADULT SOCIAL CARE,MEDACS HOMECARE,839.05,PHY LTS 65+,HOMECARE - C&V,2102862236,11287415
07.09.2018,ADULT SOCIAL CARE,MEDACS HOMECARE,845.25,PHY LTS 65+,HOMECARE - C&V,2102862342,11287415
07.09.2018,ADULT SOCIAL CARE,MEDACS HOMECARE,848.18,PHY LTS 65+,HOMECARE - C&V,2102862337,11287415
07.09.2018,ADULT SOCIAL CARE,LONDON CARE LTD,849.52,PHY LTS 65+,HOMECARE - C&V,2102862477,1000003398
07.09.2018,ADULT SOCIAL CARE,MEDACS HOMECARE,862.5,PHY LTS 65+,HOMECARE - C&V,2102862297,11287415
07.09.2018,ADULT SOCIAL CARE,MEDACS HOMECARE,865,PHY LTS 65+,HOMECARE - C&V,2102862256,11287415
07.09.2018,ADULT SOCIAL CARE,LONDON CARE LTD,882.8,PHY LTS 65+,HOMECARE - C&V,2102862527,1000003398
07.09.2018,ADULT SOCIAL CARE,LONDON CARE LTD,882.8,PHY LTS 65+,HOMECARE - C&V,2102862559,1000003398
07.09.2018,ADULT SOCIAL CARE,LONDON CARE LTD,903.63,PHY LTS 65+,HOMECARE - C&V,2102862398,1000003398
07.09.2018,ADULT SOCIAL CARE,LONDON CARE LTD,903.63,PHY LTS 65+,HOMECARE - C&V,2102862485,1000003398
07.09.2018,ADULT SOCIAL CARE,LONDON CARE LTD,916.04,PHY LTS 65+,HOMECARE - C&V,2102862386,1000003398
07.09.2018,ADULT SOCIAL CARE,LONDON CARE LTD,916.08,PHY LTS 65+,HOMECARE - C&V,2102862453,1000003398
07.09.2018,ADULT SOCIAL CARE,LONDON CARE LTD,916.12,PHY LTS 65+,HOMECARE - C&V,2102862376,1000003398
07.09.2018,ADULT SOCIAL CARE,LONDON CARE LTD,924.17,PHY LTS 65+,HOMECARE - C&V,2102862484,1000003398
07.09.2018,ADULT SOCIAL CARE,MEDACS HOMECARE,925.55,PHY LTS 65+,HOMECARE - C&V,2102862263,11287415
07.09.2018,ADULT SOCIAL CARE,LONDON CARE LTD,932.4,PHY LTS 65+,HOMECARE - C&V,2102862507,1000003398
07.09.2018,ADULT SOCIAL CARE,LONDON CARE LTD,932.68,PHY LTS 65+,HOMECARE - C&V,2102862440,1000003398
07.09.2018,ADULT SOCIAL CARE,LONDON CARE LTD,932.68,PHY LTS 65+,HOMECARE - C&V,2102862449,1000003398
07.09.2018,ADULT SOCIAL CARE,MEDACS HOMECARE,948.75,PHY LTS 65+,HOMECARE - C&V,2102862229,11287415
07.09.2018,ADULT SOCIAL CARE,MEDACS HOMECARE,953.06,PHY LTS 65+,HOMECARE - C&V,2102862296,11287415
07.09.2018,ADULT SOCIAL CARE,LONDON CARE LTD,965.96,PHY LTS 65+,HOMECARE - C&V,2102862426,1000003398
07.09.2018,ADULT SOCIAL CARE,MEDACS HOMECARE,981.87,PHY LTS 65+,HOMECARE - C&V,2102862334,11287415
07.09.2018,ADULT SOCIAL CARE,MEDACS HOMECARE,991.88,PHY LTS 65+,HOMECARE - C&V,2102862244,11287415
07.09.2018,ADULT SOCIAL CARE,LONDON CARE LTD,999.28,PHY LTS 65+,HOMECARE - C&V,2102862533,1000003398
07.09.2018,ADULT SOCIAL CARE,LONDON CARE LTD,"1,032.60",PHY LTS 65+,HOMECARE - C&V,2102862567,1000003398
07.09.2018,ADULT SOCIAL CARE,MEDACS HOMECARE,"1,043.63",PHY LTS 65+,HOMECARE - C&V,2102862254,11287415
07.09.2018,ADULT SOCIAL CARE,LONDON CARE LTD,"1,049.44",PHY LTS 65+,HOMECARE - C&V,2102862476,1000003398
07.09.2018,ADULT SOCIAL CARE,LONDON CARE LTD,"1,049.44",PHY LTS 65+,HOMECARE - C&V,2102862521,1000003398
07.09.2018,ADULT SOCIAL CARE,LONDON CARE LTD,"1,057.55",PHY LTS 65+,HOMECARE - C&V,2102862441,1000003398
07.09.2018,ADULT SOCIAL CARE,LONDON CARE LTD,"1,099.20",PHY LTS 65+,HOMECARE - C&V,2102862478,1000003398
07.09.2018,ADULT SOCIAL CARE,LONDON CARE LTD,"1,099.36",PHY LTS 65+,HOMECARE - C&V,2102862493,1000003398
07.09.2018,ADULT SOCIAL CARE,LONDON CARE LTD,"1,107.70",PHY LTS 65+,HOMECARE - C&V,2102862410,1000003398
07.09.2018,ADULT SOCIAL CARE,LONDON CARE LTD,"1,149.36",PHY LTS 65+,HOMECARE - C&V,2102862402,1000003398
07.09.2018,ADULT SOCIAL CARE,LONDON CARE LTD,"1,163.09",PHY LTS 65+,HOMECARE - C&V,2102862538,1000003398
07.09.2018,ADULT SOCIAL CARE,LONDON CARE LTD,"1,165.67",PHY LTS 65+,HOMECARE - C&V,2102862491,1000003398
07.09.2018,ADULT SOCIAL CARE,LONDON CARE LTD,"1,165.92",PHY LTS 65+,HOMECARE - C&V,2102862454,1000003398
07.09.2018,ADULT SOCIAL CARE,MEDACS HOMECARE,"1,168.69",PHY LTS 65+,HOMECARE - C&V,2102862230,11287415
07.09.2018,ADULT SOCIAL CARE,LONDON CARE LTD,"1,190.74",PHY LTS 65+,HOMECARE - C&V,2102862439,1000003398
07.09.2018,ADULT SOCIAL CARE,LONDON CARE LTD,"1,203.38",PHY LTS 65+,HOMECARE - C&V,2102862471,1000003398
07.09.2018,ADULT SOCIAL CARE,MEDACS HOMECARE,"1,206.68",PHY LTS 65+,HOMECARE - C&V,2102862341,11287415
07.09.2018,ADULT SOCIAL CARE,LONDON CARE LTD,"1,215.78",PHY LTS 65+,HOMECARE - C&V,2102862524,1000003398
07.09.2018,ADULT SOCIAL CARE,LONDON CARE LTD,"1,253.31",PHY LTS 65+,HOMECARE - C&V,2102862416,1000003398
07.09.2018,ADULT SOCIAL CARE,LONDON CARE LTD,"1,274.07",PHY LTS 65+,HOMECARE - C&V,2102862407,1000003398
07.09.2018,ADULT SOCIAL CARE,LONDON CARE LTD,"1,301.95",PHY LTS 65+,HOMECARE - C&V,2102862383,1000003398
07.09.2018,ADULT SOCIAL CARE,MEDACS HOMECARE,"1,315.31",PHY LTS 65+,HOMECARE - C&V,2102862298,11287415
07.09.2018,ADULT SOCIAL CARE,LONDON CARE LTD,"1,315.72",PHY LTS 65+,HOMECARE - C&V,2102862509,1000003398
07.09.2018,ADULT SOCIAL CARE,LONDON CARE LTD,"1,332.40",PHY LTS 65+,HOMECARE - C&V,2102862510,1000003398
07.09.2018,ADULT SOCIAL CARE,LONDON CARE LTD,"1,365.48",PHY LTS 65+,HOMECARE - C&V,2102862550,1000003398
07.09.2018,ADULT SOCIAL CARE,MEDACS HOMECARE,"1,401.56",PHY LTS 65+,HOMECARE - C&V,2102862309,11287415
07.09.2018,ADULT SOCIAL CARE,LONDON CARE LTD,"1,615.74",PHY LTS 65+,HOMECARE - C&V,2102862502,1000003398
07.09.2018,ADULT SOCIAL CARE,LONDON CARE LTD,"1,673.77",PHY LTS 65+,HOMECARE - C&V,2102862496,1000003398
07.09.2018,ADULT SOCIAL CARE,LONDON CARE LTD,"1,857.03",PHY LTS 65+,HOMECARE - C&V,2102862408,1000003398
07.09.2018,ADULT SOCIAL CARE,LONDON CARE LTD,"1,865.08",PHY LTS 65+,HOMECARE - C&V,2102862381,1000003398
07.09.2018,ADULT SOCIAL CARE,LONDON CARE LTD,"1,981.84",PHY LTS 65+,HOMECARE - C&V,2102862526,1000003398
07.09.2018,ADULT SOCIAL CARE,MEDACS HOMECARE,"1,983.75",PHY LTS 65+,HOMECARE - C&V,2102862281,11287415
07.09.2018,ADULT SOCIAL CARE,LONDON CARE LTD,"2,069.49",PHY LTS 65+,HOMECARE - C&V,2102862371,1000003398
07.09.2018,ADULT SOCIAL CARE,MEDACS HOMECARE,"2,108.81",PHY LTS 65+,HOMECARE - C&V,2102862231,11287415
07.09.2018,ADULT SOCIAL CARE,MEDACS HOMECARE,"2,121.75",PHY LTS 65+,HOMECARE - C&V,2102862253,11287415
07.09.2018,ADULT SOCIAL CARE,MEDACS HOMECARE,"2,171.15",PHY LTS 65+,HOMECARE - C&V,2102862291,11287415
07.09.2018,ADULT SOCIAL CARE,MEDACS HOMECARE,"2,179.80",PHY LTS 65+,HOMECARE - C&V,2102862282,11287415
07.09.2018,ADULT SOCIAL CARE,LONDON CARE LTD,"2,277.71",PHY LTS 65+,HOMECARE - C&V,2102862436,1000003398
07.09.2018,ADULT SOCIAL CARE,LONDON CARE LTD,"2,431.76",PHY LTS 65+,HOMECARE - C&V,2102862534,1000003398
07.09.2018,ADULT SOCIAL CARE,MEDACS HOMECARE,"2,451.05",PHY LTS 65+,HOMECARE - C&V,2102862257,11287415
07.09.2018,ADULT SOCIAL CARE,LONDON CARE LTD,"2,452.48",PHY LTS 65+,HOMECARE - C&V,2102862535,1000003398
07.09.2018,ADULT SOCIAL CARE,LONDON CARE LTD,"2,593.89",PHY LTS 65+,HOMECARE - C&V,2102862400,1000003398
07.09.2018,ADULT SOCIAL CARE,MEDACS HOMECARE,"2,652.19",PHY LTS 65+,HOMECARE - C&V,2102862305,11287415
07.09.2018,ADULT SOCIAL CARE,LONDON CARE LTD,"2,764.31",PHY LTS 65+,HOMECARE - C&V,2102862442,1000003398
07.09.2018,ADULT SOCIAL CARE,LONDON CARE LTD,"2,793.66",PHY LTS 65+,HOMECARE - C&V,2102862474,1000003398
07.09.2018,ADULT SOCIAL CARE,LONDON CARE LTD,"2,797.60",PHY LTS 65+,HOMECARE - C&V,2102862555,1000003398
07.09.2018,ADULT SOCIAL CARE,MEDACS HOMECARE,"3,117.94",PHY LTS 65+,HOMECARE - C&V,2102862252,11287415
07.09.2018,ADULT SOCIAL CARE,MEDACS HOMECARE,"3,358.23",PHY LTS 65+,HOMECARE - C&V,2102862333,11287415
07.09.2018,ADULT SOCIAL CARE,LONDON CARE LTD,"3,380.50",PHY LTS 65+,HOMECARE - C&V,2102862417,1000003398
07.09.2018,ADULT SOCIAL CARE,LONDON CARE LTD,"3,442.94",PHY LTS 65+,HOMECARE - C&V,2102862494,1000003398
07.09.2018,ADULT SOCIAL CARE,LONDON CARE LTD,266.52,PHY LTS 65+,HOMECARE - SPOT,2102862511,1000003398
07.09.2018,ADULT SOCIAL CARE,METRO HOMECARE LTD,434.39,PHY LTS 65+,HOMECARE - SPOT,2102862352,1000070695
07.09.2018,ADULT SOCIAL CARE,METRO HOMECARE LTD,455.07,PHY LTS 65+,HOMECARE - SPOT,2102862345,1000070695
07.09.2018,ADULT SOCIAL CARE,LONDON CARE LTD,999.28,PHY LTS 65+,HOMECARE - SPOT,2102862464,1000003398
07.09.2018,ADULT SOCIAL CARE,AKARI CARE LTD (FRINDSBURY HALL),"-1,574.98",PHY LTS 65+,"MAND STATUTORY CHARGES, NURSING",2102857665,1000081551
07.09.2018,ADULT SOCIAL CARE,AKARI CARE LTD (FRINDSBURY HALL),-545.1,PHY LTS 65+,"MAND STATUTORY CHARGES, NURSING",2102860322,1000081551
07.09.2018,ADULT SOCIAL CARE,AKARI CARE LTD (FRINDSBURY HALL),787.49,PHY LTS 65+,"MAND STATUTORY CHARGES, NURSING",2102857667,1000081551
07.09.2018,ADULT SOCIAL CARE,AKARI CARE LTD (FRINDSBURY HALL),"2,767.36",PHY LTS 65+,NURSING PLACEMENTS FEES,2102860323,1000081551
07.09.2018,ADULT SOCIAL CARE,AKARI CARE LTD (FRINDSBURY HALL),"4,052.21",PHY LTS 65+,NURSING PLACEMENTS FEES,2102857666,1000081551
07.09.2018,ADULT SOCIAL CARE,METRO HOMECARE LTD,289.59,PHY STS 65+,HOMECARE - IC,2102862357,1000070695
07.09.2018,ADULT SOCIAL CARE,METRO HOMECARE LTD,434.39,PHY STS 65+,HOMECARE - IC,2102862355,1000070695
07.09.2018,ADULT SOCIAL CARE,MEDACS HOMECARE,536.3,SEN LTS 65+,HOMECARE - C&V,2102862246,11287415
07.09.2018,ADULT SOCIAL CARE,SURREY DOCKS FARM PROVIDENT SOCIETY,500,SOCIAL ISOLATION,DAYCARE,2102862358,1000000958
07.09.2018,ADULT SOCIAL CARE,LONDON CARE LTD,349.72,SOCIAL ISOLATION,HOMECARE - C&V,2102862443,1000003398
07.09.2018,ADULT SOCIAL CARE,LONDON CARE LTD,349.72,SOCIAL ISOLATION,HOMECARE - C&V,2102862479,1000003398
07.09.2018,ADULT SOCIAL CARE,MEDACS HOMECARE,412.62,SOCIAL ISOLATION,HOMECARE - C&V,2102862288,11287415
07.09.2018,ADULT SOCIAL CARE,LONDON CARE LTD,482.85,SOCIAL ISOLATION,HOMECARE - C&V,2102862388,1000003398
07.09.2018,ADULT SOCIAL CARE,LONDON CARE LTD,624.6,SOCIAL ISOLATION,HOMECARE - C&V,2102862495,1000003398
07.09.2018,ADULT SOCIAL CARE,LONDON CARE LTD,703.67,SOCIAL ISOLATION,HOMECARE - C&V,2102862448,1000003398
07.09.2018,ADULT SOCIAL CARE,MEDACS HOMECARE,853.41,SOCIAL ISOLATION,HOMECARE - C&V,2102862269,11287415
07.09.2018,ADULT SOCIAL CARE,LONDON CARE LTD,"1,253.38",SOCIAL ISOLATION,HOMECARE - C&V,2102862421,1000003398
07.09.2018,ADULT SOCIAL CARE,LONDON CARE LTD,"2,314.63",SOCIAL ISOLATION,HOMECARE - SPOT,2102862465,1000003398
07.09.2018,ADULT SOCIAL CARE,MEDACS HOMECARE,973.13,SUB LTS 18-64,HOMECARE - C&V,2102862278,11287415
07.09.2018,ADULT SOCIAL CARE,MEDACS HOMECARE,978.94,SUB LTS 18-64,HOMECARE - SPOT,2102862304,11287415
07.09.2018,ASSET MANAGEMENT,PJP DEVELOPMENT CONSULTANCY LTD,"1,190.00",DEVELOPMENT DELIVERY,PROFESSIONAL FEES,5902319157,1000080388
07.09.2018,ASSET MANAGEMENT,PJP DEVELOPMENT CONSULTANCY LTD,"5,950.00",DEVELOPMENT DELIVERY,PROFESSIONAL FEES,5902319154,1000080388
07.09.2018,ASSET MANAGEMENT,UNIVERSA LAW LTD,"3,750.00",DISREPAIR,BUILDING R&M,5902319197,1000081466
07.09.2018,ASSET MANAGEMENT,HAYS RECRUITING EXPERTS WORLDWIDE,"1,500.00",HEALTH AND SAFETY,PROFESSIONAL FEES,5902319190,11319307
07.09.2018,ASSET MANAGEMENT,A & E ELKINS LTD,"2,333.39",R&M CONTRACTS (SOUTH),BUILDING R&M,2102862204,4012501
07.09.2018,CHIEF EXECUTIVE,CONWAY AECOM LTD,"9,136.35",CAPITAL PS (REGEN),CONSTR'N SUB CONTRACT - NON CERTIFICATED,5902319178,1000071205
07.09.2018,CHIEF EXECUTIVE,FAITHFUL & GOULD,"17,237.92",CAPITAL PS (REGEN),CONSTRUCTION FEES  - EXTERNAL,5902319149,1000061390
07.09.2018,CHIEF EXECUTIVE'S OFFICE,J C CONSULTANT SERVICES LTD,"8,000.00",CHIEF EXEC'S OFFICE,GRANTS,5902319181,1000042476
07.09.2018,CHIEF EXECUTIVE'S OFFICE,J C CONSULTANT SERVICES LTD,"8,500.00",CHIEF EXEC'S OFFICE,GRANTS,5902319180,1000042476
07.09.2018,CHILDREN AND ADULT,DANZER LTD,"3,385.15",CAPITAL PS (EDUCATION),CONSTRUCTION FEES  - EXTERNAL,2102862208,3000001645
07.09.2018,CHILDREN AND ADULT,MACCREANOR LAVINGTON LTD,"8,900.00",CAPITAL PS (EDUCATION),CONSTRUCTION FEES - ARCHITECT,5902319155,1000075874
07.09.2018,CHILDREN AND ADULT,CBS MAINTENANCE SERVICES LTD,"11,945.63",CAPITAL PS (EDUCATION),CONSTRUCTION MAIN CONTRACT -CERTIFICATED,2102862201,3000001518
07.09.2018,CHILDREN AND ADULT,PARAGON SPACE,"28,400.00",CAPITAL PS (EDUCATION),FURNITURE & FITTINGS ACQUISITION,5902318943,1000081039
07.09.2018,CHILDREN AND ADULT,PARAGON SPACE,"51,990.25",CAPITAL PS (EDUCATION),FURNITURE & FITTINGS ACQUISITION,5902318943,1000081039
07.09.2018,CHILDREN AND ADULT,NUMBER 10 INTERIM LTD,"5,250.00",CAPITAL PS (STRAT SERV),ICT ACQUISITION,5902318430,1000075139
07.09.2018,CHILDREN'S SERVICES,ANN ARBOR PUBLISHERS LTD,"1,095.00",CLINICAL SERVICE,EQUIPMENT PURCHASE & REPAIR,5902319193,1000067049
07.09.2018,CHILDREN'S SERVICES,REDACTED PERSONAL DATA,500,FRIENDS & FAMILY FOSTERING,ADDITIONAL PAYMENTS TO AGENCIES/CARERS,REDACTED,REDACTED
07.09.2018,CHILDREN'S SERVICES,REDACTED PERSONAL DATA,"1,676.70",FRIENDS & FAMILY FOSTERING,PAYMENTS TO CARERS,REDACTED,REDACTED
07.09.2018,CHILDREN'S SERVICES,ST JOHNS RC PRIMARY SCHOOL,"3,000.00",INTERVENTION FUND,MISCELLANEOUS RECHARGES,2102862617,5001000075
07.09.2018,CHILDREN'S SERVICES,TOWNSEND PRIMARY SCHOOL,"3,000.00",INTERVENTION FUND,MISCELLANEOUS RECHARGES,2102862618,5001000096
07.09.2018,CHILDREN'S SERVICES,ST MARY MAGDALENE CE SCHOOL,"5,000.00",INTERVENTION FUND,MISCELLANEOUS RECHARGES,2102862619,5001000080
07.09.2018,CHILDREN'S SERVICES,REDACTED PERSONAL DATA,926.86,LEAVING CARE GRANT,OTHER PAYMENTS FOR CLIENTS,REDACTED,REDACTED
07.09.2018,CHILDREN'S SERVICES,CRAMPTON PRIMARY SCHOOL,400,PRIMARY ACHIEVEMENT,MISCELLANEOUS RECHARGES,2102862622,5001000023
07.09.2018,CHILDREN'S SERVICES,SNOWSFIELDS PRIMARY SCHOOL,500,PRIMARY ACHIEVEMENT,MISCELLANEOUS RECHARGES,2102862625,5001000061
07.09.2018,CHILDREN'S SERVICES,FRIARS PRIMARY SCHOOL,600,PRIMARY ACHIEVEMENT,MISCELLANEOUS RECHARGES,2102862620,5001000033
07.09.2018,CHILDREN'S SERVICES,ST JOHNS RC PRIMARY SCHOOL,600,PRIMARY ACHIEVEMENT,MISCELLANEOUS RECHARGES,2102862621,5001000075
07.09.2018,CHILDREN'S SERVICES,ALBION PRIMARY SCHOOL,600,PRIMARY ACHIEVEMENT,MISCELLANEOUS RECHARGES,2102862623,5001000000
07.09.2018,CHILDREN'S SERVICES,TOWER BRIDGE PRIMARY SCHOOL,600,PRIMARY ACHIEVEMENT,MISCELLANEOUS RECHARGES,2102862624,5001000095
07.09.2018,CHILDREN'S SERVICES,SNOWSFIELDS PRIMARY SCHOOL,600,PRIMARY ACHIEVEMENT,MISCELLANEOUS RECHARGES,2102862626,5001000061
07.09.2018,CHILDREN'S SERVICES,ALBION PRIMARY SCHOOL,600,PRIMARY ACHIEVEMENT,MISCELLANEOUS RECHARGES,2102862627,5001000000
07.09.2018,CHILDREN'S SERVICES,MICHAEL FARADAY PRIMARY SCHOOL,600,PRIMARY ACHIEVEMENT,MISCELLANEOUS RECHARGES,2102862628,5001000048
07.09.2018,CHILDREN'S SERVICES,HOLLYDALE PRIMARY SCHOOL,700,PRIMARY ACHIEVEMENT,MISCELLANEOUS RECHARGES,2102862629,5001000036
07.09.2018,CHILDREN'S SERVICES,ST PETERS CE SCHOOL,700,PRIMARY ACHIEVEMENT,MISCELLANEOUS RECHARGES,2102862630,5001000083
07.09.2018,CHILDREN'S SERVICES,PHOENIX PRIMARY SCHOOL,800,PRIMARY ACHIEVEMENT,MISCELLANEOUS RECHARGES,2102862633,5001000032
07.09.2018,CHILDREN'S SERVICES,KEYWORTH PRIMARY SCHOOL,900,PRIMARY ACHIEVEMENT,MISCELLANEOUS RECHARGES,2102862631,5001000041
07.09.2018,CHILDREN'S SERVICES,BELLENDEN PRIMARY SCHOOL,900,PRIMARY ACHIEVEMENT,MISCELLANEOUS RECHARGES,2102862632,5001000007
07.09.2018,CHILDREN'S SERVICES,ST JOSEPHS CATHOLIC SCHOOL,"1,000.00",PRIMARY ACHIEVEMENT,MISCELLANEOUS RECHARGES,2102862634,5001000076
07.09.2018,CHILDREN'S SERVICES,PEBBLES CARE LTD,"8,485.71",RESIDENTIAL,RESIDENTIAL CARE,2102862071,1000081564
07.09.2018,CHILDREN'S SERVICES,RIVERSIDE PRIMARY SCHOOL,"5,000.00",RIVERSIDE PRIMARY SCHOOL,COSTS RECOVERED,2102811181,5001000056
07.09.2018,CHILDREN'S SERVICES,REDACTED PERSONAL DATA,673.8,SCH TRANS - CONTRACT COST,OTHER PAYMENTS FOR CLIENTS,REDACTED,REDACTED
07.09.2018,CHILDREN'S SERVICES,REDACTED PERSONAL DATA,940,SCH TRANS - CONTRACT COST,OTHER PAYMENTS FOR CLIENTS,REDACTED,REDACTED
07.09.2018,CHILDREN'S SERVICES,PPROPERTYPLACEBOOK LTD,455,TEMPORARY ACCOMMODATION,EXTERNAL AGENCIES AND BODIES,5902319126,1000077817
07.09.2018,CHILDREN'S SERVICES,PPROPERTYPLACEBOOK LTD,"1,085.00",TEMPORARY ACCOMMODATION,EXTERNAL AGENCIES AND BODIES,5902319124,1000077817
07.09.2018,COMMISSIONING & CENTRAL,PRIVATE PUBLIC LTD,"4,000.00",JOINT COMMISSIONING TEAM,CONSULTANTS SERVICES,5902319059,1000081569
07.09.2018,COMMUNITIES,BRENCHLEY GARDENS MANAGEMENT ASSOCIATION,"3,570.00",BRENCHLEY GARDENS,M&M ALLOWANCE CO-OPS,5902318223,11324247
07.09.2018,COMMUNITIES,LONDON CARE LTD,"1,282.40",NO RECOURSE TO PUBLIC FUNDS,NATIONAL ASSISTANCE,2102862370,1000003398
07.09.2018,COMMUNITIES,CHILDREN ACT ENTERPRISES LTD,"3,737.50",SAFEGUARDING BOARDS,CONSULTANTS SERVICES,5902319170,1000068313
07.09.2018,CUSTOMER EXPERIENCE HGF,GUYS & ST THOMAS NHS FOUNDATION TRUST,480,CORONER'S,OTHER CONTRACTORS,5902319127,1765536
07.09.2018,CUSTOMER EXPERIENCE HGF,GUYS & ST THOMAS NHS FOUNDATION TRUST,850,CORONER'S,OTHER CONTRACTORS,5902319122,1765536
07.09.2018,CUSTOMER EXPERIENCE HGF,SG PATH LTD,415.8,CORONER'S,PROFESSIONAL FEES,5902319145,1000077883
07.09.2018,CUSTOMER EXPERIENCE HGF,SG PATH LTD,415.8,CORONER'S,PROFESSIONAL FEES,5902319165,1000077883
07.09.2018,CUSTOMER EXPERIENCE HGF,SG PATH LTD,415.8,CORONER'S,PROFESSIONAL FEES,5902319168,1000077883
07.09.2018,CUSTOMER EXPERIENCE HGF,SG PATH LTD,595.9,CORONER'S,PROFESSIONAL FEES,5902319150,1000077883
07.09.2018,CUSTOMER EXPERIENCE HGF,LONDON BOROUGH OF WALTHAM FOREST,-392,CORONER'S,PROFESSIONAL FEES,5902319348,1000081594
07.09.2018,CUSTOMER EXPERIENCE HGF,LONDON BOROUGH OF WALTHAM FOREST,392,CORONER'S,PROFESSIONAL FEES,5902319189,1000081594
07.09.2018,CUSTOMER EXPERIENCE HGF,TAAKSVALE HOUSING LTD,"91,753.10",NIGHTLY TA (NSC),EXTERNAL AGENCIES AND BODIES,5902319179,1000073665
07.09.2018,CUSTOMER EXPERIENCE HGF,FINEFAIR LTD,"4,593.10",PSL PLACEMENTS,EXTERNAL AGENCIES AND BODIES,5902319146,1000075570
07.09.2018,CUSTOMER EXPERIENCE HGF,OFFICE DEPOT UK LTD,"1,651.39",REGISTRARS,STATIONERY,5902319177,1109426
07.09.2018,ELECTORAL SVCES,XPRESS SOFTWARE SOLUTIONS LTD,"15,606.00",ELECTORAL REGISTRATION,SOFTWARE,5902318439,1000053543
07.09.2018,ENVIRONMENT AND LEISURE,PICK EVERARD,592.89,CAPITAL PS (LEISURE),CONSTRUCTION FEES  - EXTERNAL,5902319118,1000077395
07.09.2018,ENVIRONMENT AND LEISURE,EAST DULWICH ACTION GROUP,"2,000.00",CAPITAL PS (LEISURE),CONST'N MAIN CONTRACT - NON CERTIFICATED,5902318174,1000080899
07.09.2018,ENVIRONMENT AND LEISURE,SADL LTD,926.26,CAPITAL PS (LEISURE),CONSTR'N SUB CONTRACT - NON CERTIFICATED,5902319143,1000081523
07.09.2018,ENVIRONMENT AND LEISURE,TGMS LTD,"1,550.00",CAPITAL PS (LEISURE),CONSTR'N SUB CONTRACT - NON CERTIFICATED,5902319167,1000066904
07.09.2018,ENVIRONMENT AND LEISURE,MATERIALS SCIENCE CONSULTANTS LTD,"1,987.00",CAPITAL PS (LEISURE),CONSTRUCTION FEES,5902319221,1000044926
07.09.2018,ENVIRONMENT AND LEISURE,T LOUGHMAN AND CO LIMITED,"75,009.24",CAPITAL PS (LEISURE),CONSTRUCTION FEES  - EXTERNAL,2102862203,4013329
07.09.2018,ENVIRONMENT AND LEISURE,LARK LANDSCAPE DESIGN LIMITED,875,CAPITAL PS (LEISURE),CONSTRUCTION FEES - ARCHITECT,5902318404,1000035609
07.09.2018,ENVIRONMENT DIRECTORATE,LONDON HIRE T/A R J MOTORS,489.8,COMMERCIAL VEH CTRL A/C,VEHICLE REPAIRS & MAINTENANCE,5902318015,1000047106
07.09.2018,ENVIRONMENT DIRECTORATE,COMPLETE TREE CARE LTD,"2,784.52",NON HOUSING GROUNDS,AGENCY STAFF,5902319213,1000041410
07.09.2018,ENVIRONMENT DIRECTORATE,DRIVER TRAINING LONDON LTD T/A NATIONAL DRIVING CENTRE,595,NON HOUSING GROUNDS,TRAINING,5902319185,1000058040
07.09.2018,ENVIRONMENT DIRECTORATE,CONWAY AECOM LTD,311.11,PARKING OVERHEADS,OTHER CONTRACTORS,2102862198,3000001595
07.09.2018,ENVIRONMENT DIRECTORATE,CONWAY AECOM LTD,427.87,PARKING OVERHEADS,OTHER CONTRACTORS,2102862197,3000001595
07.09.2018,ENVIRONMENT DIRECTORATE,CONWAY AECOM LTD,"6,304.40",PARKING OVERHEADS,OTHER CONTRACTORS,2102862206,3000001595
07.09.2018,ENVIRONMENT DIRECTORATE,P D CONSTRUCTION LTD,596,PARKS TECH UNIT (PREMISES),OTHER R&M,5902318495,1000000390
07.09.2018,ENVIRONMENT DIRECTORATE,CONWAY AECOM LTD,306.88,PROJECT SUPPORT,CONSULTANTS SERVICES,5902319159,1000071205
07.09.2018,ENVIRONMENT DIRECTORATE,CONWAY AECOM LTD,"1,836.92",PROJECT SUPPORT,CONSULTANTS SERVICES,5902319158,1000071205
07.09.2018,ENVIRONMENT DIRECTORATE,CONWAY AECOM LTD,"3,865.18",PROLONGED OCCUPATION OVERHEADS,OTHER CONTRACTORS,5902319140,1000071205
07.09.2018,ENVIRONMENT DIRECTORATE,CONWAY AECOM LTD,"10,871.74",PROLONGED OCCUPATION OVERHEADS,OTHER CONTRACTORS,5902319138,1000071205
07.09.2018,F & C S EXCLUDING CORPORATE BUDGETS,WE ARE WATERLOO,"55,303.14",WATERLOO QUARTER,EXTERNAL AGENCIES AND BODIES,5902318343,1000057618
07.09.2018,HOUSING & MODERNISATION,MENTAL FIGHT CLUB,"1,000.00",VCS GRANTS,OTHER CONTRACTORS,5902319201,1000051170
07.09.2018,HOUSING GENERAL FUND,STANNAH LIFT SERVICES LTD,577,CAPITAL PS (HOUSING GF),CAPITAL GRANTS,5902319192,1063595
07.09.2018,HOUSING GENERAL FUND,STANNAH LIFT SERVICES LTD,"5,105.00",CAPITAL PS (HOUSING GF),CAPITAL GRANTS,5902319192,1063595
07.09.2018,HOUSING GENERAL FUND,INTERSERVE (FACILITIES MANAGEMENT),"71,043.69",CAPITAL PS (REGEN),CONSTRUCTION,2102862202,3000000166
07.09.2018,HOUSING HRA,DOWNTOWN LEISURE LIMITED,"116,476.29",CAPITAL PS (HRA),CONSTRUCTION MAIN CONTRACT -CERTIFICATED,2102862209,3000002059
07.09.2018,HOUSING HRA,A & E ELKINS LTD,"323,995.71",CAPITAL PS (HRA),CONSTRUCTION MAIN CONTRACT -CERTIFICATED,2102862207,4012501
07.09.2018,HOUSING HRA,QUALITY SOLICITORS MARTIN TOLHURST,"38,000.00",CAPITAL PS (HRA),CAPITAL GRANTS,2102862570,1000077496
07.09.2018,HOUSING STRATEGY AND OPTIONS,CARIDON LANDLORD SOLUTIONS LTD,"1,260.20",HOMELESS PROJECTS,GRANTS,5902319134,1000080555
07.09.2018,HOUSING STRATEGY AND OPTIONS,JUKES & CO (2015) LTD,"2,350.00",HOMELESS PROJECTS,GRANTS,5902309823,1000080144
07.09.2018,LEISURE DIRECTORATE,THEATRE PECKHAM,"7,875.00",ARTS GRANTS,GRANTS,5902319142,1071668
07.09.2018,LEISURE DIRECTORATE,THEATRE PECKHAM,"7,875.00",ARTS GRANTS,GRANTS,5902319142,1071668
07.09.2018,LEISURE DIRECTORATE,P D CONSTRUCTION LTD,600,BERMONDSEY CARNIVAL,PROFESSIONAL FEES,5902318460,1000000390
07.09.2018,LEISURE DIRECTORATE,P D CONSTRUCTION LTD,385,BURGESS AREA TEAM,OTHER R&M,5902317465,1000000390
07.09.2018,LEISURE DIRECTORATE,P D CONSTRUCTION LTD,"1,168.00",BURGESS AREA TEAM,OTHER R&M,5902317463,1000000390
07.09.2018,LEISURE DIRECTORATE,P D CONSTRUCTION LTD,"1,390.00",BURGESS AREA TEAM,OTHER R&M,5902317466,1000000390
07.09.2018,LEISURE DIRECTORATE,F G MARSHALL LTD,480,CREMATORIUM,MATERIALS,5902318185,1002639
07.09.2018,LEISURE DIRECTORATE,JAPANESE KNOTWEED ERADICATION LTD,300,DULWICH AREA TEAM,GROUNDS MAINTENANCE,5902318352,1000059297
07.09.2018,LEISURE DIRECTORATE,G4S CASH SERVICES (UK) LTD,517.6,LIBARIES DEVELOPMENT,SECURITY SERVICES,5902319214,1420519
07.09.2018,LEISURE DIRECTORATE,ZOOLAB LTD,357,MINT STREET,OP LEASE/HIRE CHARGES:PLANT/EQUIP/FURNIT,5902319218,1000077749
07.09.2018,LEISURE DIRECTORATE,CASTLE WATER LTD,336.27,PECKHAM LIBRARY,WATER,5902319208,1000078867
07.09.2018,LEISURE DIRECTORATE,MICHAEL AND PARTNERS LTD,"13,275.00",SDM BUDGET,CONSULTANTS SERVICES,5902319110,1000077686
07.09.2018,LEISURE DIRECTORATE,NPOWER,273.86,SDM BUDGET,ELECTRICITY,5902319220,1000032342
07.09.2018,LEISURE DIRECTORATE,REGENT CLEANING,"2,465.97",SDM BUDGET,PREMISES CLEANING,5902319117,1000063340
07.09.2018,LEISURE DIRECTORATE,CASTLE WATER LTD,961.6,SDM BUDGET,WATER,5902319191,1000078867
07.09.2018,LEISURE DIRECTORATE,P D CONSTRUCTION LTD,316,SOUTHWARK AREA TEAM,OTHER R&M,5902318496,1000000390
07.09.2018,LEISURE DIRECTORATE,P D CONSTRUCTION LTD,465,SOUTHWARK AREA TEAM,OTHER R&M,5902318060,1000000390
07.09.2018,LEISURE DIRECTORATE,ZOOLAB LTD,357,SPA RD ADVENTURE PLAY,OP LEASE/HIRE CHARGES:PLANT/EQUIP/FURNIT,5902319218,1000077749
07.09.2018,LEISURE DIRECTORATE,ZOOLAB LTD,476,SURREY DOCKS PLAYGROUND,OP LEASE/HIRE CHARGES:PLANT/EQUIP/FURNIT,5902319218,1000077749
07.09.2018,LEISURE DIRECTORATE,COMPLETE TREE CARE LTD,726.38,TREES O'HEADS,CONSULTANTS SERVICES,5902319196,1000041410
07.09.2018,LEISURE DIRECTORATE,COMPLETE TREE CARE LTD,731.25,TREES O'HEADS,CONSULTANTS SERVICES,5902319199,1000041410
07.09.2018,MODERNISATION HGF,SAP (UK) LTD,"13,372.26",APPLICATIONS,SOFTWARE,5902299061,1000002550
07.09.2018,MODERNISATION HGF,SODEXHO PASS LTD,678.8,CHILDCARE VOUCHERS,OTHER EMPLOYEE EXPENSES,5902319131,1000048650
07.09.2018,MODERNISATION HGF,SODEXHO PASS LTD,"22,626.93",CHILDCARE VOUCHERS,OTHER EMPLOYEE EXPENSES,5902319131,1000048650
07.09.2018,MODERNISATION HGF,INTEROUTE VTESSE LTD,737.5,IT MANAGEMENT,DATA COMMUNICATIONS,5902319130,1000080386
07.09.2018,MODERNISATION HGF,INTEROUTE VTESSE LTD,"2,499.99",IT MANAGEMENT,DATA COMMUNICATIONS,5902319128,1000080386
07.09.2018,MODERNISATION HGF,INTEROUTE VTESSE LTD,"4,262.50",IT MANAGEMENT,DATA COMMUNICATIONS,5902319125,1000080386
07.09.2018,MODERNISATION HGF,LEE HECHT HARRISON PENNA LTD,"2,200.00",MEMBER DEVELOPMENT,TRAINING,5902318760,1000079813
07.09.2018,SOUTHWARK BUILDING SERVICES,CONWAY AECOM LTD,"1,786.14",BUSINESS SUPPORT,OTHER CONTRACTORS,2102862199,3000001595
07.09.2018,SOUTHWARK BUILDING SERVICES,CONWAY AECOM LTD,"8,332.89",BUSINESS SUPPORT,OTHER CONTRACTORS,2102862200,3000001595
08.09.2018,CENTRAL FUNCTIONS,RED R DESIGN,425,HOME OWNERSHIP,PRINTING,5902318734,1000035984
08.09.2018,CHILDREN'S SERVICES,LONDON EARLY YEARS FOUNDATION,"1,500.00",CAMBERWELL GROVE EARLY YEARS CENTRE,EXTERNAL AGENCIES AND BODIES,5902318411,1000077919
08.09.2018,CHILDREN'S SERVICES,TRAINING (FIRST AID) LTD,750,CHILDRENS CENTRE,OTHER SUBSISTENCE & CONFERENCE EXPENSES,5902318471,1000036242
08.09.2018,CHILDREN'S SERVICES,LONDON BUBBLE THEATRE COMPANY,"20,000.00",YOS SUPPORT,EXTERNAL AGENCIES AND BODIES,5902318922,11022517
08.09.2018,ENVIRONMENT AND LEISURE,BAILY GARNER,464.4,CAPITAL PS (LEISURE),CONSTRUCTION FEES  - EXTERNAL,5902318985,1000033754
08.09.2018,ENVIRONMENT DIRECTORATE,ELLIOT ENVIRONMENTAL LTD,400,STREET CLEANING-GENERAL,OTHER CONTRACTORS,5902318762,1000047392
08.09.2018,ENVIRONMENT DIRECTORATE,SOUTHWARK NEWSPAPER LTD,276,STREET WORKS OVERHEADS,MARKETING & PUBLICITY SERVICES,5902318318,1556957
08.09.2018,ENVIRONMENT DIRECTORATE,SOUTHWARK NEWSPAPER LTD,288,STREET WORKS OVERHEADS,MARKETING & PUBLICITY SERVICES,5902318322,1556957
08.09.2018,ENVIRONMENT DIRECTORATE,SOUTHWARK NEWSPAPER LTD,300,STREET WORKS OVERHEADS,MARKETING & PUBLICITY SERVICES,5902318320,1556957
08.09.2018,ENVIRONMENT DIRECTORATE,SOUTHWARK NEWSPAPER LTD,312,STREET WORKS OVERHEADS,MARKETING & PUBLICITY SERVICES,5902318330,1556957
08.09.2018,ENVIRONMENT DIRECTORATE,SOUTHWARK NEWSPAPER LTD,372,STREET WORKS OVERHEADS,MARKETING & PUBLICITY SERVICES,5902318326,1556957
08.09.2018,ENVIRONMENT DIRECTORATE,INTELLIGENCIA TRAINING LTD,"3,000.00",TRADING STANDARDS CONFISCATION FUND,TRAINING,5902318405,1000081568
08.09.2018,HOUSING GENERAL FUND,STAR LEISURE,500,CAPITAL PS (HOUSING GF),CONSTRUCTION FEES - INTERNAL,5902318749,1000080966
08.09.2018,MODERNISATION HGF,CASTLE WATER LTD,"1,936.20",160 TOOLEY ST.,WATER,5902318803,1000078867
08.09.2018,MODERNISATION HGF,CASTLE WATER LTD,"2,867.15",160 TOOLEY ST.,WATER,5902318803,1000078867
08.09.2018,PLANNING AND TRANSPORT,SOUTHWARK NEWSPAPER LTD,506,DEVELOPMENT CONTROL ADMINSTRATION,MARKETING & PUBLICITY SERVICES,5902318378,1556957
08.09.2018,REGENERATION,WIBBLY WOBBLY WEBSITE,"1,500.00",OKR MASTER PLANNING,PROFESSIONAL FEES,5902318978,1000081004
09.09.2018,ADULT SOCIAL CARE,JANE RAMSAY,"1,000.00",SAFEGUARDING TEAM,EXTERNAL AGENCIES AND BODIES,5902318521,1000066652
09.09.2018,ADULT SOCIAL CARE,PANCHSHEEL GLOBAL PVT LTD,"1,074.28",SAFEGUARDING TEAM,OTHER CONTRACTORS,5902318576,1000078003
09.09.2018,COMMISSIONING & CENTRAL,QUICKSILVA LTD,"2,800.00",C&AS SOFTWARE APPS,SOFTWARE,5902318758,1000081467
09.09.2018,CUSTOMER EXPERIENCE HGF,ACCESS INDEPENDENT LTD,"2,935.25",BLUE BADGES,PROFESSIONAL FEES,5902319176,1000059141
09.09.2018,ENVIRONMENT DIRECTORATE,BARRETTINE ENVIRONMENTAL HEALTH,580.44,COMMERCIAL PEST CONTROL WORKS,MATERIALS,5902318841,1000050556
09.09.2018,HOUSING HRA,CALFORD SEADEN LLP,"3,818.50",CAPITAL PS (HRA),CONSTRUCTION FEES  - EXTERNAL,5902318813,1061592
09.09.2018,LEISURE DIRECTORATE,VIVEDIA LIMITED,620,CREMATORIUM,OP LEASE/HIRE CHARGES:PLANT/EQUIP/FURNIT,5902318792,1000064867
09.09.2018,LEISURE DIRECTORATE,INSPIRE AT ST PETER'S LTD,"7,167.00",GRANTS COMMISSIONING,GRANTS,5902318855,1000041565
09.09.2018,MODERNISATION HGF,ASSESSMENT & DEVELOPMENT,797.12,OCCUPATIONAL ASSESSMENT,EQUIPMENT PURCHASE & REPAIR,5902318759,1000008858
09.09.2018,MODERNISATION HGF,INFINITY NETWORKS LTD,521,REPAIR AND MAINTENANCE SERVICES,DATA COMMUNICATIONS,5902318996,1000035571
09.09.2018,MODERNISATION HGF,INFINITY NETWORKS LTD,776,REPAIR AND MAINTENANCE SERVICES,DATA COMMUNICATIONS,5902318995,1000035571
09.09.2018,RESIDENT SERVICES,CARLISLE SECURITY SERVICES LTD,"12,126.72",CAMBERWELL,SECURITY SERVICES,5902319182,11212342
10.09.2018,ADULT SOCIAL CARE,REDACTED PERSONAL DATA,266.65,APPOINTEESHIPS,OTHER PAYMENTS FOR CLIENTS,REDACTED,REDACTED
10.09.2018,ADULT SOCIAL CARE,REDACTED PERSONAL DATA,"4,917.50",APPOINTEESHIPS,OTHER PAYMENTS FOR CLIENTS,REDACTED,REDACTED
10.09.2018,ADULT SOCIAL CARE,POSTURITE (UK) LTD,837.62,ASC BROKERAGE TEAM,FURNITURE PURCHASE & REPAIR,5902319244,11015468
10.09.2018,ADULT SOCIAL CARE,ACT TOO LTD,400,LD LTS 18-64,DAYCARE,2102862675,1000053657
10.09.2018,ADULT SOCIAL CARE,PEOPLEPLUS ILS,"2,084.40",LD LTS 18-64,PAYMENTS TO CLIENTS (DIRECT PAYMENTS),2102862828,1000061886
10.09.2018,ADULT SOCIAL CARE,REDACTED PERSONAL DATA,809.12,LD LTS 18-64,DISCRETIONARY FLEXIBLE FEES & INCOME,REDACTED,REDACTED
10.09.2018,ADULT SOCIAL CARE,PEOPLEPLUS ILS,"1,411.18",PHY LTS 18-64,PAYMENTS TO CLIENTS (DIRECT PAYMENTS),2102862831,1000061886
10.09.2018,ADULT SOCIAL CARE,AGE UK  LEWISHAM & SOUTHWARK,424.29,PHY LTS 65+,DAYCARE,2102862829,1000066751
10.09.2018,ADULT SOCIAL CARE,YOUTH GRACES (UK) LTD,399.91,PHY LTS 65+,HOMECARE - SPOT,2102862674,1000072524
10.09.2018,ADULT SOCIAL CARE,CONTACT PROFESSIONALS,266,SPECIALIST CARE,SECTION 17 PAYMENTS TO AGENCIES/CARERS,2102862690,1000057263
10.09.2018,ADULT SOCIAL CARE,CONTACT PROFESSIONALS,266,SPECIALIST CARE,SECTION 17 PAYMENTS TO AGENCIES/CARERS,2102862693,1000057263
10.09.2018,ADULT SOCIAL CARE,CONTACT PROFESSIONALS,266,SPECIALIST CARE,SECTION 17 PAYMENTS TO AGENCIES/CARERS,2102862712,1000057263
10.09.2018,ADULT SOCIAL CARE,CONTACT PROFESSIONALS,266,SPECIALIST CARE,SECTION 17 PAYMENTS TO AGENCIES/CARERS,2102862749,1000057263
10.09.2018,ADULT SOCIAL CARE,CONTACT PROFESSIONALS,266,SPECIALIST CARE,SECTION 17 PAYMENTS TO AGENCIES/CARERS,2102862762,1000057263
10.09.2018,ADULT SOCIAL CARE,CONTACT PROFESSIONALS,266,SPECIALIST CARE,SECTION 17 PAYMENTS TO AGENCIES/CARERS,2102862770,1000057263
10.09.2018,ADULT SOCIAL CARE,CONTACT PROFESSIONALS,266,SPECIALIST CARE,SECTION 17 PAYMENTS TO AGENCIES/CARERS,2102862785,1000057263
10.09.2018,ADULT SOCIAL CARE,CONTACT PROFESSIONALS,285,SPECIALIST CARE,SECTION 17 PAYMENTS TO AGENCIES/CARERS,2102862736,1000057263
10.09.2018,ADULT SOCIAL CARE,MEDACS HOMECARE,288.6,SPECIALIST CARE,SECTION 17 PAYMENTS TO AGENCIES/CARERS,2102862688,11287415
10.09.2018,ADULT SOCIAL CARE,CONTACT PROFESSIONALS,304,SPECIALIST CARE,SECTION 17 PAYMENTS TO AGENCIES/CARERS,2102862699,1000057263
10.09.2018,ADULT SOCIAL CARE,CONTACT PROFESSIONALS,304,SPECIALIST CARE,SECTION 17 PAYMENTS TO AGENCIES/CARERS,2102862704,1000057263
10.09.2018,ADULT SOCIAL CARE,CONTACT PROFESSIONALS,304,SPECIALIST CARE,SECTION 17 PAYMENTS TO AGENCIES/CARERS,2102862730,1000057263
10.09.2018,ADULT SOCIAL CARE,CONTACT PROFESSIONALS,304,SPECIALIST CARE,SECTION 17 PAYMENTS TO AGENCIES/CARERS,2102862744,1000057263
10.09.2018,ADULT SOCIAL CARE,CONTACT PROFESSIONALS,304,SPECIALIST CARE,SECTION 17 PAYMENTS TO AGENCIES/CARERS,2102862746,1000057263
10.09.2018,ADULT SOCIAL CARE,CONTACT PROFESSIONALS,304,SPECIALIST CARE,SECTION 17 PAYMENTS TO AGENCIES/CARERS,2102862748,1000057263
10.09.2018,ADULT SOCIAL CARE,CONTACT PROFESSIONALS,304,SPECIALIST CARE,SECTION 17 PAYMENTS TO AGENCIES/CARERS,2102862751,1000057263
10.09.2018,ADULT SOCIAL CARE,CONTACT PROFESSIONALS,304,SPECIALIST CARE,SECTION 17 PAYMENTS TO AGENCIES/CARERS,2102862767,1000057263
10.09.2018,ADULT SOCIAL CARE,CONTACT PROFESSIONALS,304,SPECIALIST CARE,SECTION 17 PAYMENTS TO AGENCIES/CARERS,2102862774,1000057263
10.09.2018,ADULT SOCIAL CARE,CONTACT PROFESSIONALS,304,SPECIALIST CARE,SECTION 17 PAYMENTS TO AGENCIES/CARERS,2102862775,1000057263
10.09.2018,ADULT SOCIAL CARE,CONTACT PROFESSIONALS,304,SPECIALIST CARE,SECTION 17 PAYMENTS TO AGENCIES/CARERS,2102862787,1000057263
10.09.2018,ADULT SOCIAL CARE,CONTACT PROFESSIONALS,323,SPECIALIST CARE,SECTION 17 PAYMENTS TO AGENCIES/CARERS,2102862743,1000057263
10.09.2018,ADULT SOCIAL CARE,CONTACT PROFESSIONALS,323,SPECIALIST CARE,SECTION 17 PAYMENTS TO AGENCIES/CARERS,2102862790,1000057263
10.09.2018,ADULT SOCIAL CARE,METRO HOMECARE LTD,336,SPECIALIST CARE,SECTION 17 PAYMENTS TO AGENCIES/CARERS,2102862715,1000070695
10.09.2018,ADULT SOCIAL CARE,METRO HOMECARE LTD,336,SPECIALIST CARE,SECTION 17 PAYMENTS TO AGENCIES/CARERS,2102862763,1000070695
10.09.2018,ADULT SOCIAL CARE,CONTACT PROFESSIONALS,342,SPECIALIST CARE,SECTION 17 PAYMENTS TO AGENCIES/CARERS,2102862769,1000057263
10.09.2018,ADULT SOCIAL CARE,CONTACT PROFESSIONALS,342,SPECIALIST CARE,SECTION 17 PAYMENTS TO AGENCIES/CARERS,2102862782,1000057263
10.09.2018,ADULT SOCIAL CARE,MEDACS HOMECARE,346.36,SPECIALIST CARE,SECTION 17 PAYMENTS TO AGENCIES/CARERS,2102862687,11287415
10.09.2018,ADULT SOCIAL CARE,CONTACT PROFESSIONALS,361,SPECIALIST CARE,SECTION 17 PAYMENTS TO AGENCIES/CARERS,2102862711,1000057263
10.09.2018,ADULT SOCIAL CARE,CONTACT PROFESSIONALS,380,SPECIALIST CARE,SECTION 17 PAYMENTS TO AGENCIES/CARERS,2102862733,1000057263
10.09.2018,ADULT SOCIAL CARE,CONTACT PROFESSIONALS,380,SPECIALIST CARE,SECTION 17 PAYMENTS TO AGENCIES/CARERS,2102862756,1000057263
10.09.2018,ADULT SOCIAL CARE,MEDACS HOMECARE,396.83,SPECIALIST CARE,SECTION 17 PAYMENTS TO AGENCIES/CARERS,2102862676,11287415
10.09.2018,ADULT SOCIAL CARE,METRO HOMECARE LTD,446.4,SPECIALIST CARE,SECTION 17 PAYMENTS TO AGENCIES/CARERS,2102862747,1000070695
10.09.2018,ADULT SOCIAL CARE,CONTACT PROFESSIONALS,456,SPECIALIST CARE,SECTION 17 PAYMENTS TO AGENCIES/CARERS,2102862781,1000057263
10.09.2018,ADULT SOCIAL CARE,CONTACT PROFESSIONALS,475,SPECIALIST CARE,SECTION 17 PAYMENTS TO AGENCIES/CARERS,2102862754,1000057263
10.09.2018,ADULT SOCIAL CARE,METRO HOMECARE LTD,502.2,SPECIALIST CARE,SECTION 17 PAYMENTS TO AGENCIES/CARERS,2102862737,1000070695
10.09.2018,ADULT SOCIAL CARE,METRO HOMECARE LTD,502.2,SPECIALIST CARE,SECTION 17 PAYMENTS TO AGENCIES/CARERS,2102862778,1000070695
10.09.2018,ADULT SOCIAL CARE,CONTACT PROFESSIONALS,513,SPECIALIST CARE,SECTION 17 PAYMENTS TO AGENCIES/CARERS,2102862765,1000057263
10.09.2018,ADULT SOCIAL CARE,MEDACS HOMECARE,577.2,SPECIALIST CARE,SECTION 17 PAYMENTS TO AGENCIES/CARERS,2102862679,11287415
10.09.2018,ADULT SOCIAL CARE,METRO HOMECARE LTD,669.6,SPECIALIST CARE,SECTION 17 PAYMENTS TO AGENCIES/CARERS,2102862731,1000070695
10.09.2018,ADULT SOCIAL CARE,INTERSERVE HEALTHCARE,714.5,SPECIALIST CARE,SECTION 17 PAYMENTS TO AGENCIES/CARERS,2102862697,1000049612
10.09.2018,ADULT SOCIAL CARE,METRO HOMECARE LTD,781.2,SPECIALIST CARE,SECTION 17 PAYMENTS TO AGENCIES/CARERS,2102862740,1000070695
10.09.2018,ADULT SOCIAL CARE,INTERSERVE HEALTHCARE,846.89,SPECIALIST CARE,SECTION 17 PAYMENTS TO AGENCIES/CARERS,2102862752,1000049612
10.09.2018,ADULT SOCIAL CARE,CONTACT PROFESSIONALS,"1,026.00",SPECIALIST CARE,SECTION 17 PAYMENTS TO AGENCIES/CARERS,2102862721,1000057263
10.09.2018,ADULT SOCIAL CARE,MEDACS HOMECARE,"2,828.28",SPECIALIST CARE,SECTION 17 PAYMENTS TO AGENCIES/CARERS,2102862684,11287415
10.09.2018,ADULT SOCIAL CARE,FREEDOM RECOVERY CENTRE,480,SUB LTS 18-64,PLACEMENTS - REHAB,2102862671,1000046185
10.09.2018,ADULT SOCIAL CARE,HOPE WORLDWIDE,"2,340.00",SUB LTS 18-64,PLACEMENTS - REHAB,2102862670,1000047835
10.09.2018,ADULT SOCIAL CARE,HOPE WORLDWIDE,"2,340.00",SUB LTS 18-64,PLACEMENTS - REHAB,2102862672,1000047835
10.09.2018,ADULT SOCIAL CARE,FREEDOM RECOVERY CENTRE,"3,460.00",SUB LTS 18-64,RESIDENTIAL CARE,2102862668,1000046185
10.09.2018,ADULT SOCIAL CARE,PEOPLEPLUS ILS,717.24,TRANSITIONS 14-18YRS,PAYMENTS TO CLIENTS (DIRECT PAYMENTS),2102862834,1000061886
10.09.2018,ADULT SOCIAL CARE,PEOPLEPLUS ILS,"1,782.62",TRANSITIONS 14-18YRS,PAYMENTS TO CLIENTS (DIRECT PAYMENTS),2102862833,1000061886
10.09.2018,ADULT SOCIAL CARE,PEOPLEPLUS ILS,"26,949.39",TRANSITIONS 14-18YRS,PAYMENTS TO CLIENTS (DIRECT PAYMENTS),2102862832,1000061886
10.09.2018,ADULT SOCIAL CARE,CONTACT PROFESSIONALS,304,TRANSITIONS 14-18YRS,SECTION 17 PAYMENTS TO AGENCIES/CARERS,2102862714,1000057263
10.09.2018,ADULT SOCIAL CARE,MEDACS HOMECARE,346.32,TRANSITIONS 14-18YRS,SECTION 17 PAYMENTS TO AGENCIES/CARERS,2102862680,11287415
10.09.2018,ADULT SOCIAL CARE,CONTACT PROFESSIONALS,380,TRANSITIONS 14-18YRS,SECTION 17 PAYMENTS TO AGENCIES/CARERS,2102862696,1000057263
10.09.2018,ADULT SOCIAL CARE,CONTACT PROFESSIONALS,380,TRANSITIONS 14-18YRS,SECTION 17 PAYMENTS TO AGENCIES/CARERS,2102862713,1000057263
10.09.2018,ADULT SOCIAL CARE,MEDACS HOMECARE,548.34,TRANSITIONS 14-18YRS,SECTION 17 PAYMENTS TO AGENCIES/CARERS,2102862678,11287415
10.09.2018,ADULT SOCIAL CARE,MEDACS HOMECARE,808.08,TRANSITIONS 14-18YRS,SECTION 17 PAYMENTS TO AGENCIES/CARERS,2102862682,11287415
10.09.2018,ADULT SOCIAL CARE,METRO HOMECARE LTD,948.6,TRANSITIONS 14-18YRS,SECTION 17 PAYMENTS TO AGENCIES/CARERS,2102862723,1000070695
10.09.2018,ADULT SOCIAL CARE,CONTACT PROFESSIONALS,"1,007.00",TRANSITIONS 14-18YRS,SECTION 17 PAYMENTS TO AGENCIES/CARERS,2102862788,1000057263
10.09.2018,ADULT SOCIAL CARE,CONTACT PROFESSIONALS,"4,095.00",TRANSITIONS 14-18YRS,SECTION 17 PAYMENTS TO AGENCIES/CARERS,2102862694,1000057263
10.09.2018,ADULT SOCIAL CARE,CONTACT PROFESSIONALS,"4,095.00",TRANSITIONS 14-18YRS,SECTION 17 PAYMENTS TO AGENCIES/CARERS,2102862759,1000057263
10.09.2018,ASSET MANAGEMENT,STANNAH LIFT SERVICES LTD,"2,137.00",ADAPTATIONS,BUILDING R&M,5902319300,1063595
10.09.2018,ASSET MANAGEMENT,PELLINGS LLP,270,DISREPAIR,BUILDING R&M,5902319187,1009262
10.09.2018,ASSET MANAGEMENT,PELLINGS LLP,675,DISREPAIR,BUILDING R&M,5902319186,1009262
10.09.2018,ASSET MANAGEMENT,UNIVERSA LAW LTD,"2,500.00",DISREPAIR,BUILDING R&M,5902319342,1000081466
10.09.2018,ASSET MANAGEMENT,METRO DIGITAL TELEVISION LTD,"2,149.55",ENG CONTRACTS (NORTH),TV AERIALS R&M,5902319310,1000070713
10.09.2018,ASSET MANAGEMENT,SCS TECHNOLOGIES LTD,"2,388.63",ENG CONTRACTS (NORTH),TV AERIALS R&M,5902319259,1000069919
10.09.2018,ASSET MANAGEMENT,ALBURY S.I. LTD,"2,030.00",REPAIRS OPERATIONS,BUILDING R&M,5902319227,1000038277
10.09.2018,CHIEF EXECUTIVE,WILLIAM MARTIN PROPERTY CONSULTANTS LTD,"1,650.00",CAPITAL PS (REGEN),CONSTRUCTION FEES,5902319295,1000062171
10.09.2018,CHIEF EXECUTIVE,SAWYER FIELDING LTD,"5,250.00",CAPITAL PS (REGEN),CONSTRUCTION FEES,5902319296,1000081434
10.09.2018,CHIEF EXECUTIVE,CONWAY AECOM LTD,"-22,148.62",CAPITAL PS (REGEN),CONSTRUCTION FEES  - EXTERNAL,5902319637,1000071205
10.09.2018,CHIEF EXECUTIVE,CONWAY AECOM LTD,"22,148.62",CAPITAL PS (REGEN),CONSTRUCTION FEES  - EXTERNAL,5902319634,1000071205
10.09.2018,CHIEF EXECUTIVE,STANBURY BUILDING SERVICES LTD,495,CAPITAL PS (REGEN),FIT-OUT,2102862638,3000001967
10.09.2018,CHILDREN AND ADULT,STANDAGE & CO LTD,"212,100.95",CAPITAL PS (EDUCATION),CONSTRUCTION MAIN CONTRACT -CERTIFICATED,2102862637,4002817
10.09.2018,CHILDREN AND ADULT,GALLIFORD TRY LTD,"821,750.00",CAPITAL PS (EDUCATION),CONSTRUCTION MAIN CONTRACT -CERTIFICATED,2102862644,3000000525
10.09.2018,CHILDREN'S SERVICES,SWIIS FOSTER CARE LTD,697.97,AGENCY FOSTERING,EXTERNAL AGENCIES AND BODIES,2102862798,1000069633
10.09.2018,CHILDREN'S SERVICES,SWIIS FOSTER CARE LTD,697.97,AGENCY FOSTERING,EXTERNAL AGENCIES AND BODIES,2102862823,1000069633
10.09.2018,CHILDREN'S SERVICES,TACT,699.2,AGENCY FOSTERING,EXTERNAL AGENCIES AND BODIES,2102862802,1000012941
10.09.2018,CHILDREN'S SERVICES,TACT,699.2,AGENCY FOSTERING,EXTERNAL AGENCIES AND BODIES,2102862813,1000012941
10.09.2018,CHILDREN'S SERVICES,TACT,699.2,AGENCY FOSTERING,EXTERNAL AGENCIES AND BODIES,2102862821,1000012941
10.09.2018,CHILDREN'S SERVICES,TACT,752.4,AGENCY FOSTERING,EXTERNAL AGENCIES AND BODIES,2102862809,1000012941
10.09.2018,CHILDREN'S SERVICES,TACT,"3,003.90",AGENCY FOSTERING,EXTERNAL AGENCIES AND BODIES,2102862806,1000012941
10.09.2018,CHILDREN'S SERVICES,HORIZON FOSTERING SERVICES LTD,"3,092.25",AGENCY FOSTERING,EXTERNAL AGENCIES AND BODIES,2102862797,1000075679
10.09.2018,CHILDREN'S SERVICES,HORIZON FOSTERING SERVICES LTD,"3,092.25",AGENCY FOSTERING,EXTERNAL AGENCIES AND BODIES,2102862801,1000075679
10.09.2018,CHILDREN'S SERVICES,TACT,"3,162.00",AGENCY FOSTERING,EXTERNAL AGENCIES AND BODIES,2102862799,1000012941
10.09.2018,CHILDREN'S SERVICES,TACT,"3,162.00",AGENCY FOSTERING,EXTERNAL AGENCIES AND BODIES,2102862817,1000012941
10.09.2018,CHILDREN'S SERVICES,HORIZON FOSTERING SERVICES LTD,"3,255.00",AGENCY FOSTERING,EXTERNAL AGENCIES AND BODIES,2102862815,1000075679
10.09.2018,CHILDREN'S SERVICES,TACT,"3,351.10",AGENCY FOSTERING,EXTERNAL AGENCIES AND BODIES,2102862793,1000012941
10.09.2018,CHILDREN'S SERVICES,TACT,"3,351.10",AGENCY FOSTERING,EXTERNAL AGENCIES AND BODIES,2102862816,1000012941
10.09.2018,CHILDREN'S SERVICES,BY THE BRIDGE LTD,"4,218.52",AGENCY FOSTERING,EXTERNAL AGENCIES AND BODIES,2102862792,1000043961
10.09.2018,CHILDREN'S SERVICES,BY THE BRIDGE LTD,"4,347.09",AGENCY FOSTERING,EXTERNAL AGENCIES AND BODIES,2102862811,1000043961
10.09.2018,CHILDREN'S SERVICES,BY THE BRIDGE LTD,"4,364.71",AGENCY FOSTERING,EXTERNAL AGENCIES AND BODIES,2102862819,1000043961
10.09.2018,CHILDREN'S SERVICES,BY THE BRIDGE LTD,"4,440.57",AGENCY FOSTERING,EXTERNAL AGENCIES AND BODIES,2102862808,1000043961
10.09.2018,CHILDREN'S SERVICES,BY THE BRIDGE LTD,"4,440.57",AGENCY FOSTERING,EXTERNAL AGENCIES AND BODIES,2102862818,1000043961
10.09.2018,CHILDREN'S SERVICES,BY THE BRIDGE LTD,"4,475.82",AGENCY FOSTERING,EXTERNAL AGENCIES AND BODIES,2102862824,1000043961
10.09.2018,CHILDREN'S SERVICES,BY THE BRIDGE LTD,"4,504.96",AGENCY FOSTERING,EXTERNAL AGENCIES AND BODIES,2102862794,1000043961
10.09.2018,CHILDREN'S SERVICES,BY THE BRIDGE LTD,"4,570.02",AGENCY FOSTERING,EXTERNAL AGENCIES AND BODIES,2102862796,1000043961
10.09.2018,CHILDREN'S SERVICES,BY THE BRIDGE LTD,"4,570.02",AGENCY FOSTERING,EXTERNAL AGENCIES AND BODIES,2102862825,1000043961
10.09.2018,CHILDREN'S SERVICES,BY THE BRIDGE LTD,"4,580.78",AGENCY FOSTERING,EXTERNAL AGENCIES AND BODIES,2102862805,1000043961
10.09.2018,CHILDREN'S SERVICES,BY THE BRIDGE LTD,"4,674.27",AGENCY FOSTERING,EXTERNAL AGENCIES AND BODIES,2102862820,1000043961
10.09.2018,CHILDREN'S SERVICES,BY THE BRIDGE LTD,"4,805.49",AGENCY FOSTERING,EXTERNAL AGENCIES AND BODIES,2102862795,1000043961
10.09.2018,CHILDREN'S SERVICES,BY THE BRIDGE LTD,"4,805.49",AGENCY FOSTERING,EXTERNAL AGENCIES AND BODIES,2102862812,1000043961
10.09.2018,CHILDREN'S SERVICES,BY THE BRIDGE LTD,"4,903.54",AGENCY FOSTERING,EXTERNAL AGENCIES AND BODIES,2102862804,1000043961
10.09.2018,CHILDREN'S SERVICES,BY THE BRIDGE LTD,"4,903.54",AGENCY FOSTERING,EXTERNAL AGENCIES AND BODIES,2102862826,1000043961
10.09.2018,CHILDREN'S SERVICES,BY THE BRIDGE LTD,"5,469.29",AGENCY FOSTERING,EXTERNAL AGENCIES AND BODIES,2102862807,1000043961
10.09.2018,CHILDREN'S SERVICES,BY THE BRIDGE LTD,"5,469.29",AGENCY FOSTERING,EXTERNAL AGENCIES AND BODIES,2102862810,1000043961
10.09.2018,CHILDREN'S SERVICES,BY THE BRIDGE LTD,"5,469.29",AGENCY FOSTERING,EXTERNAL AGENCIES AND BODIES,2102862822,1000043961
10.09.2018,CHILDREN'S SERVICES,BY THE BRIDGE LTD,"5,757.14",AGENCY FOSTERING,EXTERNAL AGENCIES AND BODIES,2102862814,1000043961
10.09.2018,CHILDREN'S SERVICES,BY THE BRIDGE LTD,"6,231.00",AGENCY FOSTERING,EXTERNAL AGENCIES AND BODIES,2102862803,1000043961
10.09.2018,CHILDREN'S SERVICES,FOLLOWING WHISPERS FAMILY SERVICE LTD,"6,525.50",AGENCY FOSTERING,EXTERNAL AGENCIES AND BODIES,2102862827,1000065611
10.09.2018,CHILDREN'S SERVICES,FOLLOWING WHISPERS FAMILY SERVICE LTD,"6,864.33",AGENCY FOSTERING,EXTERNAL AGENCIES AND BODIES,2102862800,1000065611
10.09.2018,CHILDREN'S SERVICES,POSTURITE (UK) LTD,889.05,CENTRAL SUPPORT,EQUIPMENT PURCHASE & REPAIR,5902319258,11015468
10.09.2018,CHILDREN'S SERVICES,HADDON HALL BAPTIST CHURCH,360,LEA MUSIC SERVICE(310) - 5018566,CONSULTANTS SERVICES,5902319262,1000000937
10.09.2018,CHILDREN'S SERVICES,TFL TELESALES / OYSTER FULFILMENT,540,MANAGEMENT,PUBLIC TRANSPORT,5902319242,1000059727
10.09.2018,CHILDREN'S SERVICES,CORAM FAMILY,"12,045.00",POST ADOPTION ADVISE & SUPPORT,EXTERNAL AGENCIES AND BODIES,5902319299,1000023579
10.09.2018,CHILDREN'S SERVICES,REDACTED PERSONAL DATA,"1,798.40",SCH TRANS - CONTRACT COST,OTHER PAYMENTS FOR CLIENTS,REDACTED,REDACTED
10.09.2018,CHILDREN'S SERVICES,SPA SCHOOL,"100,000.00",SPA SCHOOL,HIGH NEEDS - BASE FUNDING,5902319317,5001000063
10.09.2018,COMMUNITIES,SUPERDRUG STORES PLC (CAMBERWELL),324,PHARMACY SM (INSTEAD OF ADULT SM S75),OTHER CONTRACTORS,5902319339,1000078628
10.09.2018,COMMUNITIES,DAY LEWIS - CAMBERWELL,514,PHARMACY SM (INSTEAD OF ADULT SM S75),OTHER CONTRACTORS,5902319344,1000072891
10.09.2018,COMMUNITIES,AAM PHARMA LTD T/A A R CHEMIST,658,PHARMACY SM (INSTEAD OF ADULT SM S75),OTHER CONTRACTORS,5902319345,1000072623
10.09.2018,COMMUNITIES,K.S.C. 1T LTD,694,PHARMACY SM (INSTEAD OF ADULT SM S75),OTHER CONTRACTORS,5902319341,1000081458
10.09.2018,COMMUNITIES,QRYSTAL LTD,"1,122.00",PHARMACY SM (INSTEAD OF ADULT SM S75),OTHER CONTRACTORS,5902319336,1000072892
10.09.2018,COMMUNITIES,RYE HILL ESTATE T&RA,"3,261.50",TENANTS FUND,GRANTS,5902319223,1000042261
10.09.2018,COMMUNITIES,BROOK,"37,500.00",YOUNG PEOPLES SERVICE,OTHER CONTRACTORS,5902319279,1000076901
10.09.2018,CUSTOMER EXPERIENCE,JOANNE MCELROY,300,COMPLAINTS,PROFESSIONAL FEES,5902319164,1000030005
10.09.2018,CUSTOMER EXPERIENCE,JOANNE MCELROY,300,COMPLAINTS,PROFESSIONAL FEES,5902319166,1000030005
10.09.2018,CUSTOMER EXPERIENCE HGF,MSR HOUSING,"2,433.50",NIGHTLY TA (NSC),EXTERNAL AGENCIES AND BODIES,5902319233,1000079359
10.09.2018,CUSTOMER EXPERIENCE HGF,LETTING INTERNATIONAL LTD,"2,604.00",NIGHTLY TA (NSC),EXTERNAL AGENCIES AND BODIES,5902318926,1000070102
10.09.2018,CUSTOMER EXPERIENCE HGF,EASYMOVE EA LIMITED,"2,805.50",NIGHTLY TA (NSC),EXTERNAL AGENCIES AND BODIES,5902319231,1000066859
10.09.2018,CUSTOMER EXPERIENCE HGF,WATERLOGIC,"1,176.99",REGISTRARS,OFFICE EXPENSES,5902319291,1000052108
10.09.2018,ENVIRONMENT AND LEISURE,MORGANICO,"2,200.00",CAPITAL PS (LEISURE),CONST'N MAIN CONTRACT - NON CERTIFICATED,5902318903,1000061514
10.09.2018,ENVIRONMENT AND LEISURE,BANNISTER HALL LTD,"9,885.82",CAPITAL PS (LEISURE),CONST'N MAIN CONTRACT - NON CERTIFICATED,5902318837,1000081389
10.09.2018,ENVIRONMENT DIRECTORATE,THE T.P. PARTNERSHIP,445,ESTATE CLEANING-GENERAL,OTHER CONTRACTORS,5902318929,1000045906
10.09.2018,ENVIRONMENT DIRECTORATE,CROWN OIL UK,674,SANDGATE STREET,VEHICLE FUEL,5902319260,1000074865
10.09.2018,F & C S EXCLUDING CORPORATE BUDGETS,VALUEADDING.COM LTD,"4,400.00",PROJECTS,OTHER CONTRACTORS,5902319098,1000066730
10.09.2018,HOUSING & MODERNISATION,CRACKED REED LTD,900,VCS GRANTS,OTHER CONTRACTORS,5902319241,1000081502
10.09.2018,HOUSING & MODERNISATION,SOUTHWARK PLAYHOUSE,950,VCS GRANTS,OTHER CONTRACTORS,5902319237,1871878
10.09.2018,HOUSING HRA,CALFORD SEADEN LLP,950.22,CAPITAL PS (HRA),CONSTRUCTION FEES  - EXTERNAL,5902318862,1061592
10.09.2018,HOUSING HRA,POTTER RAPER AND PARTNERS,"1,720.01",CAPITAL PS (HRA),CONSTRUCTION FEES  - EXTERNAL,5902319306,1009369
10.09.2018,HOUSING HRA,OPEN COMMUNITIES LTD,"1,832.20",CAPITAL PS (HRA),CONSTRUCTION FEES  - EXTERNAL,5902319289,1000065800
10.09.2018,HOUSING HRA,SALTASH ENTERPRISES LTD,"1,912.11",CAPITAL PS (HRA),CONSTRUCTION FEES  - EXTERNAL,2102862639,4013605
10.09.2018,HOUSING HRA,POTTER RAPER AND PARTNERS,"2,027.91",CAPITAL PS (HRA),CONSTRUCTION FEES  - EXTERNAL,5902319294,1009369
10.09.2018,HOUSING HRA,OPEN COMMUNITIES LTD,"2,682.75",CAPITAL PS (HRA),CONSTRUCTION FEES  - EXTERNAL,5902319304,1000065800
10.09.2018,HOUSING HRA,CALFORD SEADEN LLP,"3,597.74",CAPITAL PS (HRA),CONSTRUCTION FEES  - EXTERNAL,5902318861,1061592
10.09.2018,HOUSING HRA,CALFORD SEADEN LLP,"3,818.50",CAPITAL PS (HRA),CONSTRUCTION FEES  - EXTERNAL,5902319249,1061592
10.09.2018,HOUSING HRA,CALFORD SEADEN LLP,"4,275.00",CAPITAL PS (HRA),CONSTRUCTION FEES  - EXTERNAL,5902318902,1061592
10.09.2018,HOUSING HRA,CALFORD SEADEN LLP,"4,741.04",CAPITAL PS (HRA),CONSTRUCTION FEES  - EXTERNAL,5902319228,1061592
10.09.2018,HOUSING HRA,CALFORD SEADEN LLP,"14,112.00",CAPITAL PS (HRA),CONSTRUCTION FEES  - EXTERNAL,5902319036,1061592
10.09.2018,HOUSING HRA,ENGIE REGENERATION (APOLLO) LTD,"70,535.88",CAPITAL PS (HRA),CONSTRUCTION MAIN CONTRACT -CERTIFICATED,2102862646,4000449
10.09.2018,HOUSING HRA,FRANKLYN SHAW ASSOCIATES LTD,94539.72,FRANKLIN SHAW ASSOCIATES,MANUAL CREDITORS,2102862645,3000001465
10.09.2018,HOUSING HRA,LIFTEC LIFTS LTD,65560.42,PAYMENTS CONTROL ACCOUNT - LIFTEC,MANUAL CREDITORS,5902319222,1000057278
10.09.2018,HOUSING STRATEGY AND OPTIONS,BRICKSMORTAR INVESTMENTS LTD,"3,000.00",HOMELESS PROJECTS,GRANTS,5902318796,1000072172
10.09.2018,HOUSING STRATEGY AND OPTIONS,CEDAR HOUSING SOLUTIONS LTD,"3,000.00",HOMELESS PROJECTS,GRANTS,5902319343,1000080014
10.09.2018,LEISURE DIRECTORATE,JAPANESE KNOTWEED ERADICATION LTD,300,BURGESS AREA TEAM,GROUNDS MAINTENANCE,5902318992,1000059297
10.09.2018,LEISURE DIRECTORATE,P D CONSTRUCTION LTD,"3,070.00",BURGESS AREA TEAM,OTHER R&M,5902319248,1000000390
10.09.2018,LEISURE DIRECTORATE,NPOWER,"1,146.74",SDM BUDGET,ELECTRICITY,5902319253,1000032342
10.09.2018,LEISURE DIRECTORATE,KENT COUNTY COUNCIL - LASER,"1,999.44",SDM BUDGET,ELECTRICITY,5902319261,1000012926
10.09.2018,LEISURE DIRECTORATE,BEW ELECTRICAL DISTRIBUTORS LTD,581.27,SDM BUDGET,MATERIALS,5902319267,1000045371
10.09.2018,LEISURE DIRECTORATE,QUADRON SERVICES LIMITED,632.98,SOUTHWARK AREA TEAM,GROUNDS MAINTENANCE,5902319334,1000066528
10.09.2018,LEISURE DIRECTORATE,QUADRON SERVICES LIMITED,"1,146.60",SOUTHWARK AREA TEAM,GROUNDS MAINTENANCE,5902319335,1000066528
10.09.2018,LEISURE DIRECTORATE,BOLINDA UK LTD,"29,942.07",STOCK SERVICES,SUBSCRIPTIONS,5902319322,1000075655
10.09.2018,MODERNISATION HGF,ANTALIS LTD,"3,817.50",160 TOOLEY ST.,STATIONERY,5902319226,1000066919
10.09.2018,MODERNISATION HGF,OFFICE DEPOT UK LTD,"4,858.05",160 TOOLEY ST.,STATIONERY,5902319276,1109426
10.09.2018,MODERNISATION HGF,T2 SOLUTIONS 2000 LTD,475,HR PAYROLL COSTS,CONSULTANTS SERVICES,5902319326,1000080952
10.09.2018,MODERNISATION HGF,T2 SOLUTIONS 2000 LTD,475,HR PAYROLL COSTS,CONSULTANTS SERVICES,5902319332,1000080952
10.09.2018,MODERNISATION HGF,RCA BUSINESS PSYCHOLOGISTS LTD,"2,500.00",HR PAYROLL COSTS,CONSULTANTS SERVICES,5902319323,1000080957
10.09.2018,MODERNISATION HGF,JOHN STATTERS ASSOCIATES,"5,116.67",HR PAYROLL COSTS,CONSULTANTS SERVICES,5902318840,1000065600
10.09.2018,MODERNISATION HGF,SHERRIDAN HUGHES,"1,550.00",OCCUPATIONAL ASSESSMENT,CONSULTANTS SERVICES,5902319239,1000074250
10.09.2018,MODERNISATION HGF,ANTALIS LTD,651,QUEENS RD 1 (BLOCK F),STATIONERY,5902319238,1000066919
10.09.2018,REGENERATION,KERRY LEMON LTD,"1,000.00",MASTER PLAN-H/WAY & TRANS INTERCHANGE,PROFESSIONAL FEES,5902319293,1000080930
10.09.2018,REGENERATION,KERRY LEMON LTD,"3,000.00",MASTER PLAN-H/WAY & TRANS INTERCHANGE,PROFESSIONAL FEES,5902319292,1000080930
10.09.2018,REGENERATION,WIBBLY WOBBLY WEBSITE,300,OKR MASTER PLANNING,PROFESSIONAL FEES,5902319252,1000081004
10.09.2018,REGENERATION,DETON SOLICITORS,"12,017.87",REGENERATION SOUTH - M & A,LEGAL FEES & COURT COSTS,2102862666,1000081636
10.09.2018,RESIDENT SERVICES,APCOA PARKING (UK) LTD,"12,679.11",PARKING CONTROL,OTHER CONTRACTORS,5902319245,1718645
10.09.2018,RESIDENT SERVICES,APCOA PARKING (UK) LTD,"45,667.95",PARKING CONTROL,OTHER CONTRACTORS,5902319247,1718645
10.09.2018,RESIDENT SERVICES,QUINARY LTD,"1,767.00",TA PLACEMENTS,BUILDING R&M,5902319318,1000029106
10.09.2018,RESIDENT SERVICES,PPROPERTYPLACEBOOK LTD,432,TA PLACEMENTS,EXTERNAL AGENCIES AND BODIES,5902319298,1000077817
10.09.2018,RESIDENT SERVICES,PPROPERTYPLACEBOOK LTD,770,TA PLACEMENTS,EXTERNAL AGENCIES AND BODIES,5902319236,1000077817
10.09.2018,RESIDENT SERVICES,PPROPERTYPLACEBOOK LTD,"1,085.00",TA PLACEMENTS,EXTERNAL AGENCIES AND BODIES,5902319232,1000077817
10.09.2018,RESIDENT SERVICES,PPROPERTYPLACEBOOK LTD,"1,085.00",TA PLACEMENTS,EXTERNAL AGENCIES AND BODIES,5902319303,1000077817
10.09.2018,RESIDENT SERVICES,RS REAL ESTATE LTD,"1,155.00",TA PLACEMENTS,EXTERNAL AGENCIES AND BODIES,5902319320,1000072485
10.09.2018,RESIDENT SERVICES,LIVING ACCOMODATION LTD,"2,480.00",TA PLACEMENTS,EXTERNAL AGENCIES AND BODIES,5902319321,1000063985
11.09.2018,ADULT SOCIAL CARE,BEDE CAFE PROJECT,525,LD LTS 18-64,DAYCARE,2102862840,1553877
11.09.2018,ADULT SOCIAL CARE,BEDE CAFE PROJECT,"1,807.00",LD LTS 18-64,DAYCARE,2102862839,1553877
11.09.2018,ASSET MANAGEMENT,AJM ADAPTIONS LTD,729,ADAPTATIONS,BUILDING R&M,5902319619,1000080297
11.09.2018,CENTRAL FUNCTIONS,VPS (UK) LTD,"18,722.16",AYLESBURY,SECURITY SERVICES,5902319575,1000040614
11.09.2018,CHIEF EXECUTIVE,POWDERHALL BRONZE LTD,"20,875.00",CAPITAL PS (REGEN),CONSTRUCTION FEES  - EXTERNAL,5902319604,1000080232
11.09.2018,CHILDREN'S SERVICES,ANCHOR FOSTERCARE,995.28,AGENCY FOSTERING,EXTERNAL AGENCIES AND BODIES,2102862858,1000065675
11.09.2018,CHILDREN'S SERVICES,CHILDREN OF COLOUR,"1,148.00",AGENCY FOSTERING,EXTERNAL AGENCIES AND BODIES,2102862893,1000044955
11.09.2018,CHILDREN'S SERVICES,CHILDREN OF COLOUR,"1,148.00",AGENCY FOSTERING,EXTERNAL AGENCIES AND BODIES,2102862897,1000044955
11.09.2018,CHILDREN'S SERVICES,BY THE BRIDGE LTD,"3,243.24",AGENCY FOSTERING,EXTERNAL AGENCIES AND BODIES,2102862863,1000043961
11.09.2018,CHILDREN'S SERVICES,BY THE BRIDGE LTD,"3,243.24",AGENCY FOSTERING,EXTERNAL AGENCIES AND BODIES,2102862879,1000043961
11.09.2018,CHILDREN'S SERVICES,BY THE BRIDGE LTD,"3,243.24",AGENCY FOSTERING,EXTERNAL AGENCIES AND BODIES,2102862891,1000043961
11.09.2018,CHILDREN'S SERVICES,NATIONAL FOSTERING AGENCY,"3,454.33",AGENCY FOSTERING,EXTERNAL AGENCIES AND BODIES,2102862908,1000038868
11.09.2018,CHILDREN'S SERVICES,NATIONAL FOSTERING AGENCY,"3,520.67",AGENCY FOSTERING,EXTERNAL AGENCIES AND BODIES,2102862904,1000038868
11.09.2018,CHILDREN'S SERVICES,BANYA FAMILY PLACEMENT AGENCY LTD,"3,607.47",AGENCY FOSTERING,EXTERNAL AGENCIES AND BODIES,2102862865,11328315
11.09.2018,CHILDREN'S SERVICES,BANYA FAMILY PLACEMENT AGENCY LTD,"3,607.47",AGENCY FOSTERING,EXTERNAL AGENCIES AND BODIES,2102862877,11328315
11.09.2018,CHILDREN'S SERVICES,BANYA FAMILY PLACEMENT AGENCY LTD,"3,607.47",AGENCY FOSTERING,EXTERNAL AGENCIES AND BODIES,2102862901,11328315
11.09.2018,CHILDREN'S SERVICES,ANCHOR FOSTERCARE,"3,856.71",AGENCY FOSTERING,EXTERNAL AGENCIES AND BODIES,2102862905,1000065675
11.09.2018,CHILDREN'S SERVICES,NATIONAL FOSTERING AGENCY,"4,406.34",AGENCY FOSTERING,EXTERNAL AGENCIES AND BODIES,2102862873,1000038868
11.09.2018,CHILDREN'S SERVICES,NATIONAL FOSTERING AGENCY,"4,406.34",AGENCY FOSTERING,EXTERNAL AGENCIES AND BODIES,2102862875,1000038868
11.09.2018,CHILDREN'S SERVICES,NATIONAL FOSTERING AGENCY,"4,406.34",AGENCY FOSTERING,EXTERNAL AGENCIES AND BODIES,2102862881,1000038868
11.09.2018,CHILDREN'S SERVICES,NATIONAL FOSTERING AGENCY,"4,406.34",AGENCY FOSTERING,EXTERNAL AGENCIES AND BODIES,2102862883,1000038868
11.09.2018,CHILDREN'S SERVICES,NATIONAL FOSTERING AGENCY,"4,406.34",AGENCY FOSTERING,EXTERNAL AGENCIES AND BODIES,2102862885,1000038868
11.09.2018,CHILDREN'S SERVICES,NATIONAL FOSTERING AGENCY,"4,406.34",AGENCY FOSTERING,EXTERNAL AGENCIES AND BODIES,2102862902,1000038868
11.09.2018,CHILDREN'S SERVICES,NATIONAL FOSTERING AGENCY,"4,406.34",AGENCY FOSTERING,EXTERNAL AGENCIES AND BODIES,2102862906,1000038868
11.09.2018,CHILDREN'S SERVICES,NATIONAL FOSTERING AGENCY,"4,557.00",AGENCY FOSTERING,EXTERNAL AGENCIES AND BODIES,2102862861,1000038868
11.09.2018,CHILDREN'S SERVICES,NATIONAL FOSTERING AGENCY,"4,557.00",AGENCY FOSTERING,EXTERNAL AGENCIES AND BODIES,2102862903,1000038868
11.09.2018,CHILDREN'S SERVICES,NATIONAL FOSTERING AGENCY,"4,627.68",AGENCY FOSTERING,EXTERNAL AGENCIES AND BODIES,2102862854,1000038868
11.09.2018,CHILDREN'S SERVICES,INTEGRATED SERVICES PROGRAMME,"5,176.38",AGENCY FOSTERING,EXTERNAL AGENCIES AND BODIES,2102862867,1642068
11.09.2018,CHILDREN'S SERVICES,INTEGRATED SERVICES PROGRAMME,"5,176.38",AGENCY FOSTERING,EXTERNAL AGENCIES AND BODIES,2102862871,1642068
11.09.2018,CHILDREN'S SERVICES,INTEGRATED SERVICES PROGRAMME,"5,176.38",AGENCY FOSTERING,EXTERNAL AGENCIES AND BODIES,2102862887,1642068
11.09.2018,CHILDREN'S SERVICES,INTEGRATED SERVICES PROGRAMME,"5,176.38",AGENCY FOSTERING,EXTERNAL AGENCIES AND BODIES,2102862909,1642068
11.09.2018,CHILDREN'S SERVICES,NATIONAL FOSTERING AGENCY,"5,212.34",AGENCY FOSTERING,EXTERNAL AGENCIES AND BODIES,2102862895,1000038868
11.09.2018,CHILDREN'S SERVICES,INTEGRATED SERVICES PROGRAMME,"5,336.34",AGENCY FOSTERING,EXTERNAL AGENCIES AND BODIES,2102862856,1642068
11.09.2018,CHILDREN'S SERVICES,INTEGRATED SERVICES PROGRAMME,"5,336.34",AGENCY FOSTERING,EXTERNAL AGENCIES AND BODIES,2102862899,1642068
11.09.2018,CHILDREN'S SERVICES,INTEGRATED SERVICES PROGRAMME,"5,336.34",AGENCY FOSTERING,EXTERNAL AGENCIES AND BODIES,2102862907,1642068
11.09.2018,CHILDREN'S SERVICES,CORAL SUPPORT AND CRISIS INTERVENTION SERVICE,480,AIS - PRAC GRP C SET7-9,OTHER PAYMENTS FOR CLIENTS,5902319361,1000081529
11.09.2018,CHILDREN'S SERVICES,ALBION PRIMARY SCHOOL,"13,500.00",ALBION PRIMARY SCHOOL,EARLY YEARS - 3 AND 4 YEAR OLDS,5902319381,5001000000
11.09.2018,CHILDREN'S SERVICES,ALBION PRIMARY SCHOOL,"166,473.00",ALBION PRIMARY SCHOOL,SCHOOLS CAPITATION,5902319382,5001000000
11.09.2018,CHILDREN'S SERVICES,ALFRED SALTER PRIMARY SCHOOL,"16,362.00",ALFRED SALTER PRIMARY SCHOOL,EARLY YEARS - 3 AND 4 YEAR OLDS,5902319384,5001000005
11.09.2018,CHILDREN'S SERVICES,ALFRED SALTER PRIMARY SCHOOL,"173,612.00",ALFRED SALTER PRIMARY SCHOOL,SCHOOLS CAPITATION,5902319385,5001000005
11.09.2018,CHILDREN'S SERVICES,ANN BERNADT NURSERY SCHOOL,"66,896.00",ANN BERNADT (SUMNER),EARLY YEARS - 3 AND 4 YEAR OLDS,5902319552,5001000085
11.09.2018,CHILDREN'S SERVICES,BELLENDEN PRIMARY SCHOOL,"10,640.00",BELLENDEN PRIMARY SCHOOL,EARLY YEARS - 3 AND 4 YEAR OLDS,5902319387,5001000007
11.09.2018,CHILDREN'S SERVICES,BELLENDEN PRIMARY SCHOOL,"103,949.00",BELLENDEN PRIMARY SCHOOL,SCHOOLS CAPITATION,5902319388,5001000007
11.09.2018,CHILDREN'S SERVICES,BEORMUND PRIMARY SCHOOL,"70,159.00",BEORMUND PRIMARY SCHOOL,HIGH NEEDS - TOP UP FUNDING,5902319390,5001000008
11.09.2018,CHILDREN'S SERVICES,BESSEMER GRANGE PRIMARY SCHOOL,"25,687.00",BESSEMER GRANGE PRIMARY SCHOOL,EARLY YEARS - 3 AND 4 YEAR OLDS,5902319391,5001000009
11.09.2018,CHILDREN'S SERVICES,BESSEMER GRANGE PRIMARY SCHOOL,"237,627.00",BESSEMER GRANGE PRIMARY SCHOOL,SCHOOLS CAPITATION,5902319392,5001000009
11.09.2018,CHILDREN'S SERVICES,BOUCHER C OF E PRIMARY SCHOOL,"95,212.00",BOUTCHER CE PRIMARY SCHOOL,SCHOOLS CAPITATION,5902319395,5001000011
11.09.2018,CHILDREN'S SERVICES,BRUNSWICK PARK PRIMARY SCHOOL,"12,396.00",BRUNSWICK PARK PRIMARY SCHOOL,EARLY YEARS - 3 AND 4 YEAR OLDS,5902319397,5001000013
11.09.2018,CHILDREN'S SERVICES,BRUNSWICK PARK PRIMARY SCHOOL,"30,573.00",BRUNSWICK PARK PRIMARY SCHOOL,HIGH NEEDS - TOP UP FUNDING SEN UNIT,5902319399,5001000013
11.09.2018,CHILDREN'S SERVICES,BRUNSWICK PARK PRIMARY SCHOOL,"196,895.00",BRUNSWICK PARK PRIMARY SCHOOL,SCHOOLS CAPITATION,5902319398,5001000013
11.09.2018,CHILDREN'S SERVICES,CAMELOT PRIMARY SCHOOL,"14,216.00",CAMELOT PRIMARY SCHOOL,EARLY YEARS - 3 AND 4 YEAR OLDS,5902319400,5001000014
11.09.2018,CHILDREN'S SERVICES,CAMELOT PRIMARY SCHOOL,"201,870.00",CAMELOT PRIMARY SCHOOL,SCHOOLS CAPITATION,5902319401,5001000014
11.09.2018,CHILDREN'S SERVICES,REVIVAL,"1,100.00",CENTRAL SUPPORT,MEDICAL / HEALTH & SAFETY SERVICES,5902319358,1000027424
11.09.2018,CHILDREN'S SERVICES,CHARLES DICKENS PRIMARY SCHOOL,"14,859.00",CHARLES DICKENS PRIMARY SCHOOL,EARLY YEARS - 3 AND 4 YEAR OLDS,5902319403,5001000015
11.09.2018,CHILDREN'S SERVICES,CHARLES DICKENS PRIMARY SCHOOL,"175,049.00",CHARLES DICKENS PRIMARY SCHOOL,SCHOOLS CAPITATION,5902319404,5001000015
11.09.2018,CHILDREN'S SERVICES,CHARLOTTE  SHARMAN PRIMARY SCHOOL,"14,759.00",CHARLOTTE SHARMAN PRIMARY SCHOOL,EARLY YEARS - 3 AND 4 YEAR OLDS,5902319406,5001000016
11.09.2018,CHILDREN'S SERVICES,CHARLOTTE  SHARMAN PRIMARY SCHOOL,"133,468.00",CHARLOTTE SHARMAN PRIMARY SCHOOL,SCHOOLS CAPITATION,5902319407,5001000016
11.09.2018,CHILDREN'S SERVICES,CHERRY GARDEN SCHOOL,"129,597.00",CHERRY GARDEN PRIMARY SCHOOL,HIGH NEEDS - TOP UP FUNDING,5902319414,5001000020
11.09.2018,CHILDREN'S SERVICES,AIDHOUR LIMITED,339.4,CLA TEAM SAFEGUARDING,PROFESSIONAL FEES,5902319646,1000057345
11.09.2018,CHILDREN'S SERVICES,AIDHOUR LIMITED,349.8,CLA TEAM SAFEGUARDING,PROFESSIONAL FEES,5902319653,1000057345
11.09.2018,CHILDREN'S SERVICES,AIDHOUR LIMITED,423.35,CLA TEAM SAFEGUARDING,PROFESSIONAL FEES,5902319643,1000057345
11.09.2018,CHILDREN'S SERVICES,AIDHOUR LIMITED,"1,377.30",CLA TEAM SAFEGUARDING,PROFESSIONAL FEES,5902319639,1000057345
11.09.2018,CHILDREN'S SERVICES,COBOURG PRIMARY SCHOOL,"11,260.00",COBOURG PRIMARY SCHOOL,EARLY YEARS - 3 AND 4 YEAR OLDS,5902319415,5001000021
11.09.2018,CHILDREN'S SERVICES,COBOURG PRIMARY SCHOOL,"173,378.00",COBOURG PRIMARY SCHOOL,SCHOOLS CAPITATION,5902319416,5001000021
11.09.2018,CHILDREN'S SERVICES,COMBER GROVE PRIMARY SCHOOL,"13,396.00",COMBER GROVE PRIMARY SCHOOL,EARLY YEARS - 3 AND 4 YEAR OLDS,5902319418,5001000022
11.09.2018,CHILDREN'S SERVICES,COMBER GROVE PRIMARY SCHOOL,"123,475.00",COMBER GROVE PRIMARY SCHOOL,SCHOOLS CAPITATION,5902319419,5001000022
11.09.2018,CHILDREN'S SERVICES,CRAMPTON PRIMARY SCHOOL,"89,404.00",CRAMPTON PRIMARY SCHOOL,SCHOOLS CAPITATION,5902319421,5001000023
11.09.2018,CHILDREN'S SERVICES,CRAWFORD PRIMARY SCHOOL,"13,060.00",CRAWFORD PRIMARY SCHOOL,EARLY YEARS - 3 AND 4 YEAR OLDS,5902319423,5001000024
11.09.2018,CHILDREN'S SERVICES,CRAWFORD PRIMARY SCHOOL,"226,446.00",CRAWFORD PRIMARY SCHOOL,SCHOOLS CAPITATION,5902319424,5001000024
11.09.2018,CHILDREN'S SERVICES,DOG KENNEL HILL PRIMARY SCHOOL,"15,467.00",DOG KENNEL HILL PRIMARY SCHOOL,EARLY YEARS - 3 AND 4 YEAR OLDS,5902319426,5001000025
11.09.2018,CHILDREN'S SERVICES,DOG KENNEL HILL PRIMARY SCHOOL,"170,856.00",DOG KENNEL HILL PRIMARY SCHOOL,SCHOOLS CAPITATION,5902319427,5001000025
11.09.2018,CHILDREN'S SERVICES,DULWICH VILLAGE CE INFANTS SCHOOL,"107,904.00",DULWICH VILLAGE CE INFANTS' SCHOOL,SCHOOLS CAPITATION,5902319429,5001000027
11.09.2018,CHILDREN'S SERVICES,DULWICH WOOD CHILDRENS CENTRE,"58,791.00",DULWICH WOOD NURSERY SCHOOL,EARLY YEARS - 3 AND 4 YEAR OLDS,5902319568,5001000099
11.09.2018,CHILDREN'S SERVICES,DULWICH WOOD PRIMARY SCHOOL,"149,241.00",DULWICH WOOD PRIMARY SCHOOL,SCHOOLS CAPITATION,5902319464,5001000042
11.09.2018,CHILDREN'S SERVICES,ENGLISH MARTYRS RC PRIMARY SCHOOL,"11,607.00",ENGLISH MARTYRS RC PRIMARY SCHOOL,EARLY YEARS - 3 AND 4 YEAR OLDS,5902319437,5001000030
11.09.2018,CHILDREN'S SERVICES,ENGLISH MARTYRS RC PRIMARY SCHOOL,"155,686.00",ENGLISH MARTYRS RC PRIMARY SCHOOL,SCHOOLS CAPITATION,5902319438,5001000030
11.09.2018,CHILDREN'S SERVICES,EVELINA HOSPITAL SCHOOL,"87,568.00",EVELINA HOSPITAL SCHOOL,HIGH NEEDS - TOP UP FUNDING,5902319440,5001000031
11.09.2018,CHILDREN'S SERVICES,SP HOMES LTD,"4,207.01",FAMILY ASSESSMENTS,RESIDENTIAL CARE,2102862841,1000080326
11.09.2018,CHILDREN'S SERVICES,WILLISPALMER,"3,600.00",FAMILY ASSESSMENTS,SECTION 17 PAYMENTS TO AGENCIES/CARERS,5902319362,1000056409
11.09.2018,CHILDREN'S SERVICES,PRIME PRODUCTION LTD,"1,115.00",FINANCE,TRANSLATION SERVICES,5902319583,1000070086
11.09.2018,CHILDREN'S SERVICES,FRIARS PRIMARY SCHOOL,"8,787.00",FRIARS FOUNDATION PRIMARY SCHOOL,EARLY YEARS - 3 AND 4 YEAR OLDS,5902319444,5001000033
11.09.2018,CHILDREN'S SERVICES,FRIARS PRIMARY SCHOOL,"90,640.00",FRIARS FOUNDATION PRIMARY SCHOOL,SCHOOLS CAPITATION,5902319445,5001000033
11.09.2018,CHILDREN'S SERVICES,GOODRICH PRIMARY SCHOOL,"18,543.00",GOODRICH PRIMARY SCHOOL,EARLY YEARS - 3 AND 4 YEAR OLDS,5902319431,5001000028
11.09.2018,CHILDREN'S SERVICES,GOODRICH PRIMARY SCHOOL,"232,053.00",GOODRICH PRIMARY SCHOOL,SCHOOLS CAPITATION,5902319432,5001000028
11.09.2018,CHILDREN'S SERVICES,GRANGE PRIMARY SCHOOL,"8,854.00",GRANGE PRIMARY SCHOOL,EARLY YEARS - 3 AND 4 YEAR OLDS,5902319434,5001000029
11.09.2018,CHILDREN'S SERVICES,GRANGE PRIMARY SCHOOL,"166,126.00",GRANGE PRIMARY SCHOOL,SCHOOLS CAPITATION,5902319435,5001000029
11.09.2018,CHILDREN'S SERVICES,HAYMERLE SCHOOL,"182,329.00",HAYMERLE PRIMARY SCHOOL,HIGH NEEDS - TOP UP FUNDING,5902319469,5001000045
11.09.2018,CHILDREN'S SERVICES,HEBER PRIMARY SCHOOL,"13,585.00",HEBER PRIMARY SCHOOL,EARLY YEARS - 3 AND 4 YEAR OLDS,5902319447,5001000035
11.09.2018,CHILDREN'S SERVICES,HEBER PRIMARY SCHOOL,"151,131.00",HEBER PRIMARY SCHOOL,SCHOOLS CAPITATION,5902319448,5001000035
11.09.2018,CHILDREN'S SERVICES,HIGHSHORE SCHOOL,"263,100.00",HIGHSHORE,HIGH NEEDS - TOP UP FUNDING,5902319470,5001000046
11.09.2018,CHILDREN'S SERVICES,HOLLYDALE PRIMARY SCHOOL,"103,611.00",HOLLYDALE PRIMARY SCHOOL,SCHOOLS CAPITATION,5902319450,5001000036
11.09.2018,CHILDREN'S SERVICES,ILDERTON PRIMARY SCHOOL,"10,868.00",ILDERTON PRIMARY SCHOOL,EARLY YEARS - 3 AND 4 YEAR OLDS,5902319452,5001000037
11.09.2018,CHILDREN'S SERVICES,ILDERTON PRIMARY SCHOOL,"171,477.00",ILDERTON PRIMARY SCHOOL,SCHOOLS CAPITATION,5902319453,5001000037
11.09.2018,CHILDREN'S SERVICES,ALBION PRIMARY SCHOOL,"3,179.00",IN YEAR STATEMENTS & REORGS,HIGH NEEDS - TOP UP FUNDING,5902319383,5001000000
11.09.2018,CHILDREN'S SERVICES,PETER HILLS CE SCHOOL,667,IN YEAR STATEMENTS & REORGS,SCHOOLS CAPITATION,5902319483,5001000053
11.09.2018,CHILDREN'S SERVICES,COMBER GROVE PRIMARY SCHOOL,"2,119.00",IN YEAR STATEMENTS & REORGS,SCHOOLS CAPITATION,5902319420,5001000022
11.09.2018,CHILDREN'S SERVICES,ST ANTHONYS RC SCHOOL,"2,119.00",IN YEAR STATEMENTS & REORGS,SCHOOLS CAPITATION,5902319508,5001000064
11.09.2018,CHILDREN'S SERVICES,ST JOHNS RC PRIMARY SCHOOL,"2,119.00",IN YEAR STATEMENTS & REORGS,SCHOOLS CAPITATION,5902319533,5001000075
11.09.2018,CHILDREN'S SERVICES,ST JOSEPHS CATHOLIC SCHOOL,"2,119.00",IN YEAR STATEMENTS & REORGS,SCHOOLS CAPITATION,5902319536,5001000076
11.09.2018,CHILDREN'S SERVICES,VICTORY SCHOOL,"3,119.00",IN YEAR STATEMENTS & REORGS,SCHOOLS CAPITATION,5902319567,5001000098
11.09.2018,CHILDREN'S SERVICES,BOUCHER C OF E PRIMARY SCHOOL,"3,179.00",IN YEAR STATEMENTS & REORGS,SCHOOLS CAPITATION,5902319396,5001000011
11.09.2018,CHILDREN'S SERVICES,ST FRANCESCA CABRINI PRIMARY SCHOOL,"3,179.00",IN YEAR STATEMENTS & REORGS,SCHOOLS CAPITATION,5902319511,5001000065
11.09.2018,CHILDREN'S SERVICES,ST JUDES CHURCH OF ENGLAND PRIMARY,"3,380.00",IN YEAR STATEMENTS & REORGS,SCHOOLS CAPITATION,5902319413,5001000019
11.09.2018,CHILDREN'S SERVICES,ENGLISH MARTYRS RC PRIMARY SCHOOL,"3,380.00",IN YEAR STATEMENTS & REORGS,SCHOOLS CAPITATION,5902319439,5001000030
11.09.2018,CHILDREN'S SERVICES,ST JOHNS WALWORTH CE SCHOOL,"3,393.00",IN YEAR STATEMENTS & REORGS,SCHOOLS CAPITATION,5902319526,5001000072
11.09.2018,CHILDREN'S SERVICES,HOLLYDALE PRIMARY SCHOOL,"3,512.00",IN YEAR STATEMENTS & REORGS,SCHOOLS CAPITATION,5902319451,5001000036
11.09.2018,CHILDREN'S SERVICES,MICHAEL FARADAY PRIMARY SCHOOL,"3,786.00",IN YEAR STATEMENTS & REORGS,SCHOOLS CAPITATION,5902319474,5001000048
11.09.2018,CHILDREN'S SERVICES,ST JOSEPHS RC JUNIOR  SCHOOL,"3,845.00",IN YEAR STATEMENTS & REORGS,SCHOOLS CAPITATION,5902319410,5001000017
11.09.2018,CHILDREN'S SERVICES,DULWICH WOOD PRIMARY SCHOOL,"4,238.00",IN YEAR STATEMENTS & REORGS,SCHOOLS CAPITATION,5902319465,5001000042
11.09.2018,CHILDREN'S SERVICES,ROBERT BROWNING PRIMARY SCHOOL,"4,238.00",IN YEAR STATEMENTS & REORGS,SCHOOLS CAPITATION,5902319492,5001000057
11.09.2018,CHILDREN'S SERVICES,TOWER BRIDGE PRIMARY SCHOOL,"4,238.00",IN YEAR STATEMENTS & REORGS,SCHOOLS CAPITATION,5902319560,5001000095
11.09.2018,CHILDREN'S SERVICES,CRAMPTON PRIMARY SCHOOL,"4,439.00",IN YEAR STATEMENTS & REORGS,SCHOOLS CAPITATION,5902319422,5001000023
11.09.2018,CHILDREN'S SERVICES,ST PETERS CE SCHOOL,"4,439.00",IN YEAR STATEMENTS & REORGS,SCHOOLS CAPITATION,5902319549,5001000083
11.09.2018,CHILDREN'S SERVICES,COBOURG PRIMARY SCHOOL,"4,512.00",IN YEAR STATEMENTS & REORGS,SCHOOLS CAPITATION,5902319417,5001000021
11.09.2018,CHILDREN'S SERVICES,ILDERTON PRIMARY SCHOOL,"4,580.00",IN YEAR STATEMENTS & REORGS,SCHOOLS CAPITATION,5902319454,5001000037
11.09.2018,CHILDREN'S SERVICES,ST GEORGES CE SCHOOL,"4,640.00",IN YEAR STATEMENTS & REORGS,SCHOOLS CAPITATION,5902319518,5001000069
11.09.2018,CHILDREN'S SERVICES,IVYDALE PRIMARY SCHOOL,"4,905.00",IN YEAR STATEMENTS & REORGS,SCHOOLS CAPITATION,5902319457,5001000038
11.09.2018,CHILDREN'S SERVICES,ST JOSEPHS RC PRIMARY SCHOOL,"4,905.00",IN YEAR STATEMENTS & REORGS,SCHOOLS CAPITATION,5902319539,5001000077
11.09.2018,CHILDREN'S SERVICES,GRANGE PRIMARY SCHOOL,"5,499.00",IN YEAR STATEMENTS & REORGS,SCHOOLS CAPITATION,5902319436,5001000029
11.09.2018,CHILDREN'S SERVICES,KEYWORTH PRIMARY SCHOOL,"5,499.00",IN YEAR STATEMENTS & REORGS,SCHOOLS CAPITATION,5902319463,5001000041
11.09.2018,CHILDREN'S SERVICES,ST MARY MAGDALENE CE SCHOOL,"5,499.00",IN YEAR STATEMENTS & REORGS,SCHOOLS CAPITATION,5902319543,5001000080
11.09.2018,CHILDREN'S SERVICES,CAMELOT PRIMARY SCHOOL,"5,572.00",IN YEAR STATEMENTS & REORGS,SCHOOLS CAPITATION,5902319402,5001000014
11.09.2018,CHILDREN'S SERVICES,FRIARS PRIMARY SCHOOL,"5,640.00",IN YEAR STATEMENTS & REORGS,SCHOOLS CAPITATION,5902319446,5001000033
11.09.2018,CHILDREN'S SERVICES,DULWICH VILLAGE CE INFANTS SCHOOL,"5,713.00",IN YEAR STATEMENTS & REORGS,SCHOOLS CAPITATION,5902319430,5001000027
11.09.2018,CHILDREN'S SERVICES,BESSEMER GRANGE PRIMARY SCHOOL,"5,773.00",IN YEAR STATEMENTS & REORGS,SCHOOLS CAPITATION,5902319393,5001000009
11.09.2018,CHILDREN'S SERVICES,ST PAULS CE SCHOOL,"5,773.00",IN YEAR STATEMENTS & REORGS,SCHOOLS CAPITATION,5902319546,5001000082
11.09.2018,CHILDREN'S SERVICES,ST SAVIOURS & ST OLAVES SCHOOL,"5,832.00",IN YEAR STATEMENTS & REORGS,SCHOOLS CAPITATION,5902319551,5001000084
11.09.2018,CHILDREN'S SERVICES,PILGRIM'S WAY PRIMARY SCHOOL,"6,129.00",IN YEAR STATEMENTS & REORGS,SCHOOLS CAPITATION,5902319486,5001000054
11.09.2018,CHILDREN'S SERVICES,ROTHERHITHE PRIMARY SCHOOL,"6,179.00",IN YEAR STATEMENTS & REORGS,SCHOOLS CAPITATION,5902319495,5001000058
11.09.2018,CHILDREN'S SERVICES,NOTRE DAME RC GIRLS SCHOOL,"6,358.00",IN YEAR STATEMENTS & REORGS,SCHOOLS CAPITATION,5902319477,5001000050
11.09.2018,CHILDREN'S SERVICES,OLIVER GOLDSMITH PRIMARY SCHOOL,"6,358.00",IN YEAR STATEMENTS & REORGS,SCHOOLS CAPITATION,5902319480,5001000051
11.09.2018,CHILDREN'S SERVICES,DOG KENNEL HILL PRIMARY SCHOOL,"7,024.00",IN YEAR STATEMENTS & REORGS,SCHOOLS CAPITATION,5902319428,5001000025
11.09.2018,CHILDREN'S SERVICES,CRAWFORD PRIMARY SCHOOL,"7,033.00",IN YEAR STATEMENTS & REORGS,SCHOOLS CAPITATION,5902319425,5001000024
11.09.2018,CHILDREN'S SERVICES,BELLENDEN PRIMARY SCHOOL,"7,165.00",IN YEAR STATEMENTS & REORGS,SCHOOLS CAPITATION,5902319389,5001000007
11.09.2018,CHILDREN'S SERVICES,GOODRICH PRIMARY SCHOOL,"7,298.00",IN YEAR STATEMENTS & REORGS,SCHOOLS CAPITATION,5902319433,5001000028
11.09.2018,CHILDREN'S SERVICES,SOUTHWARK PARK PRIMARY SCHOOL,"7,567.00",IN YEAR STATEMENTS & REORGS,SCHOOLS CAPITATION,5902319504,5001000062
11.09.2018,CHILDREN'S SERVICES,CHARLOTTE  SHARMAN PRIMARY SCHOOL,"7,691.00",IN YEAR STATEMENTS & REORGS,SCHOOLS CAPITATION,5902319408,5001000016
11.09.2018,CHILDREN'S SERVICES,ST JAMES THE GREAT RC SCHOOL,"8,084.00",IN YEAR STATEMENTS & REORGS,SCHOOLS CAPITATION,5902319524,5001000071
11.09.2018,CHILDREN'S SERVICES,CHARLES DICKENS PRIMARY SCHOOL,"8,106.00",IN YEAR STATEMENTS & REORGS,SCHOOLS CAPITATION,5902319405,5001000015
11.09.2018,CHILDREN'S SERVICES,TOWNSEND PRIMARY SCHOOL,"8,152.00",IN YEAR STATEMENTS & REORGS,SCHOOLS CAPITATION,5902319563,5001000096
11.09.2018,CHILDREN'S SERVICES,ST FRANCIS'S RC PRIMARY SCHOOL,"8,558.00",IN YEAR STATEMENTS & REORGS,SCHOOLS CAPITATION,5902319514,5001000067
11.09.2018,CHILDREN'S SERVICES,THE ST THOMAS THE APOSTLE COLLEGE,"8,878.00",IN YEAR STATEMENTS & REORGS,SCHOOLS CAPITATION,5902319530,5001000074
11.09.2018,CHILDREN'S SERVICES,PHOENIX PRIMARY SCHOOL,"10,139.00",IN YEAR STATEMENTS & REORGS,SCHOOLS CAPITATION,5902319443,5001000032
11.09.2018,CHILDREN'S SERVICES,HEBER PRIMARY SCHOOL,"10,225.00",IN YEAR STATEMENTS & REORGS,SCHOOLS CAPITATION,5902319449,5001000035
11.09.2018,CHILDREN'S SERVICES,RIVERSIDE PRIMARY SCHOOL,"10,536.00",IN YEAR STATEMENTS & REORGS,SCHOOLS CAPITATION,5902319489,5001000056
11.09.2018,CHILDREN'S SERVICES,ST JAMES CE SCHOOL,"10,618.00",IN YEAR STATEMENTS & REORGS,SCHOOLS CAPITATION,5902319521,5001000070
11.09.2018,CHILDREN'S SERVICES,SURREY SQUARE JUNIOR SCHOOL,"10,750.00",IN YEAR STATEMENTS & REORGS,SCHOOLS CAPITATION,5902319554,5001000087
11.09.2018,CHILDREN'S SERVICES,ALFRED SALTER PRIMARY SCHOOL,"19,565.00",IN YEAR STATEMENTS & REORGS,SCHOOLS CAPITATION,5902319386,5001000005
11.09.2018,CHILDREN'S SERVICES,IVYDALE PRIMARY SCHOOL,"13,546.00",IVYDALE PRIMARY SCHOOL,EARLY YEARS - 3 AND 4 YEAR OLDS,5902319455,5001000038
